Workbook

Sheet Тариф.Кальк
C3: МЕДАЛИСТ
K4: =DATE(YEAR(E14)+E16,MONTH(E14),DAY(E14)-1) -> 
C5: Тарифный калькулятор. | E5: версия 1.3 от 02.2024 г. | K5: =(DATE(YEAR(E14)+E16,MONTH(E14)-1,DAY(E14))) -> 
C8: ПРЕДПОЛАГАЕМЫЕ ДАТЫ ОПЛАТЫ ВЗНОСА И ВСТУПЛЕНИЯ ДОГОВОРА В СИЛУ | J8: =IF(MONTH(E14)>=7,DATE(IF(AND(MONTH(K8)>=1,MONTH(K8)<=6),YEAR(K8)-1,YEAR(K8)),7,DAY(K8)),DATE(IF(AND(MONTH(K8)>=1,MONTH(K8)>=6),YEAR(K8)-1,YEAR(K8)+1),7,DAY(K8)-31)) ->  | K8: =IF(MONTH(E14>=7),(DATE(YEAR(E14)+E16,MONTH(E14),DAY(E14)-1)),EOMONTH(DATE(YEAR(E14)+E16,MONTH(E14)-1,DAY(E14)),0)) ->  | L8: =K8 -> 
K9: =DATE(IF(MONTH(K8)>=6,YEAR(K8),YEAR(K8)-1),7,DAY(K8)) -> 
C10: Класс, в котором обучается Застрахованное лицо | K10: =IF(MONTH(E14)>=7,K9-DAY(K9)+1,DATE(YEAR(K9),MONTH(K9),DAY(K9))) -> 
C12: Дата оплаты страхового взноса | E12: 2025-02-20 | J12: =MONTH(E14) -> 2 | K12: =DATE(YEAR(K10),MONTH(K10)+1,0) -> 
K13: =IF(J12>=7,DATE(YEAR(K12),MONTH(K12),DAY(K12)),K12) -> 
C14: Примерная дата начала действия Договора страхования | E14: =IF(AND(E12>=$K$35,MONTH(E12)<9,E10=1),$K$36,E12+5) -> 2025-02-25 | G14: (дд.мм.гггг) | J14: =DATE(YEAR(K13)-1,MONTH(K13),DAY(K13)) ->  | K14: =IF(AND(MONTH(E14)=7,DAY(E14)=1),K13,IF(K13>E18,DATE(YEAR(K13)-1,MONTH(K13),DAY(K13)),K13)) -> 
L15: =(DATE(YEAR(E14)+E16,MONTH(E14),DAY(E14)-1)) -> 
C16: Срок действия договора | E16: =K16 ->  | K16: =IF(E10=1,VLOOKUP(education,Базис!AM3:AN8,2,0),IF(MONTH(E14>=6),VLOOKUP(education,Базис!AM3:AN8,2,0),IF(MONTH(E14<=7),IF(MONTH(E14>=6),(DATE(YEAR(E14)+E16,MONTH(E14),DAY(E14)-1)))))) ->  | L16: =IF(E10=1,VLOOKUP(education,Базис!AM3:AN8,2,0),IF(MONTH(E14)>=6,VLOOKUP(education,Базис!AM3:AN8,2,0)+1,IF(MONTH(E14)<=7,IF(MONTH(E14>=6),VLOOKUP(education,Базис!AM3:AN9,2,0)+1),K16))) -> 
K17: =VLOOKUP(E10,Базис!$AL$2:$AM$9,2) ->  | L17: класс
C18: Дата окончания действия Договора страхования | E18: =L15 -> 
C19: Дата дожития до вручения федеральной медали: (Год в этой ячейке совпадает с годом окончания школы) | E19: =K14 ->  | K19: =DATEDIF(E14,K14,"m")+1 -> 
C20: ЗАСТРАХОВАННОЕ ЛИЦО | K20: =DATEDIF(E24,K4,"y") -> 
K21: =DATEDIF(E33,K4,"y") -> 
C22: Пол | E22: муж
C24: Дата рождения | G24: (дд.мм.гггг)
C26: Возраст | E26: =IF(E24="","",DATEDIF(E24,E14,"y")) -> 
C29: СТРАХОВАТЕЛЬ
C31: Пол | E31: муж
C33: Дата рождения | G33: (дд.мм.гггг)
K34: =TODAY() -> 2025-02-20
C35: Возраст | E35: =IF(E33="","",DATEDIF(E33,E14,"y")) ->  | K35: =DATE(YEAR(TODAY()),MONTH(0)+7,DAY(27)) -> 2025-08-27
K36: =DATE(YEAR(TODAY()),MONTH(0)+8,DAY(1)) -> 2025-09-01
C37: ПРОГРАММА СТРАХОВАНИЯ
C39: 1. ОСНОВНАЯ ПРОГРАММА (обязательно): | G39: Валюта договора
C40: 1.1. Дожитие Застрахованного лица до окончания срока страхования. | G40: руб
C41: 1.2. Смерть Застрахованного лица по любой причине.
C42: 1.3. Вручение федеральной медали «За особые успехи в учении».
C44: 2. ДОПОЛНИТЕЛЬНЫЕ ПРОГРАММЫ (на выбор): | E44: Периодичность оплаты взносов: | K44: ежегодно
G45: Ежеквартально | I45: TRUE
C47: 2.1. Освобождение от уплаты взносов. | G47: Раз в полгода | I47: FALSE | L47: внизу m
G49: Ежегодно | I49: FALSE | L49: =VLOOKUP(K44,Базис!$AH$2:$AI$6,2,FALSE) -> 1
F51: FALSE | G51: Единовременно | I51: FALSE
C53: СПОСОБ РАСЧЕТА ПО ОСНОВНОЙ ПРОГРАММЕ
C55: ОТ РАЗМЕРА СТРАХОВОГО ВЗНОСА
C57: ОТ РАЗМЕРА СТРАХОВОЙ СУММЫ ПО РИСКУ "ДОЖИТИЕ" (укажите)
C59: РАСЧЕТ СТРАХОВОЙ СУММЫ и СТРАХОВОГО ВЗНОСА
C61: 1. ОСНОВНАЯ ПРОГРАММА: | E61: СТРАХОВАЯ СУММА: | G61: СТРАХОВОЙ ВЗНОС:
C62: 1.1. Дожитие Застрахованного лица до окончания срока страхования. | E62: 0 | G62: 0 | L62: 0
C63: 1.2. Смерть Застрахованного лица по любой причине. | E63: 107% от уплаченных взносов
C64: 1.3. Вручение федеральной медали «За особые успехи в учении». | E64: 0 | G64: 0 | J64: =E64/E62 ->  | K64: =G62+G64-Лист2!H7 -> -933761 | L64: проверка тарифа
C65: 2. ДОПОЛНИТЕЛЬНЫЕ ПРОГРАММЫ:
C66: 2.1. Освобождение от уплаты взносов. | E66: 0 | G66: 0
E68: ВЗНОС ПО ОСНОВНОЙ ПРОГРАММЕ: | G68: =(G62+G64)*$L$62 -> 0
E69: ОБЩИЙ РАЗМЕР ВЗНОСА ПО ДОГОВОРУ: | G69: =(G62+G64+G66)*$L$62 -> 0
C70: РАСЧЕТ ВОЗМОЖНОГО НАЛОГОВОГО ВЫЧЕТА | K70: 0.51 | L70: периодичность
C72: Размер ежегодного налогового вычета:
C74: Размер налогового вычета за весь срок страхования:

Sheet Ожидания (hidden)
B1: РАСЧЕТ ОЖИДАНИЙ
B3: Год действия договора страхования | C3: Размер годового взноса | D3: Ожидаемый размер дополнительного инвестиционного дохода по результатам инвестиционной деятельности | E3: Ожидаемый размер страховой суммы с учетом допинвестдохода | F3: Расчетная сумма налогового вычета
B4: =IF(AND(Резервы!C6<=Тариф.Кальк!$E$16,Резервы!C6<>""),Резервы!C6,"") ->  | C4: =IF(B4<>"",IF(Тариф.Кальк!$L$49=0,IF(B4=1,Тариф.Кальк!$G$69,0),Тариф.Кальк!$G$69*B4*Тариф.Кальк!$L$49),"") ->  | D4: =IF(B4<>"",Резервы!H6,"") ->  | E4: =IF(B4<>"",Тариф.Кальк!$G$62+D4,"") ->  | F4: =IF(B4<>"",IF(Тариф.Кальк!$L$49=0,MIN(19500,0.13*C4),MIN(19500,0.13*$C$4)),"") ->  | G4: =IF(K41="раз в полгода",F5,F5) -> 
B5: =IF(AND(Резервы!C7<=Тариф.Кальк!$E$16,Резервы!C7<>""),Резервы!C7,"") ->  | C5: =IF(B5<>"",IF(Тариф.Кальк!$L$49=0,IF(B5=1,Тариф.Кальк!$G$69,0),Тариф.Кальк!$G$69*B5*Тариф.Кальк!$L$49),"") ->  | D5: =IF(B5<>"",Резервы!H7,"") ->  | E5: =IF(B5<>"",Тариф.Кальк!$G$62+D5,"") ->  | F5: =IF(B5<>"",IF(Тариф.Кальк!$L$49=0,MIN(19500,0.13*C5),MIN(19500,0.13*$C$4)),"") -> 
B6: =IF(AND(Резервы!C8<=Тариф.Кальк!$E$16,Резервы!C8<>""),Резервы!C8,"") ->  | C6: =IF(B6<>"",IF(Тариф.Кальк!$L$49=0,IF(B6=1,Тариф.Кальк!$G$69,0),Тариф.Кальк!$G$69*B6*Тариф.Кальк!$L$49),"") ->  | D6: =IF(B6<>"",Резервы!H8,"") ->  | E6: =IF(B6<>"",Тариф.Кальк!$G$62+D6,"") ->  | F6: =IF(B6<>"",IF(Тариф.Кальк!$L$49=0,MIN(19500,0.13*C6),MIN(19500,0.13*$C$4)),"") -> 
B7: =IF(AND(Резервы!C9<=Тариф.Кальк!$E$16,Резервы!C9<>""),Резервы!C9,"") ->  | C7: =IF(B7<>"",IF(Тариф.Кальк!$L$49=0,IF(B7=1,Тариф.Кальк!$G$69,0),Тариф.Кальк!$G$69*B7*Тариф.Кальк!$L$49),"") ->  | D7: =IF(B7<>"",Резервы!H9,"") ->  | E7: =IF(B7<>"",Тариф.Кальк!$G$62+D7,"") ->  | F7: =IF(B7<>"",IF(Тариф.Кальк!$L$49=0,MIN(19500,0.13*C7),MIN(19500,0.13*$C$4)),"") -> 
B8: =IF(AND(Резервы!C10<=Тариф.Кальк!$E$16,Резервы!C10<>""),Резервы!C10,"") ->  | C8: =IF(B8<>"",IF(Тариф.Кальк!$L$49=0,IF(B8=1,Тариф.Кальк!$G$69,0),Тариф.Кальк!$G$69*B8*Тариф.Кальк!$L$49),"") ->  | D8: =IF(B8<>"",Резервы!H10,"") ->  | E8: =IF(B8<>"",Тариф.Кальк!$G$62+D8,"") ->  | F8: =IF(B8<>"",IF(Тариф.Кальк!$L$49=0,MIN(19500,0.13*C8),MIN(19500,0.13*$C$4)),"") -> 
B9: =IF(AND(Резервы!C11<=Тариф.Кальк!$E$16,Резервы!C11<>""),Резервы!C11,"") ->  | C9: =IF(B9<>"",IF(Тариф.Кальк!$L$49=0,IF(B9=1,Тариф.Кальк!$G$69,0),Тариф.Кальк!$G$69*B9*Тариф.Кальк!$L$49),"") ->  | D9: =IF(B9<>"",Резервы!H11,"") ->  | E9: =IF(B9<>"",Тариф.Кальк!$G$62+D9,"") ->  | F9: =IF(B9<>"",IF(Тариф.Кальк!$L$49=0,MIN(19500,0.13*C9),MIN(19500,0.13*$C$4)),"") -> 
B10: =IF(AND(Резервы!C12<=Тариф.Кальк!$E$16,Резервы!C12<>""),Резервы!C12,"") ->  | C10: =IF(B10<>"",IF(Тариф.Кальк!$L$49=0,IF(B10=1,Тариф.Кальк!$G$69,0),Тариф.Кальк!$G$69*B10*Тариф.Кальк!$L$49),"") ->  | D10: =IF(B10<>"",Резервы!H12,"") ->  | E10: =IF(B10<>"",Тариф.Кальк!$G$62+D10,"") ->  | F10: =IF(B10<>"",IF(Тариф.Кальк!$L$49=0,MIN(19500,0.13*C10),MIN(19500,0.13*$C$4)),"") -> 
B11: =IF(AND(Резервы!C13<=Тариф.Кальк!$E$16,Резервы!C13<>""),Резервы!C13,"") ->  | C11: =IF(B11<>"",IF(Тариф.Кальк!$L$49=0,IF(B11=1,Тариф.Кальк!$G$69,0),Тариф.Кальк!$G$69*B11*Тариф.Кальк!$L$49),"") ->  | D11: =IF(B11<>"",Резервы!H13,"") ->  | E11: =IF(B11<>"",Тариф.Кальк!$G$62+D11,"") ->  | F11: =IF(B11<>"",IF(Тариф.Кальк!$L$49=0,MIN(19500,0.13*C11),MIN(19500,0.13*$C$4)),"") -> 
B12: =IF(AND(Резервы!C14<=Тариф.Кальк!$E$16,Резервы!C14<>""),Резервы!C14,"") ->  | C12: =IF(B12<>"",IF(Тариф.Кальк!$L$49=0,IF(B12=1,Тариф.Кальк!$G$69,0),Тариф.Кальк!$G$69*B12*Тариф.Кальк!$L$49),"") ->  | D12: =IF(B12<>"",Резервы!H14,"") ->  | E12: =IF(B12<>"",Тариф.Кальк!$G$62+D12,"") ->  | F12: =IF(B12<>"",IF(Тариф.Кальк!$L$49=0,MIN(19500,0.13*C12),MIN(19500,0.13*$C$4)),"") -> 
B13: =IF(AND(Резервы!C15<=Тариф.Кальк!$E$16,Резервы!C15<>""),Резервы!C15,"") ->  | C13: =IF(B13<>"",IF(Тариф.Кальк!$L$49=0,IF(B13=1,Тариф.Кальк!$G$69,0),Тариф.Кальк!$G$69*B13*Тариф.Кальк!$L$49),"") ->  | D13: =IF(B13<>"",Резервы!H15,"") ->  | E13: =IF(B13<>"",Тариф.Кальк!$G$62+D13,"") ->  | F13: =IF(B13<>"",IF(Тариф.Кальк!$L$49=0,MIN(19500,0.13*C13),MIN(19500,0.13*$C$4)),"") -> 
B14: =IF(AND(Резервы!C16<=Тариф.Кальк!$E$16,Резервы!C16<>""),Резервы!C16,"") ->  | C14: =IF(B14<>"",IF(Тариф.Кальк!$L$49=0,IF(B14=1,Тариф.Кальк!$G$69,0),Тариф.Кальк!$G$69*B14*Тариф.Кальк!$L$49),"") ->  | D14: =IF(B14<>"",Резервы!H16,"") ->  | E14: =IF(B14<>"",Тариф.Кальк!$G$62+D14,"") ->  | F14: =IF(B14<>"",IF(Тариф.Кальк!$L$49=0,MIN(19500,0.13*C14),MIN(19500,0.13*$C$4)),"") -> 
B15: =IF(AND(Резервы!C17<=Тариф.Кальк!$E$16,Резервы!C17<>""),Резервы!C17,"") ->  | C15: =IF(B15<>"",IF(Тариф.Кальк!$L$49=0,IF(B15=1,Тариф.Кальк!$G$69,0),Тариф.Кальк!$G$69*B15*Тариф.Кальк!$L$49),"") ->  | D15: =IF(B15<>"",Резервы!H17,"") ->  | E15: =IF(B15<>"",Тариф.Кальк!$G$62+D15,"") ->  | F15: =IF(B15<>"",IF(Тариф.Кальк!$L$49=0,MIN(19500,0.13*C15),MIN(19500,0.13*$C$4)),"") -> 
B16: =IF(AND(Резервы!C18<=Тариф.Кальк!$E$16,Резервы!C18<>""),Резервы!C18,"") ->  | C16: =IF(B16<>"",IF(Тариф.Кальк!$L$49=0,IF(B16=1,Тариф.Кальк!$G$69,0),Тариф.Кальк!$G$69*B16*Тариф.Кальк!$L$49),"") ->  | D16: =IF(B16<>"",Резервы!H18,"") ->  | E16: =IF(B16<>"",Тариф.Кальк!$G$62+D16,"") ->  | F16: =IF(B16<>"",IF(Тариф.Кальк!$L$49=0,MIN(19500,0.13*C16),MIN(19500,0.13*$C$4)),"") -> 
B17: =IF(AND(Резервы!C19<=Тариф.Кальк!$E$16,Резервы!C19<>""),Резервы!C19,"") ->  | C17: =IF(B17<>"",IF(Тариф.Кальк!$L$49=0,IF(B17=1,Тариф.Кальк!$G$69,0),Тариф.Кальк!$G$69*B17*Тариф.Кальк!$L$49),"") ->  | D17: =IF(B17<>"",Резервы!H19,"") ->  | E17: =IF(B17<>"",Тариф.Кальк!$G$62+D17,"") ->  | F17: =IF(B17<>"",IF(Тариф.Кальк!$L$49=0,MIN(19500,0.13*C17),MIN(19500,0.13*$C$4)),"") -> 
B18: =IF(AND(Резервы!C20<=Тариф.Кальк!$E$16,Резервы!C20<>""),Резервы!C20,"") ->  | C18: =IF(B18<>"",IF(Тариф.Кальк!$L$49=0,IF(B18=1,Тариф.Кальк!$G$69,0),Тариф.Кальк!$G$69*B18*Тариф.Кальк!$L$49),"") ->  | D18: =IF(B18<>"",Резервы!H20,"") ->  | E18: =IF(B18<>"",Тариф.Кальк!$G$62+D18,"") ->  | F18: =IF(B18<>"",IF(Тариф.Кальк!$L$49=0,MIN(19500,0.13*C18),MIN(19500,0.13*$C$4)),"") -> 
B19: =IF(AND(Резервы!C21<=Тариф.Кальк!$E$16,Резервы!C21<>""),Резервы!C21,"") ->  | C19: =IF(B19<>"",IF(Тариф.Кальк!$L$49=0,IF(B19=1,Тариф.Кальк!$G$69,0),Тариф.Кальк!$G$69*B19*Тариф.Кальк!$L$49),"") ->  | D19: =IF(B19<>"",Резервы!H21,"") ->  | E19: =IF(B19<>"",Тариф.Кальк!$G$62+D19,"") ->  | F19: =IF(B19<>"",IF(Тариф.Кальк!$L$49=0,MIN(19500,0.13*C19),MIN(19500,0.13*$C$4)),"") -> 
B20: =IF(AND(Резервы!C22<=Тариф.Кальк!$E$16,Резервы!C22<>""),Резервы!C22,"") ->  | C20: =IF(B20<>"",IF(Тариф.Кальк!$L$49=0,IF(B20=1,Тариф.Кальк!$G$69,0),Тариф.Кальк!$G$69*B20*Тариф.Кальк!$L$49),"") ->  | D20: =IF(B20<>"",Резервы!H22,"") ->  | E20: =IF(B20<>"",Тариф.Кальк!$G$62+D20,"") ->  | F20: =IF(B20<>"",IF(Тариф.Кальк!$L$49=0,MIN(19500,0.13*C20),MIN(19500,0.13*$C$4)),"") -> 
B21: =IF(AND(Резервы!C23<=Тариф.Кальк!$E$16,Резервы!C23<>""),Резервы!C23,"") ->  | C21: =IF(B21<>"",IF(Тариф.Кальк!$L$49=0,IF(B21=1,Тариф.Кальк!$G$69,0),Тариф.Кальк!$G$69*B21*Тариф.Кальк!$L$49),"") ->  | D21: =IF(B21<>"",Резервы!H23,"") ->  | E21: =IF(B21<>"",Тариф.Кальк!$G$62+D21,"") ->  | F21: =IF(B21<>"",IF(Тариф.Кальк!$L$49=0,MIN(19500,0.13*C21),MIN(19500,0.13*$C$4)),"") -> 
B22: =IF(AND(Резервы!C24<=Тариф.Кальк!$E$16,Резервы!C24<>""),Резервы!C24,"") ->  | C22: =IF(B22<>"",IF(Тариф.Кальк!$L$49=0,IF(B22=1,Тариф.Кальк!$G$69,0),Тариф.Кальк!$G$69*B22*Тариф.Кальк!$L$49),"") ->  | D22: =IF(B22<>"",Резервы!H24,"") ->  | E22: =IF(B22<>"",Тариф.Кальк!$G$62+D22,"") ->  | F22: =IF(B22<>"",IF(Тариф.Кальк!$L$49=0,MIN(19500,0.13*C22),MIN(19500,0.13*$C$4)),"") -> 
B23: =IF(AND(Резервы!C25<=Тариф.Кальк!$E$16,Резервы!C25<>""),Резервы!C25,"") ->  | C23: =IF(B23<>"",IF(Тариф.Кальк!$L$49=0,IF(B23=1,Тариф.Кальк!$G$69,0),Тариф.Кальк!$G$69*B23*Тариф.Кальк!$L$49),"") ->  | D23: =IF(B23<>"",Резервы!H25,"") ->  | E23: =IF(B23<>"",Тариф.Кальк!$G$62+D23,"") ->  | F23: =IF(B23<>"",IF(Тариф.Кальк!$L$49=0,MIN(19500,0.13*C23),MIN(19500,0.13*$C$4)),"") -> 
B24: =IF(AND(Резервы!C26<=Тариф.Кальк!$E$16,Резервы!C26<>""),Резервы!C26,"") ->  | C24: =IF(B24<>"",IF(Тариф.Кальк!$L$49=0,IF(B24=1,Тариф.Кальк!$G$69,0),Тариф.Кальк!$G$69*B24*Тариф.Кальк!$L$49),"") ->  | D24: =IF(B24<>"",Резервы!H26,"") ->  | E24: =IF(B24<>"",Тариф.Кальк!$G$62+D24,"") ->  | F24: =IF(B24<>"",IF(Тариф.Кальк!$L$49=0,MIN(19500,0.13*C24),MIN(19500,0.13*$C$4)),"") -> 
B25: =IF(AND(Резервы!C27<=Тариф.Кальк!$E$16,Резервы!C27<>""),Резервы!C27,"") ->  | C25: =IF(B25<>"",IF(Тариф.Кальк!$L$49=0,IF(B25=1,Тариф.Кальк!$G$69,0),Тариф.Кальк!$G$69*B25*Тариф.Кальк!$L$49),"") ->  | D25: =IF(B25<>"",Резервы!H27,"") ->  | E25: =IF(B25<>"",Тариф.Кальк!$G$62+D25,"") ->  | F25: =IF(B25<>"",IF(Тариф.Кальк!$L$49=0,MIN(19500,0.13*C25),MIN(19500,0.13*$C$4)),"") -> 
B26: =IF(AND(Резервы!C28<=Тариф.Кальк!$E$16,Резервы!C28<>""),Резервы!C28,"") ->  | C26: =IF(B26<>"",IF(Тариф.Кальк!$L$49=0,IF(B26=1,Тариф.Кальк!$G$69,0),Тариф.Кальк!$G$69*B26*Тариф.Кальк!$L$49),"") ->  | D26: =IF(B26<>"",Резервы!H28,"") ->  | E26: =IF(B26<>"",Тариф.Кальк!$G$62+D26,"") ->  | F26: =IF(B26<>"",IF(Тариф.Кальк!$L$49=0,MIN(19500,0.13*C26),MIN(19500,0.13*$C$4)),"") -> 
F27: =SUM(F4:F26) -> 

Sheet MORT (hidden)
A1: Tаблица смертности и коммутационных чисел | X1: i = | Y1: 0.1
A2: Для мужчин | M2: Для женщин | X2: v = | Y2: =1/(1+Y1) -> 0.9090909091
A3: Норма доходности 5,5 % | M3: Норма доходности 5,5 %
A4: x | B4: lx | C4: dx | D4: qx | E4: px | F4: Dx | G4: Nx | H4: Sx | I4: Cx | J4: Mx | K4: Rx | M4: x | N4: lx | O4: dx | P4: qx | Q4: px | R4: Dx | S4: Nx | T4: Sx | U4: Cx | V4: Mx | W4: Rx
A5: 0 | B5: 100000 | C5: =B5-B6 -> 661 | F5: =$Y$2^A5*B5 -> 100000 | G5: =SUM(F5:F$106) -> 1083497.63 | H5: =SUM($G5:G$106) -> 11615094.27 | I5: =$Y$2^(A5+1)*C5 -> 600.9090909 | J5: =SUM($I5:I$106) -> 1500.215457 | K5: =SUM($J5:J$106) -> 27579.96921 | M5: 0 | N5: 100000 | O5: =N5-N6 -> 539 | R5: =$Y$2^M5*N5 -> 100000 | S5: =SUM(R5:R$106) -> 1089756.025 | T5: =SUM($S5:S$106) -> 11844695.04 | U5: =$Y$2^(M5+1)*O5 -> 490 | V5: =SUM($U5:U$106) -> 931.2704603 | W5: =SUM($V5:V$106) -> 12965.56703
A6: 1 | B6: 99339 | C6: =B6-B7 -> 61 | F6: =$Y$2^A6*B6 -> 90308.18182 | G6: =SUM(F6:F$106) -> 983497.63 | H6: =SUM($G6:G$106) -> 10531596.64 | I6: =$Y$2^(A6+1)*C6 -> 50.41322314 | J6: =SUM($I6:I$106) -> 899.3063662 | K6: =SUM($J6:J$106) -> 26079.75375 | M6: 1 | N6: 99461 | O6: =N6-N7 -> 51 | R6: =$Y$2^M6*N6 -> 90419.09091 | S6: =SUM(R6:R$106) -> 989756.0249 | T6: =SUM($S6:S$106) -> 10754939.01 | U6: =$Y$2^(M6+1)*O6 -> 42.14876033 | V6: =SUM($U6:U$106) -> 441.2704603 | W6: =SUM($V6:V$106) -> 12034.29657
A7: 2 | B7: 99278 | C7: 39 | F7: 82047.93388 | G7: =SUM(F7:F$106) -> 893189.4482 | H7: =SUM($G7:G$106) -> 9548099.008 | I7: 29.30127724 | J7: =SUM($I7:I$106) -> 848.893143 | K7: =SUM($J7:J$106) -> 25180.44739 | M7: 2 | N7: 99410 | O7: 28 | R7: 82157.02479 | S7: =SUM(R7:R$106) -> 899336.934 | T7: =SUM($S7:S$106) -> 9765182.987 | U7: 21.03681443 | V7: =SUM($U7:U$106) -> 399.1217 | W7: =SUM($V7:V$106) -> 11593.02611
A8: 3 | B8: 99239 | C8: 33 | F8: 74559.72953 | G8: =SUM(F8:F$106) -> 811141.5143 | H8: =SUM($G8:G$106) -> 8654909.56 | I8: 22.53944403 | J8: =SUM($I8:I$106) -> 819.5918658 | K8: =SUM($J8:J$106) -> 24331.55424 | M8: 3 | N8: 99382 | O8: 24 | R8: 74667.16754 | S8: =SUM(R8:R$106) -> 817179.9092 | T8: =SUM($S8:S$106) -> 8865846.053 | U8: 16.39232293 | V8: =SUM($U8:U$106) -> 378.0848855 | W8: =SUM($V8:V$106) -> 11193.90441
A9: 4 | B9: 99206 | C9: 26 | F9: 67759.03285 | G9: =SUM(F9:F$106) -> 736581.7847 | H9: =SUM($G9:G$106) -> 7843768.046 | I9: 16.1439544 | J9: =SUM($I9:I$106) -> 797.0524218 | K9: =SUM($J9:J$106) -> 23511.96238 | M9: 4 | N9: 99358 | O9: 22 | R9: 67862.8509 | S9: =SUM(R9:R$106) -> 742512.7417 | T9: =SUM($S9:S$106) -> 8048666.144 | U9: 13.66026911 | V9: =SUM($U9:U$106) -> 361.6925626 | W9: =SUM($V9:V$106) -> 10815.81953
A10: 5 | B10: 99180 | C10: 26 | F10: 61582.97682 | G10: =SUM(F10:F$106) -> 668822.7519 | H10: =SUM($G10:G$106) -> 7107186.261 | I10: 14.67632218 | J10: =SUM($I10:I$106) -> 780.9084674 | K10: =SUM($J10:J$106) -> 22714.90995 | M10: 5 | N10: 99336 | O10: 19 | R10: 61679.84055 | S10: =SUM(R10:R$106) -> 674649.8908 | T10: =SUM($S10:S$106) -> 7306153.402 | U10: 10.72500467 | V10: =SUM($U10:U$106) -> 348.0322935 | W10: =SUM($V10:V$106) -> 10454.12697
A11: 6 | B11: 99154 | C11: 22 | F11: 55969.84806 | G11: =SUM(F11:F$106) -> 607239.7751 | H11: =SUM($G11:G$106) -> 6438363.509 | I11: 11.2894786 | J11: =SUM($I11:I$106) -> 766.2321452 | K11: =SUM($J11:J$106) -> 21934.00149 | M11: 6 | N11: 99317 | O11: 16 | R11: 56061.85731 | S11: =SUM(R11:R$106) -> 612970.0502 | T11: =SUM($S11:S$106) -> 6631503.511 | U11: 8.210529892 | V11: =SUM($U11:U$106) -> 337.3072888 | W11: =SUM($V11:V$106) -> 10106.09467
A12: 7 | B12: 99132 | C12: 23 | F12: 50870.39058 | G12: =SUM(F12:F$106) -> 551269.927 | H12: =SUM($G12:G$106) -> 5831123.734 | I12: 10.72966974 | J12: =SUM($I12:I$106) -> 754.9426666 | K12: =SUM($J12:J$106) -> 21167.76934 | M12: 7 | N12: 99301 | O12: 18 | R12: 50957.1143 | S12: =SUM(R12:R$106) -> 556908.1929 | T12: =SUM($S12:S$106) -> 6018533.461 | U12: 8.397132844 | V12: =SUM($U12:U$106) -> 329.0967589 | W12: =SUM($V12:V$106) -> 9768.787383
A13: 8 | B13: 99109 | C13: 23 | F13: 46235.07995 | G13: =SUM(F13:F$106) -> 500399.5364 | H13: =SUM($G13:G$106) -> 5279853.807 | I13: 9.754245223 | J13: =SUM($I13:I$106) -> 744.2129968 | K13: =SUM($J13:J$106) -> 20412.82668 | M13: 8 | N13: 99283 | O13: 18 | R13: 46316.25223 | S13: =SUM(R13:R$106) -> 505951.0786 | T13: =SUM($S13:S$106) -> 5461625.268 | U13: 7.633757131 | V13: =SUM($U13:U$106) -> 320.6996261 | W13: =SUM($V13:V$106) -> 9439.690624
A14: 9 | B14: 99086 | C14: 23 | F14: 42022.13661 | G14: =SUM(F14:F$106) -> 454164.4565 | H14: =SUM($G14:G$106) -> 4779454.271 | I14: 8.867495657 | J14: =SUM($I14:I$106) -> 734.4587516 | K14: =SUM($J14:J$106) -> 19668.61368 | M14: 9 | N14: 99265 | O14: 16 | R14: 42098.05009 | S14: =SUM(R14:R$106) -> 459634.8264 | T14: =SUM($S14:S$106) -> 4955674.189 | U14: 6.168692631 | V14: =SUM($U14:U$106) -> 313.065869 | W14: =SUM($V14:V$106) -> 9118.990998
A15: 10 | B15: 99063 | C15: 26 | F15: 38193.07488 | G15: =SUM(F15:F$106) -> 412142.3199 | H15: =SUM($G15:G$106) -> 4325289.814 | I15: 9.112841387 | J15: =SUM($I15:I$106) -> 725.591256 | K15: =SUM($J15:J$106) -> 18934.15493 | M15: 10 | N15: 99249 | O15: 16 | R15: 38264.78593 | S15: =SUM(R15:R$106) -> 417536.7763 | T15: =SUM($S15:S$106) -> 4496039.363 | U15: 5.607902392 | V15: =SUM($U15:U$106) -> 306.8971763 | W15: =SUM($V15:V$106) -> 8805.925129
A16: 11 | B16: 99037 | C16: 26 | F16: 34711.86432 | G16: =SUM(F16:F$106) -> 373949.245 | H16: =SUM($G16:G$106) -> 3913147.495 | I16: 8.28440126 | J16: =SUM($I16:I$106) -> 716.4784146 | K16: =SUM($J16:J$106) -> 18208.56367 | M16: 11 | N16: 99233 | O16: 18 | R16: 34780.56113 | S16: =SUM(R16:R$106) -> 379271.9904 | T16: =SUM($S16:S$106) -> 4078502.587 | U16: 5.735354719 | V16: =SUM($U16:U$106) -> 301.2892739 | W16: =SUM($V16:V$106) -> 8499.027953
A17: 12 | B17: 99011 | C17: 30 | F17: 31547.95589 | G17: =SUM(F17:F$106) -> 339237.3807 | H17: =SUM($G17:G$106) -> 3539198.25 | I17: 8.689931392 | J17: =SUM($I17:I$106) -> 708.1940133 | K17: =SUM($J17:J$106) -> 17492.08526 | M17: 12 | N17: 99215 | O17: 22 | R17: 31612.95658 | S17: =SUM(R17:R$106) -> 344491.4293 | T17: =SUM($S17:S$106) -> 3699230.596 | U17: 6.372616354 | V17: =SUM($U17:U$106) -> 295.5539192 | W17: =SUM($V17:V$106) -> 8197.738679
A18: 13 | B18: 98981 | C18: 37 | F18: 28671.26997 | G18: =SUM(F18:F$106) -> 307689.4248 | H18: =SUM($G18:G$106) -> 3199960.869 | I18: 9.743256409 | J18: =SUM($I18:I$106) -> 699.5040819 | K18: =SUM($J18:J$106) -> 16783.89124 | M18: 13 | N18: 99193 | O18: 23 | R18: 28732.67882 | S18: =SUM(R18:R$106) -> 312878.4727 | T18: =SUM($S18:S$106) -> 3354739.167 | U18: 6.056618849 | V18: =SUM($U18:U$106) -> 289.1813029 | W18: =SUM($V18:V$106) -> 7902.184759
A19: 14 | B19: 98944 | C19: 42 | F19: 26055.04763 | G19: =SUM(F19:F$106) -> 279018.1548 | H19: =SUM($G19:G$106) -> 2892271.444 | I19: 10.05446607 | J19: =SUM($I19:I$106) -> 689.7608255 | K19: =SUM($J19:J$106) -> 16084.38716 | M19: 14 | N19: 99170 | O19: 33 | R19: 26114.56049 | S19: =SUM(R19:R$106) -> 284145.7939 | T19: =SUM($S19:S$106) -> 3041860.694 | U19: 7.899937629 | V19: =SUM($U19:U$106) -> 283.124684 | W19: =SUM($V19:V$106) -> 7613.003456
A20: 15 | B20: 98902 | C20: 55 | F20: 23676.35247 | G20: =SUM(F20:F$106) -> 252963.1072 | H20: =SUM($G20:G$106) -> 2613253.289 | I20: 11.96960247 | J20: =SUM($I20:I$106) -> 679.7063594 | K20: =SUM($J20:J$106) -> 15394.62634 | M20: 15 | N20: 99137 | O20: 37 | R20: 23732.6096 | S20: =SUM(R20:R$106) -> 258031.2334 | T20: =SUM($S20:S$106) -> 2757714.901 | U20: 8.052278024 | V20: =SUM($U20:U$106) -> 275.2247464 | W20: =SUM($V20:V$106) -> 7329.878772
A21: 16 | B21: 98847 | C21: 64 | F21: 21511.98719 | G21: =SUM(F21:F$106) -> 229286.7547 | H21: =SUM($G21:G$106) -> 2360290.182 | I21: 12.66205881 | J21: =SUM($I21:I$106) -> 667.736757 | K21: =SUM($J21:J$106) -> 14714.91998 | M21: 16 | N21: 99100 | O21: 35 | R21: 21567.04736 | S21: =SUM(R21:R$106) -> 234298.6238 | T21: =SUM($S21:S$106) -> 2499683.667 | U21: 6.924563412 | V21: =SUM($U21:U$106) -> 267.1724684 | W21: =SUM($V21:V$106) -> 7054.654026
A22: 17 | B22: 98783 | C22: 82 | F22: 19543.68993 | G22: =SUM(F22:F$106) -> 207774.7675 | H22: =SUM($G22:G$106) -> 2131003.427 | I22: 14.74842077 | J22: =SUM($I22:I$106) -> 655.0746982 | K22: =SUM($J22:J$106) -> 14047.18322 | M22: 17 | N22: 99065 | O22: 38 | R22: 19599.48212 | S22: =SUM(R22:R$106) -> 212731.5764 | T22: =SUM($S22:S$106) -> 2265385.043 | U22: 6.834634017 | V22: =SUM($U22:U$106) -> 260.247905 | W22: =SUM($V22:V$106) -> 6787.481558
A23: 18 | B23: 98701 | C23: 112 | F23: 17752.24242 | G23: =SUM(F23:F$106) -> 188231.0776 | H23: =SUM($G23:G$106) -> 1923228.66 | I23: 18.31289497 | J23: =SUM($I23:I$106) -> 640.3262774 | K23: =SUM($J23:J$106) -> 13392.10852 | M23: 18 | N23: 99027 | O23: 46 | R23: 17810.87639 | S23: =SUM(R23:R$106) -> 193132.0943 | T23: =SUM($S23:S$106) -> 2052653.467 | U23: 7.521367578 | V23: =SUM($U23:U$106) -> 253.4132709 | W23: =SUM($V23:V$106) -> 6527.233653
A24: 19 | B24: 98589 | C24: 121 | F24: 16120.08931 | G24: =SUM(F24:F$106) -> 170478.8352 | H24: =SUM($G24:G$106) -> 1734997.582 | I24: 17.98587899 | J24: =SUM($I24:I$106) -> 622.0133824 | K24: =SUM($J24:J$106) -> 12751.78224 | M24: 19 | N24: 98981 | O24: 47 | R24: 16184.18444 | S24: =SUM(R24:R$106) -> 175321.2179 | T24: =SUM($S24:S$106) -> 1859521.373 | U24: 6.986250517 | V24: =SUM($U24:U$106) -> 245.8919034 | W24: =SUM($V24:V$106) -> 6273.820382
A25: 20 | B25: 98468 | C25: 142 | F25: 14636.64076 | G25: =SUM(F25:F$106) -> 154358.7459 | H25: =SUM($G25:G$106) -> 1564518.747 | I25: 19.18854107 | J25: =SUM($I25:I$106) -> 604.0275034 | K25: =SUM($J25:J$106) -> 12129.76886 | M25: 20 | N25: 98934 | O25: 49 | R25: 14705.90869 | S25: =SUM(R25:R$106) -> 159137.0335 | T25: =SUM($S25:S$106) -> 1684200.155 | U25: =$Y$2^(M25+1)*O25 -> 6.621397976 | V25: =SUM($U25:U$106) -> 238.9056528 | W25: =SUM($V25:V$106) -> 6027.928478
A26: 21 | B26: 98326 | C26: 165 | F26: 13286.84852 | G26: =SUM(F26:F$106) -> 139722.1051 | H26: =SUM($G26:G$106) -> 1410160.001 | I26: 20.26958564 | J26: =SUM($I26:I$106) -> 584.8389623 | K26: =SUM($J26:J$106) -> 11525.74136 | M26: 21 | N26: 98885 | O26: 44 | R26: 13362.38651 | S26: =SUM(R26:R$106) -> 144431.1248 | T26: =SUM($S26:S$106) -> 1525063.121 | U26: 5.405222837 | V26: =SUM($U26:U$106) -> 232.2842549 | W26: =SUM($V26:V$106) -> 5789.022826
A27: 22 | B27: 98161 | C27: 166 | F27: 12058.68361 | G27: =SUM(F27:F$106) -> 126435.2566 | H27: =SUM($G27:G$106) -> 1270437.896 | I27: 18.53857419 | J27: =SUM($I27:I$106) -> 564.5693767 | K27: =SUM($J27:J$106) -> 10940.9024 | M27: 22 | N27: 98841 | O27: 48 | R27: 12142.21887 | S27: =SUM(R27:R$106) -> 131068.7383 | T27: =SUM($S27:S$106) -> 1380631.997 | U27: 5.360551574 | V27: =SUM($U27:U$106) -> 226.879032 | W27: =SUM($V27:V$106) -> 5556.738571
A28: 23 | B28: 97995 | C28: 177 | F28: 10943.90107 | G28: =SUM(F28:F$106) -> 114376.573 | H28: =SUM($G28:G$106) -> 1144002.64 | I28: 17.97003085 | J28: =SUM($I28:I$106) -> 546.0308025 | K28: =SUM($J28:J$106) -> 10376.33302 | M28: 23 | N28: 98793 | O28: 55 | R28: 11033.02024 | S28: =SUM(R28:R$106) -> 118926.5194 | T28: =SUM($S28:S$106) -> 1249563.258 | U28: 5.58390789 | V28: =SUM($U28:U$106) -> 221.5184805 | W28: =SUM($V28:V$106) -> 5329.859539
A29: 24 | B29: 97818 | C29: 198 | F29: 9931.030945 | G29: =SUM(F29:F$106) -> 103432.6719 | H29: =SUM($G29:G$106) -> 1029626.067 | I29: 18.27460764 | J29: =SUM($I29:I$106) -> 528.0607717 | K29: =SUM($J29:J$106) -> 9830.302217 | M29: 24 | N29: 98738 | O29: 59 | R29: 10024.43449 | S29: =SUM(R29:R$106) -> 107893.4991 | T29: =SUM($S29:S$106) -> 1130636.739 | U29: 5.445463892 | V29: =SUM($U29:U$106) -> 215.9345726 | W29: =SUM($V29:V$106) -> 5108.341058
A30: 25 | B30: 97620 | C30: 203 | F30: 9009.935342 | G30: =SUM(F30:F$106) -> 93501.64096 | H30: =SUM($G30:G$106) -> 926193.3946 | I30: 17.03280694 | J30: =SUM($I30:I$106) -> 509.786164 | K30: =SUM($J30:J$106) -> 9302.241445 | M30: 25 | N30: 98679 | O30: 63 | R30: 9107.676804 | S30: =SUM(R30:R$106) -> 97869.06465 | T30: =SUM($S30:S$106) -> 1022743.24 | U30: 5.286043532 | V30: =SUM($U30:U$106) -> 210.4891087 | W30: =SUM($V30:V$106) -> 4892.406486
A31: 26 | B31: 97417 | C31: 224 | F31: 8173.817504 | G31: =SUM(F31:F$106) -> 84491.70562 | H31: =SUM($G31:G$106) -> 832691.7537 | I31: 17.08620132 | J31: =SUM($I31:I$106) -> 492.7533571 | K31: =SUM($J31:J$106) -> 8792.455281 | M31: 26 | N31: 98616 | O31: 76 | R31: 8274.420142 | S31: =SUM(R31:R$106) -> 88761.38785 | T31: =SUM($S31:S$106) -> 924874.1752 | U31: 5.797104018 | V31: =SUM($U31:U$106) -> 205.2030651 | W31: =SUM($V31:V$106) -> 4681.917377
A32: 27 | B32: 97193 | C32: 262 | F32: 7413.656984 | G32: =SUM(F32:F$106) -> 76317.88811 | H32: =SUM($G32:G$106) -> 748200.0481 | I32: 18.16795757 | J32: =SUM($I32:I$106) -> 475.6671558 | K32: =SUM($J32:J$106) -> 8299.701924 | M32: 27 | N32: 98540 | O32: 90 | R32: 7516.403025 | S32: =SUM(R32:R$106) -> 80486.9677 | T32: =SUM($S32:S$106) -> 836112.7873 | U32: 6.240901454 | V32: =SUM($U32:U$106) -> 199.4059611 | W32: =SUM($V32:V$106) -> 4476.714312
A33: 28 | B33: 96931 | C33: 299 | F33: 6721.52021 | G33: =SUM(F33:F$106) -> 68904.23113 | H33: =SUM($G33:G$106) -> 671882.16 | I33: 18.84878318 | J33: =SUM($I33:I$106) -> 457.4991982 | K33: =SUM($J33:J$106) -> 7824.034768 | M33: 28 | N33: 98450 | O33: 101 | R33: 6826.852758 | S33: =SUM(R33:R$106) -> 72970.56468 | T33: =SUM($S33:S$106) -> 755625.8196 | U33: 6.366980272 | V33: =SUM($U33:U$106) -> 193.1650597 | W33: =SUM($V33:V$106) -> 4277.308351
A34: 29 | B34: 96632 | C34: 327 | F34: 6091.624135 | G34: =SUM(F34:F$106) -> 62182.71092 | H34: =SUM($G34:G$106) -> 602977.9288 | I34: 18.73989693 | J34: =SUM($I34:I$106) -> 438.650415 | K34: =SUM($J34:J$106) -> 7366.53557 | M34: 29 | N34: 98349 | O34: 107 | R34: 6199.862799 | S34: =SUM(R34:R$106) -> 66143.71192 | T34: =SUM($S34:S$106) -> 682655.2549 | U34: 6.132015203 | V34: =SUM($U34:U$106) -> 186.7980794 | W34: =SUM($V34:V$106) -> 4084.143291
A35: 30 | B35: 96305 | C35: 345 | F35: 5519.100226 | G35: =SUM(F35:F$106) -> 56091.08678 | H35: =SUM($G35:G$106) -> 540795.2179 | I35: 17.97404626 | J35: =SUM($I35:I$106) -> 419.9105181 | K35: =SUM($J35:J$106) -> 6927.885155 | M35: 30 | N35: 98242 | O35: 117 | R35: 5630.106893 | S35: =SUM(R35:R$106) -> 59943.84912 | T35: =SUM($S35:S$106) -> 616511.543 | U35: 6.095546124 | V35: =SUM($U35:U$106) -> 180.6660642 | W35: =SUM($V35:V$106) -> 3897.345212
A36: 31 | B36: 95960 | C36: 379 | F36: 4999.389795 | G36: =SUM(F36:F$106) -> 50571.98656 | H36: =SUM($G36:G$106) -> 484704.1311 | I36: 17.95036504 | J36: =SUM($I36:I$106) -> 401.9364718 | K36: =SUM($J36:J$106) -> 6507.974637 | M36: 31 | N36: 98125 | O36: 130 | R36: 5112.183448 | S36: =SUM(R36:R$106) -> 54313.74223 | T36: =SUM($S36:S$106) -> 556567.6939 | U36: 6.157117297 | V36: =SUM($U36:U$106) -> 174.5705181 | W36: =SUM($V36:V$106) -> 3716.679148
A37: 32 | B37: 95581 | C37: 440 | F37: 4526.949449 | G37: =SUM(F37:F$106) -> 45572.59676 | H37: =SUM($G37:G$106) -> 434132.1446 | I37: 18.9449763 | J37: =SUM($I37:I$106) -> 383.9861068 | K37: =SUM($J37:J$106) -> 6106.038165 | M37: 32 | N37: 97995 | O37: 153 | R37: 4641.282381 | S37: =SUM(R37:R$106) -> 49201.55878 | T37: =SUM($S37:S$106) -> 502253.9517 | U37: 6.58768494 | V37: =SUM($U37:U$106) -> 168.4134008 | W37: =SUM($V37:V$106) -> 3542.108629
A38: 33 | B38: 95141 | C38: 491 | F38: 4096.463614 | G38: =SUM(F38:F$106) -> 41045.64731 | H38: =SUM($G38:G$106) -> 388559.5478 | I38: 19.21897389 | J38: =SUM($I38:I$106) -> 365.0411305 | K38: =SUM($J38:J$106) -> 5722.052058 | M38: 33 | N38: 97842 | O38: 170 | R38: 4212.759934 | S38: =SUM(R38:R$106) -> 44560.2764 | T38: =SUM($S38:S$106) -> 453052.3929 | U38: 6.654227212 | V38: =SUM($U38:U$106) -> 161.8257158 | W38: =SUM($V38:V$106) -> 3373.695229
A39: 34 | B39: 94650 | C39: 529 | F39: 3704.838857 | G39: =SUM(F39:F$106) -> 36949.1837 | H39: =SUM($G39:G$106) -> 347513.9005 | I39: 18.82399035 | J39: =SUM($I39:I$106) -> 345.8221566 | K39: =SUM($J39:J$106) -> 5357.010928 | M39: 34 | N39: 97672 | O39: 193 | R39: 3823.127531 | S39: =SUM(R39:R$106) -> 40347.51647 | T39: =SUM($S39:S$106) -> 408492.1165 | U39: 6.867731829 | V39: =SUM($U39:U$106) -> 155.1714886 | W39: =SUM($V39:V$106) -> 3211.869513
A40: 35 | B40: 94121 | C40: 568 | F40: 3349.211334 | G40: =SUM(F40:F$106) -> 33244.34484 | H40: =SUM($G40:G$106) -> 310564.7168 | I40: 18.37433669 | J40: =SUM($I40:I$106) -> 326.9981663 | K40: =SUM($J40:J$106) -> 5011.188771 | M40: 35 | N40: 97479 | O40: 196 | R40: 3468.702751 | S40: =SUM(R40:R$106) -> 36524.38893 | T40: =SUM($S40:S$106) -> 368144.6 | U40: 6.340440124 | V40: =SUM($U40:U$106) -> 148.3037568 | W40: =SUM($V40:V$106) -> 3056.698024
A41: 36 | B41: 93553 | C41: 587 | F41: 3026.36324 | G41: =SUM(F41:F$106) -> 29895.13351 | H41: =SUM($G41:G$106) -> 277320.372 | I41: 17.26270108 | J41: =SUM($I41:I$106) -> 308.6238296 | K41: =SUM($J41:J$106) -> 4684.190605 | M41: 36 | N41: 97283 | O41: 198 | R41: 3147.025697 | S41: =SUM(R41:R$106) -> 33055.68618 | T41: =SUM($S41:S$106) -> 331620.2111 | U41: 5.822853175 | V41: =SUM($U41:U$106) -> 141.9633167 | W41: =SUM($V41:V$106) -> 2908.394267
A42: 37 | B42: 92966 | C42: 656 | F42: 2733.976608 | G42: =SUM(F42:F$106) -> 26868.77027 | H42: =SUM($G42:G$106) -> 247425.2384 | I42: 17.53807017 | J42: =SUM($I42:I$106) -> 291.3611285 | K42: =SUM($J42:J$106) -> 4375.566775 | M42: 37 | N42: 97085 | O42: 229 | R42: 2855.109599 | S42: =SUM(R42:R$106) -> 29908.66049 | T42: =SUM($S42:S$106) -> 298564.5249 | U42: 6.122283642 | V42: =SUM($U42:U$106) -> 136.1404635 | W42: =SUM($V42:V$106) -> 2766.430951
A43: 38 | B43: 92310 | C43: 665 | F43: 2467.895209 | G43: =SUM(F43:F$106) -> 24134.79366 | H43: =SUM($G43:G$106) -> 220556.4682 | I43: 16.16243994 | J43: =SUM($I43:I$106) -> 273.8230583 | K43: =SUM($J43:J$106) -> 4084.205647 | M43: 38 | N43: 96856 | O43: 231 | R43: 2589.431897 | S43: =SUM(R43:R$106) -> 27053.55089 | T43: =SUM($S43:S$106) -> 268655.8644 | U43: 5.614321243 | V43: =SUM($U43:U$106) -> 130.0181798 | W43: =SUM($V43:V$106) -> 2630.290487
A44: 39 | B44: 91645 | C44: 711 | F44: 2227.37866 | G44: =SUM(F44:F$106) -> 21666.89845 | H44: =SUM($G44:G$106) -> 196421.6745 | I44: 15.70949392 | J44: =SUM($I44:I$106) -> 257.6606184 | K44: =SUM($J44:J$106) -> 3810.382588 | M44: 39 | N44: 96625 | O44: 247 | R44: 2348.414676 | S44: =SUM(R44:R$106) -> 24464.11899 | T44: =SUM($S44:S$106) -> 241602.3135 | U44: 5.457447254 | V44: =SUM($U44:U$106) -> 124.4038586 | W44: =SUM($V44:V$106) -> 2500.272307
A45: 40 | B45: 90934 | C45: 715 | F45: 2009.180197 | G45: =SUM(F45:F$106) -> 19439.51979 | H45: =SUM($G45:G$106) -> 174754.7761 | I45: 14.3617033 | J45: =SUM($I45:I$106) -> 241.9511245 | K45: =SUM($J45:J$106) -> 3552.72197 | M45: 40 | N45: 96378 | O45: 252 | R45: 2129.464985 | S45: =SUM(R45:R$106) -> 22115.70432 | T45: =SUM($S45:S$106) -> 217138.1945 | U45: 5.061747177 | V45: =SUM($U45:U$106) -> 118.9464114 | W45: =SUM($V45:V$106) -> 2375.868449
A46: 41 | B46: 90219 | C46: 714 | F46: 1812.165748 | G46: =SUM(F46:F$106) -> 17430.3396 | H46: =SUM($G46:G$106) -> 155315.2563 | I46: 13.03783364 | J46: =SUM($I46:I$106) -> 227.5894212 | K46: =SUM($J46:J$106) -> 3310.770846 | M46: 41 | N46: 96126 | O46: 263 | R46: 1930.815512 | S46: =SUM(R46:R$106) -> 19986.23933 | T46: =SUM($S46:S$106) -> 195022.4902 | U46: 4.802451326 | V46: =SUM($U46:U$106) -> 113.8846642 | W46: =SUM($V46:V$106) -> 2256.922037
A47: 42 | B47: 89505 | C47: 737 | F47: 1634.385574 | G47: =SUM(F47:F$106) -> 15618.17385 | H47: =SUM($G47:G$106) -> 137884.9167 | I47: 12.2343817 | J47: =SUM($I47:I$106) -> 214.5515875 | K47: =SUM($J47:J$106) -> 3083.181424 | M47: 42 | N47: 95863 | O47: 268 | R47: 1750.484378 | S47: =SUM(R47:R$106) -> 18055.42382 | T47: =SUM($S47:S$106) -> 175036.2509 | U47: 4.448866074 | V47: =SUM($U47:U$106) -> 109.0822128 | W47: =SUM($V47:V$106) -> 2143.037373
A48: 43 | B48: 88768 | C48: 767 | F48: 1473.570685 | G48: =SUM(F48:F$106) -> 13983.78827 | H48: =SUM($G48:G$106) -> 122266.7428 | I48: 11.57489918 | J48: =SUM($I48:I$106) -> 202.3172058 | K48: =SUM($J48:J$106) -> 2868.629837 | M48: 43 | N48: 95595 | O48: 277 | R48: 1586.900569 | S48: =SUM(R48:R$106) -> 16304.93944 | T48: =SUM($S48:S$106) -> 156980.8271 | U48: 4.180243903 | V48: =SUM($U48:U$106) -> 104.6333468 | W48: =SUM($V48:V$106) -> 2033.95516
A49: 44 | B49: 88001 | C49: 786 | F49: 1328.034815 | G49: =SUM(F49:F$106) -> 12510.21759 | H49: =SUM($G49:G$106) -> 108282.9545 | I49: 10.78330065 | J49: =SUM($I49:I$106) -> 190.7423066 | K49: =SUM($J49:J$106) -> 2666.312631 | M49: 44 | N49: 95318 | O49: 300 | R49: 1438.456637 | S49: =SUM(R49:R$106) -> 14718.03887 | T49: =SUM($S49:S$106) -> 140675.8876 | U49: 4.115763606 | V49: =SUM($U49:U$106) -> 100.4531029 | W49: =SUM($V49:V$106) -> 1929.321814
A50: 45 | B50: 87215 | C50: 782 | F50: 1196.521076 | G50: =SUM(F50:F$106) -> 11182.18277 | H50: =SUM($G50:G$106) -> 95772.73695 | I50: 9.753112546 | J50: =SUM($I50:I$106) -> 179.959006 | K50: =SUM($J50:J$106) -> 2475.570324 | M50: 45 | N50: 95018 | O50: 304 | R50: 1303.572088 | S50: =SUM(R50:R$106) -> 13279.58223 | T50: =SUM($S50:S$106) -> 125957.8488 | U50: 3.791491322 | V50: =SUM($U50:U$106) -> 96.33733927 | W50: =SUM($V50:V$106) -> 1828.868711
A51: 46 | B51: 86433 | C51: 808 | F51: 1077.993321 | G51: =SUM(F51:F$106) -> 9985.661698 | H51: =SUM($G51:G$106) -> 84590.55418 | I51: 9.161258936 | J51: =SUM($I51:I$106) -> 170.2058934 | K51: =SUM($J51:J$106) -> 2295.611318 | M51: 46 | N51: 94714 | O51: 325 | R51: 1181.274043 | S51: =SUM(R51:R$106) -> 11976.01015 | T51: =SUM($S51:S$106) -> 112678.2665 | U51: 3.68491232 | V51: =SUM($U51:U$106) -> 92.54584794 | W51: =SUM($V51:V$106) -> 1732.531372
A52: 47 | B52: 85625 | C52: 878 | F52: 970.8326689 | G52: =SUM(F52:F$106) -> 8907.668378 | H52: =SUM($G52:G$106) -> 74604.89248 | I52: 9.049938508 | J52: =SUM($I52:I$106) -> 161.0446345 | K52: =SUM($J52:J$106) -> 2125.405425 | M52: 47 | N52: 94389 | O52: 344 | R52: 1070.200581 | S52: =SUM(R52:R$106) -> 10794.7361 | T52: =SUM($S52:S$106) -> 100702.2564 | U52: 3.545761785 | V52: =SUM($U52:U$106) -> 88.86093562 | W52: =SUM($V52:V$106) -> 1639.985524
A53: 48 | B53: 84747 | C53: 934 | F53: 873.525215 | G53: =SUM(F53:F$106) -> 7936.835709 | H53: =SUM($G53:G$106) -> 65697.2241 | I53: 8.751959585 | J53: =SUM($I53:I$106) -> 151.994696 | K53: =SUM($J53:J$106) -> 1964.36079 | M53: 48 | N53: 94045 | O53: 353 | R53: 969.3638576 | S53: =SUM(R53:R$106) -> 9724.535522 | T53: =SUM($S53:S$106) -> 89907.52027 | U53: 3.307753462 | V53: =SUM($U53:U$106) -> 85.31517384 | W53: =SUM($V53:V$106) -> 1551.124588
A54: 49 | B54: 83813 | C54: 998 | F54: 785.3618722 | G54: =SUM(F54:F$106) -> 7063.310494 | H54: =SUM($G54:G$106) -> 57760.38839 | I54: 8.501514177 | J54: =SUM($I54:I$106) -> 143.2427364 | K54: =SUM($J54:J$106) -> 1812.366094 | M54: 49 | N54: 93692 | O54: 377 | R54: 877.9321171 | S54: =SUM(R54:R$106) -> 8755.171664 | T54: =SUM($S54:S$106) -> 80182.98475 | U54: 3.211493832 | V54: =SUM($U54:U$106) -> 82.00742038 | W54: =SUM($V54:V$106) -> 1465.809414
A55: 50 | B55: 82815 | C55: 1048 | F55: 705.4638242 | G55: =SUM(F55:F$106) -> 6277.948622 | H55: =SUM($G55:G$106) -> 50697.0779 | I55: 8.115856128 | J55: =SUM($I55:I$106) -> 134.7412222 | K55: =SUM($J55:J$106) -> 1669.123358 | M55: 50 | N55: 93315 | O55: 396 | R55: 794.9086126 | S55: =SUM(R55:R$106) -> 7877.239547 | T55: =SUM($S55:S$106) -> 71427.81309 | U55: 3.066678461 | V55: =SUM($U55:U$106) -> 78.79592655 | W55: =SUM($V55:V$106) -> 1383.801994
A56: 51 | B56: 81767 | C56: 1073 | F56: 633.2148932 | G56: =SUM(F56:F$106) -> 5572.484797 | H56: =SUM($G56:G$106) -> 44419.12928 | I56: 7.554054151 | J56: =SUM($I56:I$106) -> 126.6253661 | K56: =SUM($J56:J$106) -> 1534.382136 | M56: 51 | N56: 92919 | O56: 411 | R56: 719.5775149 | S56: =SUM(R56:R$106) -> 7082.330934 | T56: =SUM($S56:S$106) -> 63550.57354 | U56: 2.893491385 | V56: =SUM($U56:U$106) -> 75.72924809 | W56: =SUM($V56:V$106) -> 1305.006067
A57: 52 | B57: 80694 | C57: 1162 | F57: 568.0958487 | G57: =SUM(F57:F$106) -> 4939.269904 | H57: =SUM($G57:G$106) -> 38846.64448 | I57: 7.436932071 | J57: =SUM($I57:I$106) -> 119.071312 | K57: =SUM($J57:J$106) -> 1407.75677 | M57: 52 | N57: 92508 | O57: 452 | R57: 651.2678858 | S57: =SUM(R57:R$106) -> 6362.75342 | T57: =SUM($S57:S$106) -> 56468.24261 | U57: 2.892851374 | V57: =SUM($U57:U$106) -> 72.8357567 | W57: =SUM($V57:V$106) -> 1229.276819
A58: 53 | B58: 79532 | C58: 1229 | F58: 509.0138395 | G58: =SUM(F58:F$106) -> 4371.174056 | H58: =SUM($G58:G$106) -> 33907.37458 | I58: 7.150672442 | J58: =SUM($I58:I$106) -> 111.6343799 | K58: =SUM($J58:J$106) -> 1288.685458 | M58: 53 | N58: 92056 | O58: 463 | R58: 589.1688629 | S58: =SUM(R58:R$106) -> 5711.485534 | T58: =SUM($S58:S$106) -> 50105.48919 | U58: 2.693866022 | V58: =SUM($U58:U$106) -> 69.94290533 | W58: =SUM($V58:V$106) -> 1156.441062
A59: 54 | B59: 78303 | C59: 1298 | F59: 455.5891816 | G59: =SUM(F59:F$106) -> 3862.160216 | H59: =SUM($G59:G$106) -> 29536.20052 | I59: 6.86557647 | J59: =SUM($I59:I$106) -> 104.4837074 | K59: =SUM($J59:J$106) -> 1177.051078 | M59: 54 | N59: 91593 | O59: 514 | R59: 532.9141912 | S59: =SUM(R59:R$106) -> 5122.316671 | T59: =SUM($S59:S$106) -> 44394.00365 | U59: 2.718725967 | V59: =SUM($U59:U$106) -> 67.2490393 | W59: =SUM($V59:V$106) -> 1086.498157
A60: 55 | B60: 77005 | C60: 1339 | F60: 407.3064068 | G60: =SUM(F60:F$106) -> 3406.571034 | H60: =SUM($G60:G$106) -> 25674.04031 | I60: 6.438581659 | J60: =SUM($I60:I$106) -> 97.61813098 | K60: =SUM($J60:J$106) -> 1072.56737 | M60: 55 | N60: 91079 | O60: 550 | R60: 481.7487206 | S60: =SUM(R60:R$106) -> 4589.40248 | T60: =SUM($S60:S$106) -> 39271.68698 | U60: 2.644675066 | V60: =SUM($U60:U$106) -> 64.53031334 | W60: =SUM($V60:V$106) -> 1019.249118
A61: 56 | B61: 75666 | C61: 1425 | F61: 363.83997 | G61: =SUM(F61:F$106) -> 2999.264628 | H61: =SUM($G61:G$106) -> 22267.46927 | I61: 6.229193336 | J61: =SUM($I61:I$106) -> 91.17954932 | K61: =SUM($J61:J$106) -> 974.9492394 | M61: 56 | N61: 90529 | O61: 603 | R61: 435.3087073 | S61: =SUM(R61:R$106) -> 4107.653759 | T61: =SUM($S61:S$106) -> 34682.2845 | U61: 2.635932338 | V61: =SUM($U61:U$106) -> 61.88563827 | W61: =SUM($V61:V$106) -> 954.7188045
A62: 57 | B62: 74241 | C62: 1544 | F62: 324.5344158 | G62: =SUM(F62:F$106) -> 2635.424658 | H62: =SUM($G62:G$106) -> 19268.20464 | I62: 6.135805111 | J62: =SUM($I62:I$106) -> 84.95035598 | K62: =SUM($J62:J$106) -> 883.76969 | M62: 57 | N62: 89926 | O62: 657 | R62: 393.0992561 | S62: =SUM(R62:R$106) -> 3672.345052 | T62: =SUM($S62:S$106) -> 30574.63074 | U62: 2.610896346 | V62: =SUM($U62:U$106) -> 59.24970593 | W62: =SUM($V62:V$106) -> 892.8331662
A63: 58 | B63: 72697 | C63: 1624 | F63: 288.8954819 | G63: =SUM(F63:F$106) -> 2310.890242 | H63: =SUM($G63:G$106) -> 16632.77999 | I63: 5.867020431 | J63: =SUM($I63:I$106) -> 78.81455087 | K63: =SUM($J63:J$106) -> 798.8193341 | M63: 58 | N63: 89269 | O63: 693 | R63: 354.7520637 | S63: =SUM(R63:R$106) -> 3279.245796 | T63: =SUM($S63:S$106) -> 26902.28569 | U63: 2.503599236 | V63: =SUM($U63:U$106) -> 56.63880959 | W63: =SUM($V63:V$106) -> 833.5834603
A64: 59 | B64: 71073 | C64: 1692 | F64: 256.7652359 | G64: =SUM(F64:F$106) -> 2021.99476 | H64: =SUM($G64:G$106) -> 14321.88974 | I64: 5.556985316 | J64: =SUM($I64:I$106) -> 72.94753044 | K64: =SUM($J64:J$106) -> 720.0047832 | M64: 59 | N64: 88576 | O64: 714 | R64: 319.9982769 | S64: =SUM(R64:R$106) -> 2924.493732 | T64: =SUM($S64:S$106) -> 23623.03989 | U64: 2.344968981 | V64: =SUM($U64:U$106) -> 54.13521035 | W64: =SUM($V64:V$106) -> 776.9446507
A65: 60 | B65: 69381 | C65: 1887 | F65: 227.8659564 | G65: =SUM(F65:F$106) -> 1765.229524 | H65: =SUM($G65:G$106) -> 12299.89498 | I65: 5.634016383 | J65: =SUM($I65:I$106) -> 67.39054512 | K65: =SUM($J65:J$106) -> 647.0572528 | M65: 60 | N65: 87862 | O65: 788 | R65: 288.5625555 | S65: =SUM(R65:R$106) -> 2604.495455 | T65: =SUM($S65:S$106) -> 20698.54616 | U65: 2.352731802 | V65: =SUM($U65:U$106) -> 51.79024137 | W65: =SUM($V65:V$106) -> 722.8094403
A66: 61 | B66: 67494 | C66: 1992 | F66: 201.5168531 | G66: =SUM(F66:F$106) -> 1537.363568 | H66: =SUM($G66:G$106) -> 10534.66546 | I66: 5.406831736 | J66: =SUM($I66:I$106) -> 61.75652874 | K66: =SUM($J66:J$106) -> 579.6667076 | M66: 61 | N66: 87074 | O66: 849 | R66: 259.9768641 | S66: =SUM(R66:R$106) -> 2315.9329 | T66: =SUM($S66:S$106) -> 18094.05071 | U66: 2.304417743 | V66: =SUM($U66:U$106) -> 49.43750957 | W66: =SUM($V66:V$106) -> 671.0191989
A67: 62 | B67: 65502 | C67: 2004 | F67: 177.7903074 | G67: =SUM(F67:F$106) -> 1335.846715 | H67: =SUM($G67:G$106) -> 8997.301892 | I67: 4.944911829 | J67: =SUM($I67:I$106) -> 56.34969701 | K67: =SUM($J67:J$106) -> 517.9101789 | M67: 62 | N67: 86225 | O67: 901 | R67: 234.038186 | S67: =SUM(R67:R$106) -> 2055.956036 | T67: =SUM($S67:S$106) -> 15778.11781 | U67: 2.223236306 | V67: =SUM($U67:U$106) -> 47.13309183 | W67: =SUM($V67:V$106) -> 621.5816894
A68: 63 | B68: 63498 | C68: 2058 | F68: 156.6826404 | G68: =SUM(F68:F$106) -> 1158.056407 | H68: =SUM($G68:G$106) -> 7661.455178 | I68: 4.616507233 | J68: =SUM($I68:I$106) -> 51.40478518 | K68: =SUM($J68:J$106) -> 461.5604819 | M68: 63 | N68: 85324 | O68: 953 | R68: 210.5387509 | S68: =SUM(R68:R$106) -> 1821.91785 | T68: =SUM($S68:S$106) -> 13722.16177 | U68: 2.137770356 | V68: =SUM($U68:U$106) -> 44.90985552 | W68: =SUM($V68:V$106) -> 574.4485975
A69: 64 | B69: 61440 | C69: 2131 | F69: 137.8222567 | G69: =SUM(F69:F$106) -> 1001.373767 | H69: =SUM($G69:G$106) -> 6503.398771 | I69: 4.345691719 | J69: =SUM($I69:I$106) -> 46.78827794 | K69: =SUM($J69:J$106) -> 410.1556967 | M69: 64 | N69: 84371 | O69: 1094 | R69: 189.2610941 | S69: =SUM(R69:R$106) -> 1611.379099 | T69: =SUM($S69:S$106) -> 11900.24392 | U69: 2.230965153 | V69: =SUM($U69:U$106) -> 42.77208516 | W69: =SUM($V69:V$106) -> 529.538742
A70: 65 | B70: 59309 | C70: =B70-B71 -> 2129 | F70: =$Y$2^A70*B70 -> 120.947269 | G70: =SUM(F70:F$106) -> 863.55151 | H70: =SUM($G70:G$106) -> 5502.025004 | I70: =$Y$2^(A70+1)*C70 -> 3.946921065 | J70: =SUM($I70:I$106) -> 42.44258623 | K70: =SUM($J70:J$106) -> 363.3674188 | M70: 65 | N70: 83277 | O70: =N70-N71 -> 1131 | R70: =$Y$2^M70*N70 -> 169.824575 | S70: =SUM(R70:R$106) -> 1422.118005 | T70: =SUM($S70:S$106) -> 10288.86482 | U70: =$Y$2^(M70+1)*O70 -> 2.096743882 | V70: =SUM($U70:U$106) -> 40.54112001 | W70: =SUM($V70:V$106) -> 486.7666569
A71: 66 | B71: 57180 | C71: 2175 | F71: 106.0051416 | G71: =SUM(F71:F$106) -> 742.6042411 | H71: =SUM($G71:G$106) -> 4638.473494 | I71: 3.665636157 | J71: =SUM($I71:I$106) -> 38.49566516 | K71: =SUM($J71:J$106) -> 320.9248325 | M71: 66 | N71: 82146 | O71: 1219 | R71: 152.2892334 | S71: =SUM(R71:R$106) -> 1252.29343 | T71: =SUM($S71:S$106) -> 8866.74682 | U71: 2.054441598 | V71: =SUM($U71:U$106) -> 38.44437613 | W71: =SUM($V71:V$106) -> 446.2255368
A72: 67 | B72: 55005 | C72: 2415 | F72: 92.70267441 | G72: =SUM(F72:F$106) -> 636.5990994 | H72: =SUM($G72:G$106) -> 3895.869253 | I72: 3.700109225 | J72: =SUM($I72:I$106) -> 34.830029 | K72: =SUM($J72:J$106) -> 282.4291674 | M72: 67 | N72: 80927 | O72: 1388 | R72: 136.390316 | S72: =SUM(R72:R$106) -> 1100.004196 | T72: =SUM($S72:S$106) -> 7614.45339 | U72: 2.126605219 | V72: =SUM($U72:U$106) -> 36.38993453 | W72: =SUM($V72:V$106) -> 407.7811607
A73: 68 | B73: 52590 | C73: 2136 | F73: 80.57504933 | G73: =SUM(F73:F$106) -> 543.896425 | H73: =SUM($G73:G$106) -> 3259.270153 | I73: 2.975130173 | J73: =SUM($I73:I$106) -> 31.12991978 | K73: =SUM($J73:J$106) -> 247.5991384 | M73: 68 | N73: 79539 | O73: 1330 | R73: 121.8645911 | S73: =SUM(R73:R$106) -> 963.6138802 | T73: =SUM($S73:S$106) -> 6514.449194 | U73: 1.852492102 | V73: =SUM($U73:U$106) -> 34.26332931 | W73: =SUM($V73:V$106) -> 371.3912262
A74: 69 | B74: 50454 | C74: 2512 | F74: 70.27491467 | G74: =SUM(F74:F$106) -> 463.3213757 | H74: =SUM($G74:G$106) -> 2715.373728 | I74: 3.18076566 | J74: =SUM($I74:I$106) -> 28.15478961 | K74: =SUM($J74:J$106) -> 216.4692186 | M74: 69 | N74: 78209 | O74: 1693 | R74: 108.9334998 | S74: =SUM(R74:R$106) -> 841.749289 | T74: =SUM($S74:S$106) -> 5550.835314 | U74: 2.143724627 | V74: =SUM($U74:U$106) -> 32.41083721 | W74: =SUM($V74:V$106) -> 337.1278969
A75: 70 | B75: 47942 | C75: 2193 | F75: 60.7055204 | G75: =SUM(F75:F$106) -> 393.046461 | H75: =SUM($G75:G$106) -> 2252.052353 | I75: 2.524398919 | J75: =SUM($I75:I$106) -> 24.97402395 | K75: =SUM($J75:J$106) -> 188.314429 | M75: 70 | N75: 76516 | O75: 1544 | R75: 96.88672978 | S75: =SUM(R75:R$106) -> 732.8157892 | T75: =SUM($S75:S$106) -> 4709.086025 | U75: 1.777324182 | V75: =SUM($U75:U$106) -> 30.26711258 | W75: =SUM($V75:V$106) -> 304.7170597
A76: 71 | B76: 45749 | C76: 2279 | F76: 52.66243781 | G76: =SUM(F76:F$106) -> 332.3409406 | H76: =SUM($G76:G$106) -> 1859.005892 | I76: 2.384904504 | J76: =SUM($I76:I$106) -> 22.44962503 | K76: =SUM($J76:J$106) -> 163.340405 | M76: 71 | N76: 74972 | O76: 1764 | R76: 86.30152108 | S76: =SUM(R76:R$106) -> 635.9290594 | T76: =SUM($S76:S$106) -> 3976.270235 | U76: 1.845972596 | V76: =SUM($U76:U$106) -> 28.4897884 | W76: =SUM($V76:V$106) -> 274.4499471
A77: 72 | B77: 43470 | C77: 2352 | F77: 45.49003896 | G77: =SUM(F77:F$106) -> 279.6785028 | H77: =SUM($G77:G$106) -> 1526.664951 | I77: 2.23754254 | J77: =SUM($I77:I$106) -> 20.06472052 | K77: =SUM($J77:J$106) -> 140.89078 | M77: 72 | N77: 73208 | O77: 1887 | R77: 76.60995565 | S77: =SUM(R77:R$106) -> 549.6275383 | T77: =SUM($S77:S$106) -> 3340.341176 | U77: 1.795171247 | V77: =SUM($U77:U$106) -> 26.64381581 | W77: =SUM($V77:V$106) -> 245.9601587
A78: 73 | B78: 41118 | C78: 2137 | F78: 39.11703833 | G78: =SUM(F78:F$106) -> 234.1884639 | H78: =SUM($G78:G$106) -> 1246.986448 | I78: 1.848186614 | J78: =SUM($I78:I$106) -> 17.82717798 | K78: =SUM($J78:J$106) -> 120.8260595 | M78: 73 | N78: 71321 | O78: 1850 | R78: 67.85024298 | S78: =SUM(R78:R$106) -> 473.0175827 | T78: =SUM($S78:S$106) -> 2790.713638 | U78: 1.599974373 | V78: =SUM($U78:U$106) -> 24.84864456 | W78: =SUM($V78:V$106) -> 219.3163429
A79: 74 | B79: 38981 | C79: 2739 | F79: 33.71275733 | G79: =SUM(F79:F$106) -> 195.0714255 | H79: =SUM($G79:G$106) -> 1012.797984 | I79: 2.153479022 | J79: =SUM($I79:I$106) -> 15.97899137 | K79: =SUM($J79:J$106) -> 102.9988815 | M79: 74 | N79: 69471 | O79: 2410 | R79: 60.0820647 | S79: =SUM(R79:R$106) -> 405.1673397 | T79: =SUM($S79:S$106) -> 2317.696055 | U79: 1.894809946 | V79: =SUM($U79:U$106) -> 23.24867019 | W79: =SUM($V79:V$106) -> 194.4676983
A80: 75 | B80: 36242 | C80: 2436 | F80: 28.49448218 | G80: =SUM(F80:F$106) -> 161.3586682 | H80: =SUM($G80:G$106) -> 817.7265587 | I80: 1.741138072 | J80: =SUM($I80:I$106) -> 13.82551235 | K80: =SUM($J80:J$106) -> 87.01989014 | M80: 75 | N80: 67061 | O80: 2264 | R80: 52.72524888 | S80: =SUM(R80:R$106) -> 345.085275 | T80: =SUM($S80:S$106) -> 1912.528715 | U80: 1.618200573 | V80: =SUM($U80:U$106) -> 21.35386024 | W80: =SUM($V80:V$106) -> 171.2190281
A81: 76 | B81: 33806 | C81: 2486 | F81: 24.16293664 | G81: =SUM(F81:F$106) -> 132.864186 | H81: =SUM($G81:G$106) -> 656.3678905 | I81: 1.615341561 | J81: =SUM($I81:I$106) -> 12.08437428 | K81: =SUM($J81:J$106) -> 73.1943778 | M81: 76 | N81: 64797 | O81: 2605 | R81: 46.31384386 | S81: =SUM(R81:R$106) -> 292.3600261 | T81: =SUM($S81:S$106) -> 1567.44344 | U81: 1.69266483 | V81: =SUM($U81:U$106) -> 19.73565967 | W81: =SUM($V81:V$106) -> 149.8651679
A82: 77 | B82: 31320 | C82: 2636 | F82: 20.35096448 | G82: =SUM(F82:F$106) -> 108.7012494 | H82: =SUM($G82:G$106) -> 523.5037045 | I82: 1.55709806 | J82: =SUM($I82:I$106) -> 10.46903271 | K82: =SUM($J82:J$106) -> 61.11000352 | M82: 77 | N82: 62192 | O82: 2912 | R82: 40.41082959 | S82: =SUM(R82:R$106) -> 246.0461822 | T82: =SUM($S82:S$106) -> 1275.083414 | U82: 1.720132606 | V82: =SUM($U82:U$106) -> 18.04299484 | W82: =SUM($V82:V$106) -> 130.1295082
A83: 78 | B83: 28684 | C83: 2368 | F83: 16.94377874 | G83: =SUM(F83:F$106) -> 88.3502849 | H83: =SUM($G83:G$106) -> 414.8024551 | I83: 1.271626502 | J83: =SUM($I83:I$106) -> 8.911934655 | K83: =SUM($J83:J$106) -> 50.64097081 | M83: 78 | N83: 59280 | O83: 2914 | R83: 35.0169852 | S83: =SUM(R83:R$106) -> 205.6353527 | T83: =SUM($S83:S$106) -> 1029.037232 | U83: 1.564830924 | V83: =SUM($U83:U$106) -> 16.32286223 | W83: =SUM($V83:V$106) -> 112.0865134
A84: 79 | B84: 26316 | C84: 2410 | F84: 14.13180871 | G84: =SUM(F84:F$106) -> 71.40650617 | H84: =SUM($G84:G$106) -> 326.4521702 | I84: 1.176527899 | J84: =SUM($I84:I$106) -> 7.640308152 | K84: =SUM($J84:J$106) -> 41.72903615 | M84: 79 | N84: 56366 | O84: 3248 | R84: 30.26879199 | S84: =SUM(R84:R$106) -> 170.6183675 | T84: =SUM($S84:S$106) -> 823.4018794 | U84: 1.585627641 | V84: =SUM($U84:U$106) -> 14.75803131 | W84: =SUM($V84:V$106) -> 95.76365114
A85: 80 | B85: 23906 | C85: 2315 | F85: 11.67057093 | G85: =SUM(F85:F$106) -> 57.27469745 | H85: =SUM($G85:G$106) -> 255.045664 | I85: 1.027409312 | J85: =SUM($I85:I$106) -> 6.463780254 | K85: =SUM($J85:J$106) -> 34.088728 | M85: 80 | N85: 53118 | O85: 3417 | R85: 25.93145598 | S85: =SUM(R85:R$106) -> 140.3495755 | T85: =SUM($S85:S$106) -> 652.783512 | U85: 1.516482772 | V85: =SUM($U85:U$106) -> 13.17240367 | W85: =SUM($V85:V$106) -> 81.00561983
A86: 81 | B86: 21591 | C86: 2266 | F86: 9.582200626 | G86: =SUM(F86:F$106) -> 45.60412652 | H86: =SUM($G86:G$106) -> 197.7709665 | I86: 0.9142389555 | J86: =SUM($I86:I$106) -> 5.436370942 | K86: =SUM($J86:J$106) -> 27.62494775 | M86: 81 | N86: 49701 | O86: 3642 | R86: 22.05756812 | S86: =SUM(R86:R$106) -> 114.4181195 | T86: =SUM($S86:S$106) -> 512.4339365 | U86: 1.469399063 | V86: =SUM($U86:U$106) -> 11.6559209 | W86: =SUM($V86:V$106) -> 67.83321616
A87: 82 | B87: 19325 | C87: 2110 | F87: 7.796852522 | G87: =SUM(F87:F$106) -> 36.0219259 | H87: =SUM($G87:G$106) -> 152.16684 | I87: 0.7739084475 | J87: =SUM($I87:I$106) -> 4.522131986 | K87: =SUM($J87:J$106) -> 22.1885768 | M87: 82 | N87: 46059 | O87: 3651 | R87: 18.58293559 | S87: =SUM(R87:R$106) -> 92.36055136 | T87: =SUM($S87:S$106) -> 398.015817 | U87: 1.339118361 | V87: =SUM($U87:U$106) -> 10.18652183 | W87: =SUM($V87:V$106) -> 56.17729527
A88: 83 | B88: 17215 | C88: 2058 | F88: 6.3141393 | G88: =SUM(F88:F$106) -> 28.22507337 | H88: =SUM($G88:G$106) -> 116.1449141 | I88: 0.6862143839 | J88: =SUM($I88:I$106) -> 3.748223539 | K88: =SUM($J88:J$106) -> 17.66644482 | M88: 83 | N88: 42408 | O88: 3850 | R88: 15.55445945 | S88: =SUM(R88:R$106) -> 73.77761577 | T88: =SUM($S88:S$106) -> 305.6552657 | U88: 1.283734392 | V88: =SUM($U88:U$106) -> 8.847403472 | W88: =SUM($V88:V$106) -> 45.99077343
A89: 84 | B89: 15157 | C89: 1971 | F89: 5.053912253 | G89: =SUM(F89:F$106) -> 21.91093407 | H89: =SUM($G89:G$106) -> 87.91984076 | I89: 0.5974593827 | J89: =SUM($I89:I$106) -> 3.062009155 | K89: =SUM($J89:J$106) -> 13.91822128 | M89: 84 | N89: 38558 | O89: 4016 | R89: 12.85668329 | S89: =SUM(R89:R$106) -> 58.22315632 | T89: =SUM($S89:S$106) -> 231.8776499 | U89: 1.217350016 | V89: =SUM($U89:U$106) -> 7.56366908 | W89: =SUM($V89:V$106) -> 37.14336996
A90: 85 | B90: 13186 | C90: 1763 | F90: 3.997006302 | G90: =SUM(F90:F$106) -> 16.85702182 | H90: =SUM($G90:G$106) -> 66.00890668 | I90: 0.4858267108 | J90: =SUM($I90:I$106) -> 2.464549772 | K90: =SUM($J90:J$106) -> 10.85621212 | M90: 85 | N90: 34542 | O90: 3829 | R90: 10.47054389 | S90: =SUM(R90:R$106) -> 45.36647303 | T90: =SUM($S90:S$106) -> 173.6544936 | U90: 1.055150582 | V90: =SUM($U90:U$106) -> 6.346319065 | W90: =SUM($V90:V$106) -> 29.57970088
A91: 86 | B91: 11423 | C91: 1672 | F91: 3.147815382 | G91: =SUM(F91:F$106) -> 12.86001552 | H91: =SUM($G91:G$106) -> 49.15188486 | I91: 0.4188636418 | J91: =SUM($I91:I$106) -> 1.978723062 | K91: =SUM($J91:J$106) -> 8.39166235 | M91: 86 | N91: 30713 | O91: 3912 | R91: 8.463525677 | S91: =SUM(R91:R$106) -> 34.89592914 | T91: =SUM($S91:S$106) -> 128.2880206 | U91: 0.9800206738 | V91: =SUM($U91:U$106) -> 5.291168483 | W91: =SUM($V91:V$106) -> 23.23338182
A92: 87 | B92: 9751 | C92: 1555 | F92: 2.442786705 | G92: =SUM(F92:F$106) -> 9.712200138 | H92: =SUM($G92:G$106) -> 36.29186934 | I92: 0.3541392796 | J92: =SUM($I92:I$106) -> 1.55985942 | K92: =SUM($J92:J$106) -> 6.412939289 | M92: 87 | N92: 26801 | O92: 3771 | R92: 6.714093578 | S92: =SUM(R92:R$106) -> 26.43240346 | T92: =SUM($S92:S$106) -> 93.39209143 | U92: 0.8588162207 | V92: =SUM($U92:U$106) -> 4.311147809 | W92: =SUM($V92:V$106) -> 17.94221333
A93: 88 | B93: 8196 | C93: 1406 | F93: 1.866575907 | G93: =SUM(F93:F$106) -> 7.269413433 | H93: =SUM($G93:G$106) -> 26.5796692 | I93: 0.2910960696 | J93: =SUM($I93:I$106) -> 1.20572014 | K93: =SUM($J93:J$106) -> 4.853079869 | M93: 88 | N93: 23030 | O93: 3643 | R93: 5.244905214 | S93: =SUM(R93:R$106) -> 19.71830989 | T93: =SUM($S93:S$106) -> 66.95968797 | U93: 0.7542410964 | V93: =SUM($U93:U$106) -> 3.452331588 | W93: =SUM($V93:V$106) -> 13.63106552
A94: 89 | B94: 6790 | C94: 1191 | F94: 1.405791118 | G94: =SUM(F94:F$106) -> 5.402837526 | H94: =SUM($G94:G$106) -> 19.31025577 | I94: 0.2241661832 | J94: =SUM($I94:I$106) -> 0.9146240707 | K94: =SUM($J94:J$106) -> 3.647359729 | M94: 89 | N94: 19387 | O94: 3321 | R94: 4.013854553 | S94: =SUM(R94:R$106) -> 14.47340467 | T94: =SUM($S94:S$106) -> 47.24137808 | U94: 0.6250679213 | V94: =SUM($U94:U$106) -> 2.698090492 | W94: =SUM($V94:V$106) -> 10.17873394
A95: 90 | B95: 5599 | C95: 1000 | F95: 1.053825743 | G95: =SUM(F95:F$106) -> 3.997046408 | H95: =SUM($G95:G$106) -> 13.90741824 | I95: 0.1711061623 | J95: =SUM($I95:I$106) -> 0.6904578875 | K95: =SUM($J95:J$106) -> 2.732735658 | M95: 90 | N95: 16066 | O95: 2945 | R95: 3.023890763 | S95: =SUM(R95:R$106) -> 10.45955012 | T95: =SUM($S95:S$106) -> 32.76797341 | U95: 0.5039076478 | V95: =SUM($U95:U$106) -> 2.07302257 | W95: =SUM($V95:V$106) -> 7.480643445
A96: 91 | B96: 4599 | C96: 798 | F96: 0.7869172402 | G96: =SUM(F96:F$106) -> 2.943220665 | H96: =SUM($G96:G$106) -> 9.910371836 | I96: 0.1241297432 | J96: =SUM($I96:I$106) -> 0.5193517252 | K96: =SUM($J96:J$106) -> 2.042277771 | M96: 91 | N96: 13121 | O96: 2581 | R96: 2.245083955 | S96: =SUM(R96:R$106) -> 7.435659355 | T96: =SUM($S96:S$106) -> 22.30842329 | U96: 0.4014772771 | V96: =SUM($U96:U$106) -> 1.569114923 | W96: =SUM($V96:V$106) -> 5.407620874
A97: 92 | B97: 3801 | C97: 695 | F97: 0.5912495661 | G97: =SUM(F97:F$106) -> 2.156303425 | H97: =SUM($G97:G$106) -> 6.967151172 | I97: 0.09827998576 | J97: =SUM($I97:I$106) -> 0.3952219821 | K97: =SUM($J97:J$106) -> 1.522926045 | M97: 92 | N97: 10540 | O97: 2279 | R97: 1.639508137 | S97: =SUM(R97:R$106) -> 5.1905754 | T97: =SUM($S97:S$106) -> 14.87276394 | U97: 0.3222735073 | V97: =SUM($U97:U$106) -> 1.167637646 | W97: =SUM($V97:V$106) -> 3.838505951
A98: 93 | B98: 3106 | C98: 534 | F98: 0.4392196198 | G98: =SUM(F98:F$106) -> 1.565053858 | H98: =SUM($G98:G$106) -> 4.810847747 | I98: 0.06864815225 | J98: =SUM($I98:I$106) -> 0.2969419963 | K98: =SUM($J98:J$106) -> 1.127704063 | M98: 93 | N98: 8261 | O98: 1848 | R98: 1.168188435 | S98: =SUM(R98:R$106) -> 3.551067264 | T98: =SUM($S98:S$106) -> 9.682188538 | U98: 0.2375688864 | V98: =SUM($U98:U$106) -> 0.8453641383 | W98: =SUM($V98:V$106) -> 2.670868306
A99: 94 | B99: 2572 | C99: 471 | F99: 0.3306424112 | G99: =SUM(F99:F$106) -> 1.125834239 | H99: =SUM($G99:G$106) -> 3.245793888 | I99: 0.05504473904 | J99: =SUM($I99:I$106) -> 0.2282938441 | K99: =SUM($J99:J$106) -> 0.830762067 | M99: 94 | N99: 6413 | O99: 1583 | R99: 0.8244206 | S99: =SUM(R99:R$106) -> 2.382878829 | T99: =SUM($S99:S$106) -> 6.131121275 | U99: 0.185001745 | V99: =SUM($U99:U$106) -> 0.6077952519 | W99: =SUM($V99:V$106) -> 1.825504168
A100: 95 | B100: 2101 | C100: 363 | F100: 0.2455392712 | G100: =SUM(F100:F$106) -> 0.7951918275 | H100: =SUM($G100:G$106) -> 2.11995965 | I100: 0.03856637767 | J100: =SUM($I100:I$106) -> 0.173249105 | K100: =SUM($J100:J$106) -> 0.6024682229 | M100: 95 | N100: 4830 | O100: 1156 | R100: 0.5644715277 | S100: =SUM(R100:R$106) -> 1.558458229 | T100: =SUM($S100:S$106) -> 3.748242446 | U100: 0.1228174451 | V100: =SUM($U100:U$106) -> 0.4227935069 | W100: =SUM($V100:V$106) -> 1.217708916
A101: 96 | B101: 1738 | C101: 305 | F101: 0.1846511416 | G101: =SUM(F101:F$106) -> 0.5496525563 | H101: =SUM($G101:G$106) -> 1.324767822 | I101: 0.0294584152 | J101: =SUM($I101:I$106) -> 0.1346827274 | K101: =SUM($J101:J$106) -> 0.4292191179 | M101: 96 | N101: 3674 | O101: 972 | R101: 0.3903384891 | S101: =SUM(R101:R$106) -> 0.9939867012 | T101: =SUM($S101:S$106) -> 2.189784217 | U101: 0.09388058876 | V101: =SUM($U101:U$106) -> 0.2999760617 | W101: =SUM($V101:V$106) -> 0.7949154087
A102: 97 | B102: 1433 | C102: 311 | F102: 0.138406259 | G102: =SUM(F102:F$106) -> 0.3650014147 | H102: =SUM($G102:G$106) -> 0.775115266 | I102: 0.02730720455 | J102: =SUM($I102:I$106) -> 0.1052243122 | K102: =SUM($J102:J$106) -> 0.2945363906 | M102: 97 | N102: 2702 | O102: 824 | R102: 0.2609725832 | S102: =SUM(R102:R$106) -> 0.6036482121 | T102: =SUM($S102:S$106) -> 1.195797516 | U102: 0.07235092138 | V102: =SUM($U102:U$106) -> 0.206095473 | W102: =SUM($V102:V$106) -> 0.494939347
A103: 98 | B103: 1122 | C103: 212 | F103: 0.09851666722 | G103: =SUM(F103:F$106) -> 0.2265951558 | H103: =SUM($G103:G$106) -> 0.4101138513 | I103: 0.01692232495 | J103: =SUM($I103:I$106) -> 0.07791710761 | K103: =SUM($J103:J$106) -> 0.1893120784 | M103: 98 | N103: 1878 | O103: 549 | R103: =$Y$2^M103*N103 -> 0.1648968815 | S103: =SUM(R103:R$106) -> 0.3426756289 | T103: =SUM($S103:S$106) -> 0.5921493036 | U103: 0.04382243583 | V103: =SUM($U103:U$106) -> 0.1337445516 | W103: =SUM($V103:V$106) -> 0.288843874
A104: 99 | B104: 910 | C104: 146 | F104: 0.07263828162 | G104: =SUM(F104:F$106) -> 0.1280784886 | H104: =SUM($G104:G$106) -> 0.1835186955 | I104: 0.01059459452 | J104: =SUM($I104:I$106) -> 0.06099478266 | K104: =SUM($J104:J$106) -> 0.1113949708 | M104: 99 | N104: 1329 | O104: 341 | R104: 0.1060838201 | S104: =SUM(R104:R$106) -> 0.1777787474 | T104: =SUM($S104:S$106) -> 0.2494736747 | U104: 0.02474490912 | V104: =SUM($U104:U$106) -> 0.08992211577 | W104: =SUM($V104:V$106) -> 0.1550993224
A105: 100 | B105: 764 | C105: 764 | F105: 0.05544020695 | G105: =SUM(F105:F$106) -> 0.05544020695 | H105: =SUM($G105:G$106) -> 0.05544020695 | I105: 0.05040018814 | J105: =SUM($I105:I$106) -> 0.05040018814 | K105: =SUM($J105:J$106) -> 0.05040018814 | M105: 100 | N105: 988 | O105: 988 | R105: 0.07169492731 | S105: =SUM(R105:R$106) -> 0.07169492731 | T105: =SUM($S105:S$106) -> 0.07169492731 | U105: 0.06517720665 | V105: =SUM($U105:U$106) -> 0.06517720665 | W105: =SUM($V105:V$106) -> 0.06517720665
A106: 101 | M106: 101

Sheet lx (hidden)
A1: Возраст | B1: m | C1: f
A2: 0 | B2: 100000 | C2: 100000 | D2: =IF((B2-B3)/B2<0,1,(B2-B3)/B2) -> 0.00661 | E2: =IF((C2-C3)/C2<0,1,(C2-C3)/C2) -> 0.00539
A3: 1 | B3: 99339 | C3: 99461 | D3: =IF((B3-B4)/B3<0,1,(B3-B4)/B3) -> 0.0006140589295 | E3: 0.0005127637969
A4: 2 | B4: 99278 | C4: 99410 | D4: 0.0003928362779 | E4: 0.0002816618046
A5: 3 | B5: 99239 | C5: 99382 | D5: 0.0003325305575 | E5: 0.0002414924232
A6: 4 | B6: 99206 | C6: 99358 | D6: 0.0002620809225 | E6: 0.0002214215262
A7: 5 | B7: 99180 | C7: 99336 | D7: 0.0002621496269 | E7: 0.000191270033
A8: 6 | B8: 99154 | C8: 99317 | D8: 0.0002218770801 | E8: 0.0001611003152
A9: 7 | B9: 99132 | C9: 99301 | D9: 0.0002320138805 | E9: 0.0001812670567
A10: 8 | B10: 99109 | C10: 99283 | D10: 0.0002320677234 | E10: 0.0001812999204
A11: 9 | B11: 99086 | C11: 99265 | D11: 0.0002321215913 | E11: 0.0001611847076
A12: 10 | B12: 99063 | C12: 99249 | D12: 0.0002624592431 | E12: 0.0001612106923
A13: 11 | B13: 99037 | C13: 99233 | D13: 0.000262528146 | E13: 0.000181391271
A14: 12 | B14: 99011 | C14: 99215 | D14: 0.0003029966367 | E14: 0.0002217406642
A15: 13 | B15: 98981 | C15: 99193 | D15: 0.0003738091149 | E15: 0.0002318712006
A16: 14 | B16: 98944 | C16: 99170 | D16: 0.0004244825356 | E16: 0.000332761924
A17: 15 | B17: 98902 | C17: 99137 | D17: 0.0005561060444 | E17: 0.0003732208963
A18: 16 | B18: 98847 | C18: 99100 | D18: 0.0006474652746 | E18: 0.0003531786075
A19: 17 | B19: 98783 | C19: 99065 | D19: 0.0008301023455 | E19: 0.0003835865341
A20: 18 | B20: 98701 | C20: 99027 | D20: 0.001134740276 | E20: 0.0004645197774
A21: 19 | B21: 98589 | C21: 98981 | D21: 0.001227317449 | E21: 0.0004748386054
A22: 20 | B22: 98468 | C22: 98934 | D22: 0.001442092863 | E22: 0.0004952796814
A23: 21 | B23: 98326 | C23: 98885 | D23: 0.001678091247 | E23: 0.0004449613187
A24: 22 | B24: 98161 | C24: 98841 | D24: 0.001691099316 | E24: 0.0004856284335
A25: 23 | B25: 97995 | C25: 98793 | D25: 0.001806214603 | E25: 0.0005567196056
A26: 24 | B26: 97818 | C26: 98738 | D26: 0.002024167331 | E26: 0.000597540967
A27: 25 | B27: 97620 | C27: 98679 | D27: 0.002079491907 | E27: 0.0006384337093
A28: 26 | B28: 97417 | C28: 98616 | D28: 0.00229939333 | E28: 0.0007706660177
A29: 27 | B29: 97193 | C29: 98540 | D29: 0.002695667383 | E29: 0.0009133346864
A30: 28 | B30: 96931 | C30: 98450 | D30: 0.003084668476 | E30: 0.001025901473
A31: 29 | B31: 96632 | C31: 98349 | D31: 0.003383972183 | E31: 0.001087962257
A32: 30 | B32: 96305 | C32: 98242 | D32: 0.003582368517 | E32: 0.001190936667
A33: 31 | B33: 95960 | C33: 98125 | D33: 0.003949562318 | E33: 0.001324840764
A34: 32 | B34: 95581 | C34: 97995 | D34: 0.004603425367 | E34: 0.001561304148
A35: 33 | B35: 95141 | C35: 97842 | D35: 0.005160761396 | E35: 0.001737495145
A36: 34 | B36: 94650 | C36: 97672 | D36: 0.00558901215 | E36: 0.001976001311
A37: 35 | B37: 94121 | C37: 97479 | D37: 0.006034785011 | E37: 0.002010689482
A38: 36 | B38: 93553 | C38: 97283 | D38: 0.006274518188 | E38: 0.002035299076
A39: 37 | B39: 92966 | C39: 97085 | D39: 0.007056343179 | E39: 0.00235875779
A40: 38 | B40: 92310 | C40: 96856 | D40: 0.007203986567 | E40: 0.002384983894
A41: 39 | B41: 91645 | C41: 96625 | D41: 0.007758197392 | E41: 0.002556274256
A42: 40 | B42: 90934 | C42: 96378 | D42: 0.00786284558 | E42: 0.002614704601
A43: 41 | B43: 90219 | C43: 96126 | D43: 0.007914075749 | E43: 0.002735992343
A44: 42 | B44: 89505 | C44: 95863 | D44: 0.008234176862 | E44: 0.002795656301
A45: 43 | B45: 88768 | C45: 95595 | D45: 0.008640501081 | E45: 0.00289764109
A46: 44 | B46: 88001 | C46: 95318 | D46: 0.008931716685 | E46: 0.003147359365
A47: 45 | B47: 87215 | C47: 95018 | D47: 0.008966347532 | E47: 0.003199393799
A48: 46 | B48: 86433 | C48: 94714 | D48: 0.009348281328 | E48: 0.0034313829
A49: 47 | B49: 85625 | C49: 94389 | D49: 0.0102540146 | E49: 0.003644492473
A50: 48 | B50: 84747 | C50: 94045 | D50: 0.01102103909 | E50: 0.00375352225
A51: 49 | B51: 83813 | C51: 93692 | D51: 0.01190746066 | E51: 0.004023822738
A52: 50 | B52: 82815 | C52: 93315 | D52: 0.01265471231 | E52: 0.004243690725
A53: 51 | B53: 81767 | C53: 92919 | D53: 0.01312265339 | E53: 0.00442320731
A54: 52 | B54: 80694 | C54: 92508 | D54: 0.01440007931 | E54: 0.004886063908
A55: 53 | B55: 79532 | C55: 92056 | D55: 0.01545289946 | E55: 0.005029547232
A56: 54 | B56: 78303 | C56: 91593 | D56: 0.0165766318 | E56: 0.00561178256
A57: 55 | B57: 77005 | C57: 91079 | D57: 0.01738848127 | E57: 0.006038713644
A58: 56 | B58: 75666 | C58: 90529 | D58: 0.01883276505 | E58: 0.00666084901
A59: 57 | B59: 74241 | C59: 89926 | D59: 0.02079713366 | E59: 0.007306007161
A60: 58 | B60: 72697 | C60: 89269 | D60: 0.02233929873 | E60: 0.007763053244
A61: 59 | B61: 71073 | C61: 88576 | D61: 0.0238065088 | E61: 0.008060874277
A62: 60 | B62: 69381 | C62: 87862 | D62: 0.02719764777 | E62: 0.008968609865
A63: 61 | B63: 67494 | C63: 87074 | D63: 0.02951373455 | E63: 0.009750327308
A64: 62 | B64: 65502 | C64: 86225 | D64: 0.03059448566 | E64: 0.01044940562
A65: 63 | B65: 63498 | C65: 85324 | D65: 0.03241046962 | E65: 0.01116919038
A66: 64 | B66: 61440 | C66: 84371 | D66: 0.03468424479 | E66: 0.01296654064
A67: 65 | B67: 59309 | C67: 83277 | D67: =IF((B67-B68)/B67<0,1,(B67-B68)/B67) -> 0.03589674417 | E67: 0.01358118088
A68: 66 | B68: 57180 | C68: 82146 | D68: 0.03803777545 | E68: 0.01483943223
A69: 67 | B69: 55005 | C69: 80927 | D69: 0.04390509954 | E69: 0.01715125978
A70: 68 | B70: 52590 | C70: 79539 | D70: 0.04061608671 | E70: 0.01672135682
A71: 69 | B71: 50454 | C71: 78209 | D71: 0.04978792564 | E71: 0.02164712501
A72: 70 | B72: 47942 | C72: 76516 | D72: 0.04574277252 | E72: 0.02017878614
A73: 71 | B73: 45749 | C73: 74972 | D73: 0.04981529651 | E73: 0.02352878408
A74: 72 | B74: 43470 | C74: 73208 | D74: 0.05410628019 | E74: 0.02577587149
A75: 73 | B75: 41118 | C75: 71321 | D75: 0.0519723722 | E75: 0.02593906423
A76: 74 | B76: 38981 | C76: 69471 | D76: 0.0702650009 | E76: 0.03469073426
A77: 75 | B77: 36242 | C77: 67061 | D77: 0.06721483362 | E77: 0.03376030778
A78: 76 | B78: 33806 | C78: 64797 | D78: 0.07353724191 | E78: 0.04020247851
A79: 77 | B79: 31320 | C79: 62192 | D79: 0.08416347382 | E79: 0.04682274247
A80: 78 | B80: 28684 | C80: 59280 | D80: 0.08255473435 | E80: 0.04915654521
A81: 79 | B81: 26316 | C81: 56366 | D81: 0.09157926737 | E81: 0.05762338999
A82: 80 | B82: 23906 | C82: 53118 | D82: 0.09683761399 | E82: 0.06432847622
A83: 81 | B83: 21591 | C83: 49701 | D83: 0.104951137 | E83: 0.07327820366
A84: 82 | B84: 19325 | C84: 46059 | D84: 0.1091849935 | E84: 0.07926789553
A85: 83 | B85: 17215 | C85: 42408 | D85: 0.1195469068 | E85: 0.09078475759
A86: 84 | B86: 15157 | C86: 38558 | D86: 0.1300389259 | E86: 0.1041547798
A87: 85 | B87: 13186 | C87: 34542 | D87: 0.1337024116 | E87: 0.1108505587
A88: 86 | B88: 11423 | C88: 30713 | D88: 0.146371356 | E88: 0.1273727737
A89: 87 | B89: 9751 | C89: 26801 | D89: 0.1594708235 | E89: 0.1407037051
A90: 88 | B90: 8196 | C90: 23030 | D90: 0.1715470961 | E90: 0.1581849761
A91: 89 | B91: 6790 | C91: 19387 | D91: 0.1754050074 | E91: 0.1713003559
A92: 90 | B92: 5599 | C92: 16066 | D92: 0.178603322 | E92: 0.1833063613
A93: 91 | B93: 4599 | C93: 13121 | D93: 0.1735159817 | E93: 0.196707568
A94: 92 | B94: 3801 | C94: 10540 | D94: 0.1828466193 | E94: 0.2162239089
A95: 93 | B95: 3106 | C95: 8261 | D95: 0.1719253059 | E95: 0.223701731
A96: 94 | B96: 2572 | C96: 6413 | D96: 0.183125972 | E96: 0.2468423515
A97: 95 | B97: 2101 | C97: 4830 | D97: 0.1727748691 | E97: 0.2393374741
A98: 96 | B98: 1738 | C98: 3674 | D98: 0.1754890679 | E98: 0.2645617855
A99: 97 | B99: 1433 | C99: 2702 | D99: 0.2170272156 | E99: 0.3049592894
A100: 98 | B100: 1122 | C100: 1878 | D100: 0.1889483066 | E100: 0.2923322684
A101: 99 | B101: 910 | C101: 1329 | D101: 0.1604395604 | E101: 0.2565838977
A102: 100 | B102: 764 | C102: 988 | D102: 1 | E102: 1

Sheet lx2 (hidden)
B1: m | C1: f
A2: 0 | B2: 100000 | C2: 100000 | D2: 0 | E2: 0 | I2: 100000 | J2: 100000
A3: 1 | B3: 99944.91667 | C3: 99955.08333 | D3: 0 | E3: 1 | I3: 99944.91667 | J3: 99955.08333
A4: 2 | B4: 99889.83333 | C4: 99910.16667 | D4: 0 | E4: 2 | I4: 99889.83333 | J4: 99910.16667
A5: 3 | B5: 99834.75 | C5: 99865.25 | D5: 0 | E5: 3 | I5: 99834.75 | J5: 99865.25
A6: 4 | B6: 99779.66667 | C6: 99820.33333 | D6: 0 | E6: 4 | I6: 99779.66667 | J6: 99820.33333
A7: 5 | B7: 99724.58333 | C7: 99775.41667 | D7: 0 | E7: 5 | I7: 99724.58333 | J7: 99775.41667
A8: 6 | B8: 99669.5 | C8: 99730.5 | D8: 0 | E8: 6 | I8: 99669.5 | J8: 99730.5
A9: 7 | B9: 99614.41667 | C9: 99685.58333 | D9: 0 | E9: 7 | I9: 99614.41667 | J9: 99685.58333
A10: 8 | B10: 99559.33333 | C10: 99640.66667 | D10: 0 | E10: 8 | I10: 99559.33333 | J10: 99640.66667
A11: 9 | B11: 99504.25 | C11: 99595.75 | D11: 0 | E11: 9 | I11: 99504.25 | J11: 99595.75
A12: 10 | B12: 99449.16667 | C12: 99550.83333 | D12: 0 | E12: 10 | I12: 99449.16667 | J12: 99550.83333
A13: 11 | B13: 99394.08333 | C13: 99505.91667 | D13: 0 | E13: 11 | I13: 99394.08333 | J13: 99505.91667
A14: 12 | B14: 99339 | C14: 99461 | D14: 0 | E14: 12 | I14: 99339 | J14: 99461
A15: 13 | B15: 99333.91667 | C15: 99456.75 | D15: 1 | E15: 1 | I15: 99333.91667 | J15: 99456.75
A16: 14 | B16: 99328.83333 | C16: 99452.5 | D16: 1 | E16: 2 | I16: 99328.83333 | J16: 99452.5
A17: 15 | B17: 99323.75 | C17: 99448.25 | D17: 1 | E17: 3 | I17: 99323.75 | J17: 99448.25
A18: 16 | B18: 99318.66667 | C18: 99444 | D18: 1 | E18: 4 | I18: 99318.66667 | J18: 99444
A19: 17 | B19: 99313.58333 | C19: 99439.75 | D19: 1 | E19: 5 | I19: 99313.58333 | J19: 99439.75
A20: 18 | B20: 99308.5 | C20: 99435.5 | D20: 1 | E20: 6 | I20: 99308.5 | J20: 99435.5
A21: 19 | B21: 99303.41667 | C21: 99431.25 | D21: 1 | E21: 7 | I21: 99303.41667 | J21: 99431.25
A22: 20 | B22: 99298.33333 | C22: 99427 | D22: 1 | E22: 8 | I22: 99298.33333 | J22: 99427
A23: 21 | B23: 99293.25 | C23: 99422.75 | D23: 1 | E23: 9 | I23: 99293.25 | J23: 99422.75
A24: 22 | B24: 99288.16667 | C24: 99418.5 | D24: 1 | E24: 10 | I24: 99288.16667 | J24: 99418.5
A25: 23 | B25: 99283.08333 | C25: 99414.25 | D25: 1 | E25: 11 | I25: 99283.08333 | J25: 99414.25
A26: 24 | B26: 99278 | C26: 99410 | D26: 1 | E26: 12 | I26: 99278 | J26: 99410
A27: 25 | B27: 99274.75 | C27: 99407.66667 | D27: 2 | E27: 1 | I27: 99274.75 | J27: 99407.66667
A28: 26 | B28: 99271.5 | C28: 99405.33333 | D28: 2 | E28: 2 | I28: 99271.5 | J28: 99405.33333
A29: 27 | B29: 99268.25 | C29: 99403 | D29: 2 | E29: 3 | I29: 99268.25 | J29: 99403
A30: 28 | B30: 99265 | C30: 99400.66667 | D30: 2 | E30: 4 | I30: 99265 | J30: 99400.66667
A31: 29 | B31: 99261.75 | C31: 99398.33333 | D31: 2 | E31: 5 | I31: 99261.75 | J31: 99398.33333
A32: 30 | B32: 99258.5 | C32: 99396 | D32: 2 | E32: 6 | I32: 99258.5 | J32: 99396
A33: 31 | B33: 99255.25 | C33: 99393.66667 | D33: 2 | E33: 7 | I33: 99255.25 | J33: 99393.66667
A34: 32 | B34: 99252 | C34: 99391.33333 | D34: 2 | E34: 8 | I34: 99252 | J34: 99391.33333
A35: 33 | B35: 99248.75 | C35: 99389 | D35: 2 | E35: 9 | I35: 99248.75 | J35: 99389
A36: 34 | B36: 99245.5 | C36: 99386.66667 | D36: 2 | E36: 10 | I36: 99245.5 | J36: 99386.66667
A37: 35 | B37: 99242.25 | C37: 99384.33333 | D37: 2 | E37: 11 | I37: 99242.25 | J37: 99384.33333
A38: 36 | B38: 99239 | C38: 99382 | D38: 2 | E38: 12 | I38: 99239 | J38: 99382
A39: 37 | B39: 99236.25 | C39: 99380 | D39: 3 | E39: 1 | I39: 99236.25 | J39: 99380
A40: 38 | B40: 99233.5 | C40: 99378 | D40: 3 | E40: 2 | I40: 99233.5 | J40: 99378
A41: 39 | B41: 99230.75 | C41: 99376 | D41: 3 | E41: 3 | I41: 99230.75 | J41: 99376
A42: 40 | B42: 99228 | C42: 99374 | D42: 3 | E42: 4 | I42: 99228 | J42: 99374
A43: 41 | B43: 99225.25 | C43: 99372 | D43: 3 | E43: 5 | I43: 99225.25 | J43: 99372
A44: 42 | B44: 99222.5 | C44: 99370 | D44: 3 | E44: 6 | I44: 99222.5 | J44: 99370
A45: 43 | B45: 99219.75 | C45: 99368 | D45: 3 | E45: 7 | I45: 99219.75 | J45: 99368
A46: 44 | B46: 99217 | C46: 99366 | D46: 3 | E46: 8 | I46: 99217 | J46: 99366
A47: 45 | B47: 99214.25 | C47: 99364 | D47: 3 | E47: 9 | I47: 99214.25 | J47: 99364
A48: 46 | B48: 99211.5 | C48: 99362 | D48: 3 | E48: 10 | I48: 99211.5 | J48: 99362
A49: 47 | B49: 99208.75 | C49: 99360 | D49: 3 | E49: 11 | I49: 99208.75 | J49: 99360
A50: 48 | B50: 99206 | C50: 99358 | D50: 3 | E50: 12 | I50: 99206 | J50: 99358
A51: 49 | B51: 99203.83333 | C51: 99356.16667 | D51: 4 | E51: 1 | I51: 99203.83333 | J51: 99356.16667
A52: 50 | B52: 99201.66667 | C52: 99354.33333 | D52: 4 | E52: 2 | I52: 99201.66667 | J52: 99354.33333
A53: 51 | B53: 99199.5 | C53: 99352.5 | D53: 4 | E53: 3 | I53: 99199.5 | J53: 99352.5
A54: 52 | B54: 99197.33333 | C54: 99350.66667 | D54: 4 | E54: 4 | I54: 99197.33333 | J54: 99350.66667
A55: 53 | B55: 99195.16667 | C55: 99348.83333 | D55: 4 | E55: 5 | I55: 99195.16667 | J55: 99348.83333
A56: 54 | B56: 99193 | C56: 99347 | D56: 4 | E56: 6 | I56: 99193 | J56: 99347
A57: 55 | B57: 99190.83333 | C57: 99345.16667 | D57: 4 | E57: 7 | I57: 99190.83333 | J57: 99345.16667
A58: 56 | B58: 99188.66667 | C58: 99343.33333 | D58: 4 | E58: 8 | I58: 99188.66667 | J58: 99343.33333
A59: 57 | B59: 99186.5 | C59: 99341.5 | D59: 4 | E59: 9 | I59: 99186.5 | J59: 99341.5
A60: 58 | B60: 99184.33333 | C60: 99339.66667 | D60: 4 | E60: 10 | I60: 99184.33333 | J60: 99339.66667
A61: 59 | B61: 99182.16667 | C61: 99337.83333 | D61: 4 | E61: 11 | I61: 99182.16667 | J61: 99337.83333
A62: 60 | B62: 99180 | C62: 99336 | D62: 4 | E62: 12 | I62: 99180 | J62: 99336
A63: 61 | B63: 99177.83333 | C63: 99334.41667 | D63: 5 | E63: 1 | I63: 99177.83333 | J63: 99334.41667
A64: 62 | B64: 99175.66667 | C64: 99332.83333 | D64: 5 | E64: 2 | I64: 99175.66667 | J64: 99332.83333
A65: 63 | B65: 99173.5 | C65: 99331.25 | D65: 5 | E65: 3 | I65: 99173.5 | J65: 99331.25
A66: 64 | B66: 99171.33333 | C66: 99329.66667 | D66: 5 | E66: 4 | I66: 99171.33333 | J66: 99329.66667
A67: 65 | B67: 99169.16667 | C67: 99328.08333 | D67: 5 | E67: 5 | I67: 99169.16667 | J67: 99328.08333
A68: 66 | B68: 99167 | C68: 99326.5 | D68: 5 | E68: 6 | I68: 99167 | J68: 99326.5
A69: 67 | B69: 99164.83333 | C69: 99324.91667 | D69: 5 | E69: 7 | I69: 99164.83333 | J69: 99324.91667
A70: 68 | B70: 99162.66667 | C70: 99323.33333 | D70: 5 | E70: 8 | I70: 99162.66667 | J70: 99323.33333
A71: 69 | B71: 99160.5 | C71: 99321.75 | D71: 5 | E71: 9 | I71: 99160.5 | J71: 99321.75
A72: 70 | B72: 99158.33333 | C72: 99320.16667 | D72: 5 | E72: 10 | I72: 99158.33333 | J72: 99320.16667
A73: 71 | B73: 99156.16667 | C73: 99318.58333 | D73: 5 | E73: 11 | I73: 99156.16667 | J73: 99318.58333
A74: 72 | B74: 99154 | C74: 99317 | D74: 5 | E74: 12 | I74: 99154 | J74: 99317
A75: 73 | B75: 99152.16667 | C75: 99315.66667 | D75: 6 | E75: 1 | I75: 99152.16667 | J75: 99315.66667
A76: 74 | B76: 99150.33333 | C76: 99314.33333 | D76: 6 | E76: 2 | I76: 99150.33333 | J76: 99314.33333
A77: 75 | B77: 99148.5 | C77: 99313 | D77: 6 | E77: 3 | I77: 99148.5 | J77: 99313
A78: 76 | B78: 99146.66667 | C78: 99311.66667 | D78: 6 | E78: 4 | I78: 99146.66667 | J78: 99311.66667
A79: 77 | B79: 99144.83333 | C79: 99310.33333 | D79: 6 | E79: 5 | I79: 99144.83333 | J79: 99310.33333
A80: 78 | B80: 99143 | C80: 99309 | D80: 6 | E80: 6 | I80: 99143 | J80: 99309
A81: 79 | B81: 99141.16667 | C81: 99307.66667 | D81: 6 | E81: 7 | I81: 99141.16667 | J81: 99307.66667
A82: 80 | B82: 99139.33333 | C82: 99306.33333 | D82: 6 | E82: 8 | I82: 99139.33333 | J82: 99306.33333
A83: 81 | B83: 99137.5 | C83: 99305 | D83: 6 | E83: 9 | I83: 99137.5 | J83: 99305
A84: 82 | B84: 99135.66667 | C84: 99303.66667 | D84: 6 | E84: 10 | I84: 99135.66667 | J84: 99303.66667
A85: 83 | B85: 99133.83333 | C85: 99302.33333 | D85: 6 | E85: 11 | I85: 99133.83333 | J85: 99302.33333
A86: 84 | B86: 99132 | C86: 99301 | D86: 6 | E86: 12 | I86: 99132 | J86: 99301
A87: 85 | B87: 99130.08333 | C87: 99299.5 | D87: 7 | E87: 1 | I87: 99130.08333 | J87: 99299.5
A88: 86 | B88: 99128.16667 | C88: 99298 | D88: 7 | E88: 2 | I88: 99128.16667 | J88: 99298
A89: 87 | B89: 99126.25 | C89: 99296.5 | D89: 7 | E89: 3 | I89: 99126.25 | J89: 99296.5
A90: 88 | B90: 99124.33333 | C90: 99295 | D90: 7 | E90: 4 | I90: 99124.33333 | J90: 99295
A91: 89 | B91: 99122.41667 | C91: 99293.5 | D91: 7 | E91: 5 | I91: 99122.41667 | J91: 99293.5
A92: 90 | B92: 99120.5 | C92: 99292 | D92: 7 | E92: 6 | I92: 99120.5 | J92: 99292
A93: 91 | B93: 99118.58333 | C93: 99290.5 | D93: 7 | E93: 7 | I93: 99118.58333 | J93: 99290.5
A94: 92 | B94: 99116.66667 | C94: 99289 | D94: 7 | E94: 8 | I94: 99116.66667 | J94: 99289
A95: 93 | B95: 99114.75 | C95: 99287.5 | D95: 7 | E95: 9 | I95: 99114.75 | J95: 99287.5
A96: 94 | B96: 99112.83333 | C96: 99286 | D96: 7 | E96: 10 | I96: 99112.83333 | J96: 99286
A97: 95 | B97: 99110.91667 | C97: 99284.5 | D97: 7 | E97: 11 | I97: 99110.91667 | J97: 99284.5
A98: 96 | B98: 99109 | C98: 99283 | D98: 7 | E98: 12 | I98: 99109 | J98: 99283
A99: 97 | B99: 99107.08333 | C99: 99281.5 | D99: 8 | E99: 1 | I99: 99107.08333 | J99: 99281.5
A100: 98 | B100: 99105.16667 | C100: 99280 | D100: 8 | E100: 2 | I100: 99105.16667 | J100: 99280
A101: 99 | B101: 99103.25 | C101: 99278.5 | D101: 8 | E101: 3 | I101: 99103.25 | J101: 99278.5
A102: 100 | B102: 99101.33333 | C102: 99277 | D102: 8 | E102: 4 | I102: 99101.33333 | J102: 99277
A103: 101 | B103: 99099.41667 | C103: 99275.5 | D103: 8 | E103: 5 | I103: 99099.41667 | J103: 99275.5
A104: 102 | B104: 99097.5 | C104: 99274 | D104: 8 | E104: 6 | I104: 99097.5 | J104: 99274
A105: 103 | B105: 99095.58333 | C105: 99272.5 | D105: 8 | E105: 7 | I105: 99095.58333 | J105: 99272.5
A106: 104 | B106: 99093.66667 | C106: 99271 | D106: 8 | E106: 8 | I106: 99093.66667 | J106: 99271
A107: 105 | B107: 99091.75 | C107: 99269.5 | D107: 8 | E107: 9 | I107: 99091.75 | J107: 99269.5
A108: 106 | B108: 99089.83333 | C108: 99268 | D108: 8 | E108: 10 | I108: 99089.83333 | J108: 99268
A109: 107 | B109: 99087.91667 | C109: 99266.5 | D109: 8 | E109: 11 | I109: 99087.91667 | J109: 99266.5
A110: 108 | B110: 99086 | C110: 99265 | D110: 8 | E110: 12 | I110: 99086 | J110: 99265
A111: 109 | B111: 99084.08333 | C111: 99263.66667 | D111: 9 | E111: 1 | I111: 99084.08333 | J111: 99263.66667
A112: 110 | B112: 99082.16667 | C112: 99262.33333 | D112: 9 | E112: 2 | I112: 99082.16667 | J112: 99262.33333
A113: 111 | B113: 99080.25 | C113: 99261 | D113: 9 | E113: 3 | I113: 99080.25 | J113: 99261
A114: 112 | B114: 99078.33333 | C114: 99259.66667 | D114: 9 | E114: 4 | I114: 99078.33333 | J114: 99259.66667
A115: 113 | B115: 99076.41667 | C115: 99258.33333 | D115: 9 | E115: 5 | I115: 99076.41667 | J115: 99258.33333
A116: 114 | B116: 99074.5 | C116: 99257 | D116: 9 | E116: 6 | I116: 99074.5 | J116: 99257
A117: 115 | B117: 99072.58333 | C117: 99255.66667 | D117: 9 | E117: 7 | I117: 99072.58333 | J117: 99255.66667
A118: 116 | B118: 99070.66667 | C118: 99254.33333 | D118: 9 | E118: 8 | I118: 99070.66667 | J118: 99254.33333
A119: 117 | B119: 99068.75 | C119: 99253 | D119: 9 | E119: 9 | I119: 99068.75 | J119: 99253
A120: 118 | B120: 99066.83333 | C120: 99251.66667 | D120: 9 | E120: 10 | I120: 99066.83333 | J120: 99251.66667
A121: 119 | B121: 99064.91667 | C121: 99250.33333 | D121: 9 | E121: 11 | I121: 99064.91667 | J121: 99250.33333
A122: 120 | B122: 99063 | C122: 99249 | D122: 9 | E122: 12 | I122: 99063 | J122: 99249
A123: 121 | B123: 99060.83333 | C123: 99247.66667 | D123: 10 | E123: 1 | I123: 99060.83333 | J123: 99247.66667
A124: 122 | B124: 99058.66667 | C124: 99246.33333 | D124: 10 | E124: 2 | I124: 99058.66667 | J124: 99246.33333
A125: 123 | B125: 99056.5 | C125: 99245 | D125: 10 | E125: 3 | I125: 99056.5 | J125: 99245
A126: 124 | B126: 99054.33333 | C126: 99243.66667 | D126: 10 | E126: 4 | I126: 99054.33333 | J126: 99243.66667
A127: 125 | B127: 99052.16667 | C127: 99242.33333 | D127: 10 | E127: 5 | I127: 99052.16667 | J127: 99242.33333
A128: 126 | B128: 99050 | C128: 99241 | D128: 10 | E128: 6 | I128: 99050 | J128: 99241
A129: 127 | B129: 99047.83333 | C129: 99239.66667 | D129: 10 | E129: 7 | I129: 99047.83333 | J129: 99239.66667
A130: 128 | B130: 99045.66667 | C130: 99238.33333 | D130: 10 | E130: 8 | I130: 99045.66667 | J130: 99238.33333
A131: 129 | B131: 99043.5 | C131: 99237 | D131: 10 | E131: 9 | I131: 99043.5 | J131: 99237
A132: 130 | B132: 99041.33333 | C132: 99235.66667 | D132: 10 | E132: 10 | I132: 99041.33333 | J132: 99235.66667
A133: 131 | B133: 99039.16667 | C133: 99234.33333 | D133: 10 | E133: 11 | I133: 99039.16667 | J133: 99234.33333
A134: 132 | B134: 99037 | C134: 99233 | D134: 10 | E134: 12 | I134: 99037 | J134: 99233
A135: 133 | B135: 99034.83333 | C135: 99231.5 | D135: 11 | E135: 1 | I135: 99034.83333 | J135: 99231.5
A136: 134 | B136: 99032.66667 | C136: 99230 | D136: 11 | E136: 2 | I136: 99032.66667 | J136: 99230
A137: 135 | B137: 99030.5 | C137: 99228.5 | D137: 11 | E137: 3 | I137: 99030.5 | J137: 99228.5
A138: 136 | B138: 99028.33333 | C138: 99227 | D138: 11 | E138: 4 | I138: 99028.33333 | J138: 99227
A139: 137 | B139: 99026.16667 | C139: 99225.5 | D139: 11 | E139: 5 | I139: 99026.16667 | J139: 99225.5
A140: 138 | B140: 99024 | C140: 99224 | D140: 11 | E140: 6 | I140: 99024 | J140: 99224
A141: 139 | B141: 99021.83333 | C141: 99222.5 | D141: 11 | E141: 7 | I141: 99021.83333 | J141: 99222.5
A142: 140 | B142: 99019.66667 | C142: 99221 | D142: 11 | E142: 8 | I142: 99019.66667 | J142: 99221
A143: 141 | B143: 99017.5 | C143: 99219.5 | D143: 11 | E143: 9 | I143: 99017.5 | J143: 99219.5
A144: 142 | B144: 99015.33333 | C144: 99218 | D144: 11 | E144: 10 | I144: 99015.33333 | J144: 99218
A145: 143 | B145: 99013.16667 | C145: 99216.5 | D145: 11 | E145: 11 | I145: 99013.16667 | J145: 99216.5
A146: 144 | B146: 99011 | C146: 99215 | D146: 11 | E146: 12 | I146: 99011 | J146: 99215
A147: 145 | B147: 99008.5 | C147: 99213.16667 | D147: 12 | E147: 1 | I147: 99008.5 | J147: 99213.16667
A148: 146 | B148: 99006 | C148: 99211.33333 | D148: 12 | E148: 2 | I148: 99006 | J148: 99211.33333
A149: 147 | B149: 99003.5 | C149: 99209.5 | D149: 12 | E149: 3 | I149: 99003.5 | J149: 99209.5
A150: 148 | B150: 99001 | C150: 99207.66667 | D150: 12 | E150: 4 | I150: 99001 | J150: 99207.66667
A151: 149 | B151: 98998.5 | C151: 99205.83333 | D151: 12 | E151: 5 | I151: 98998.5 | J151: 99205.83333
A152: 150 | B152: 98996 | C152: 99204 | D152: 12 | E152: 6 | I152: 98996 | J152: 99204
A153: 151 | B153: 98993.5 | C153: 99202.16667 | D153: 12 | E153: 7 | I153: 98993.5 | J153: 99202.16667
A154: 152 | B154: 98991 | C154: 99200.33333 | D154: 12 | E154: 8 | I154: 98991 | J154: 99200.33333
A155: 153 | B155: 98988.5 | C155: 99198.5 | D155: 12 | E155: 9 | I155: 98988.5 | J155: 99198.5
A156: 154 | B156: 98986 | C156: 99196.66667 | D156: 12 | E156: 10 | I156: 98986 | J156: 99196.66667
A157: 155 | B157: 98983.5 | C157: 99194.83333 | D157: 12 | E157: 11 | I157: 98983.5 | J157: 99194.83333
A158: 156 | B158: 98981 | C158: 99193 | D158: 12 | E158: 12 | I158: 98981 | J158: 99193
A159: 157 | B159: 98977.91667 | C159: 99191.08333 | D159: 13 | E159: 1 | I159: 98977.91667 | J159: 99191.08333
A160: 158 | B160: 98974.83333 | C160: 99189.16667 | D160: 13 | E160: 2 | I160: 98974.83333 | J160: 99189.16667
A161: 159 | B161: 98971.75 | C161: 99187.25 | D161: 13 | E161: 3 | I161: 98971.75 | J161: 99187.25
A162: 160 | B162: 98968.66667 | C162: 99185.33333 | D162: 13 | E162: 4 | I162: 98968.66667 | J162: 99185.33333
A163: 161 | B163: 98965.58333 | C163: 99183.41667 | D163: 13 | E163: 5 | I163: 98965.58333 | J163: 99183.41667
A164: 162 | B164: 98962.5 | C164: 99181.5 | D164: 13 | E164: 6 | I164: 98962.5 | J164: 99181.5
A165: 163 | B165: 98959.41667 | C165: 99179.58333 | D165: 13 | E165: 7 | I165: 98959.41667 | J165: 99179.58333
A166: 164 | B166: 98956.33333 | C166: 99177.66667 | D166: 13 | E166: 8 | I166: 98956.33333 | J166: 99177.66667
A167: 165 | B167: 98953.25 | C167: 99175.75 | D167: 13 | E167: 9 | I167: 98953.25 | J167: 99175.75
A168: 166 | B168: 98950.16667 | C168: 99173.83333 | D168: 13 | E168: 10 | I168: 98950.16667 | J168: 99173.83333
A169: 167 | B169: 98947.08333 | C169: 99171.91667 | D169: 13 | E169: 11 | I169: 98947.08333 | J169: 99171.91667
A170: 168 | B170: 98944 | C170: 99170 | D170: 13 | E170: 12 | I170: 98944 | J170: 99170
A171: 169 | B171: 98940.5 | C171: 99167.25 | D171: 14 | E171: 1 | I171: 98940.5 | J171: 99167.25
A172: 170 | B172: 98937 | C172: 99164.5 | D172: 14 | E172: 2 | I172: 98937 | J172: 99164.5
A173: 171 | B173: 98933.5 | C173: 99161.75 | D173: 14 | E173: 3 | I173: 98933.5 | J173: 99161.75
A174: 172 | B174: 98930 | C174: 99159 | D174: 14 | E174: 4 | I174: 98930 | J174: 99159
A175: 173 | B175: 98926.5 | C175: 99156.25 | D175: 14 | E175: 5 | I175: 98926.5 | J175: 99156.25
A176: 174 | B176: 98923 | C176: 99153.5 | D176: 14 | E176: 6 | I176: 98923 | J176: 99153.5
A177: 175 | B177: 98919.5 | C177: 99150.75 | D177: 14 | E177: 7 | I177: 98919.5 | J177: 99150.75
A178: 176 | B178: 98916 | C178: 99148 | D178: 14 | E178: 8 | I178: 98916 | J178: 99148
A179: 177 | B179: 98912.5 | C179: 99145.25 | D179: 14 | E179: 9 | I179: 98912.5 | J179: 99145.25
A180: 178 | B180: 98909 | C180: 99142.5 | D180: 14 | E180: 10 | I180: 98909 | J180: 99142.5
A181: 179 | B181: 98905.5 | C181: 99139.75 | D181: 14 | E181: 11 | I181: 98905.5 | J181: 99139.75
A182: 180 | B182: 98902 | C182: 99137 | D182: 14 | E182: 12 | I182: 98902 | J182: 99137
A183: 181 | B183: 98897.41667 | C183: 99133.91667 | D183: 15 | E183: 1 | I183: 98897.41667 | J183: 99133.91667
A184: 182 | B184: 98892.83333 | C184: 99130.83333 | D184: 15 | E184: 2 | I184: 98892.83333 | J184: 99130.83333
A185: 183 | B185: 98888.25 | C185: 99127.75 | D185: 15 | E185: 3 | I185: 98888.25 | J185: 99127.75
A186: 184 | B186: 98883.66667 | C186: 99124.66667 | D186: 15 | E186: 4 | I186: 98883.66667 | J186: 99124.66667
A187: 185 | B187: 98879.08333 | C187: 99121.58333 | D187: 15 | E187: 5 | I187: 98879.08333 | J187: 99121.58333
A188: 186 | B188: 98874.5 | C188: 99118.5 | D188: 15 | E188: 6 | I188: 98874.5 | J188: 99118.5
A189: 187 | B189: 98869.91667 | C189: 99115.41667 | D189: 15 | E189: 7 | I189: 98869.91667 | J189: 99115.41667
A190: 188 | B190: 98865.33333 | C190: 99112.33333 | D190: 15 | E190: 8 | I190: 98865.33333 | J190: 99112.33333
A191: 189 | B191: 98860.75 | C191: 99109.25 | D191: 15 | E191: 9 | I191: 98860.75 | J191: 99109.25
A192: 190 | B192: 98856.16667 | C192: 99106.16667 | D192: 15 | E192: 10 | I192: 98856.16667 | J192: 99106.16667
A193: 191 | B193: 98851.58333 | C193: 99103.08333 | D193: 15 | E193: 11 | I193: 98851.58333 | J193: 99103.08333
A194: 192 | B194: 98847 | C194: 99100 | D194: 15 | E194: 12 | I194: 98847 | J194: 99100
A195: 193 | B195: 98841.66667 | C195: 99097.08333 | D195: 16 | E195: 1 | I195: 98841.66667 | J195: 99097.08333
A196: 194 | B196: 98836.33333 | C196: 99094.16667 | D196: 16 | E196: 2 | I196: 98836.33333 | J196: 99094.16667
A197: 195 | B197: 98831 | C197: 99091.25 | D197: 16 | E197: 3 | I197: 98831 | J197: 99091.25
A198: 196 | B198: 98825.66667 | C198: 99088.33333 | D198: 16 | E198: 4 | I198: 98825.66667 | J198: 99088.33333
A199: 197 | B199: 98820.33333 | C199: 99085.41667 | D199: 16 | E199: 5 | I199: 98820.33333 | J199: 99085.41667
A200: 198 | B200: 98815 | C200: 99082.5 | D200: 16 | E200: 6 | I200: 98815 | J200: 99082.5
... 1002 more rows

Sheet Резервы (hidden)
B1: euro | C1: 0.02
B2: USD | C2: 0.04
B3: руб | C3: =IF(Тариф.Кальк!$E$40<=8,0.08,IF(Тариф.Кальк!$E$40<=14,0.07,0.065)) -> 0.08
C5: ГД | D5: Годовщина | E5: Гарант дох-ть | F5: Мат.резерв на начало года | G5: Взнос | H5: ДИД
C6: 1 | D6: 0 | E6: 0.1 | F6: 0 | G6: 50000 | H6: =IF($C6<>"",IF($C6=1,IF(Тариф.Кальк!L51>=1,0,0.5)*$F6*(VLOOKUP(Тариф.Кальк!$G$40,Резервы!$B$1:$C$3,2,FALSE)-E6),$F6*(VLOOKUP(Тариф.Кальк!$G$40,Резервы!$B$1:$C$3,2,FALSE)-E6)+$H5*(1+VLOOKUP(Тариф.Кальк!$G$40,Резервы!$B$1:$C$3,2,FALSE))),0) -> 0 | O6: 6 | Q6: 11 | R6: 1 | S6: 0.1 | T6: 1647377 | U6: 0 | V6: 0.15
C7: 2 | D7: 1 | E7: 0.1 | F7: 88676.77207 | G7: 50000 | H7: =IF($C7<>"",IF($C7=1,IF(Тариф.Кальк!L52>=1,0,0.5)*$F7*(VLOOKUP(Тариф.Кальк!$G$40,Резервы!$B$1:$C$3,2,FALSE)-E7),$F7*(VLOOKUP(Тариф.Кальк!$G$40,Резервы!$B$1:$C$3,2,FALSE)-E7)+$H6*(1+VLOOKUP(Тариф.Кальк!$G$40,Резервы!$B$1:$C$3,2,FALSE))),0) -> -1773.535441 | O7: 6 | Q7: 11 | R7: 1 | S7: 0.1 | T7: 1647377 | U7: 0 | V7: 0.15
C8: 3 | D8: 2 | E8: 0.1 | F8: 186244.7574 | G8: 50000 | H8: =IF($C8<>"",IF($C8=1,IF(Тариф.Кальк!L53>=1,0,0.5)*$F8*(VLOOKUP(Тариф.Кальк!$G$40,Резервы!$B$1:$C$3,2,FALSE)-E8),$F8*(VLOOKUP(Тариф.Кальк!$G$40,Резервы!$B$1:$C$3,2,FALSE)-E8)+$H7*(1+VLOOKUP(Тариф.Кальк!$G$40,Резервы!$B$1:$C$3,2,FALSE))),0) -> -5640.313424 | O8: 6 | Q8: 11 | R8: 1 | S8: 0.1 | T8: 1647377 | U8: 0 | V8: 0.15
C9: 4 | D9: 3 | E9: 0.1 | F9: 293594.4636 | G9: 50000 | H9: =IF($C9<>"",IF($C9=1,IF(Тариф.Кальк!L54>=1,0,0.5)*$F9*(VLOOKUP(Тариф.Кальк!$G$40,Резервы!$B$1:$C$3,2,FALSE)-E9),$F9*(VLOOKUP(Тариф.Кальк!$G$40,Резервы!$B$1:$C$3,2,FALSE)-E9)+$H8*(1+VLOOKUP(Тариф.Кальк!$G$40,Резервы!$B$1:$C$3,2,FALSE))),0) -> -11963.42777 | O9: 6 | Q9: 11 | R9: 1 | S9: 0.1 | T9: 1647377 | U9: 0 | V9: 0.15
C10: 5 | D10: 4 | E10: 0.1 | F10: 411706.5727 | G10: 50000 | H10: =IF($C10<>"",IF($C10=1,IF(Тариф.Кальк!L55>=1,0,0.5)*$F10*(VLOOKUP(Тариф.Кальк!$G$40,Резервы!$B$1:$C$3,2,FALSE)-E10),$F10*(VLOOKUP(Тариф.Кальк!$G$40,Резервы!$B$1:$C$3,2,FALSE)-E10)+$H9*(1+VLOOKUP(Тариф.Кальк!$G$40,Резервы!$B$1:$C$3,2,FALSE))),0) -> -21154.63345 | O10: 6 | Q10: 11 | R10: 1 | S10: 0.1 | T10: 1647377 | U10: 0 | V10: 0.15
C11: 6 | D11: 5 | E11: 0.1 | F11: 541676.4947 | G11: 50000 | H11: =IF($C11<>"",IF($C11=1,IF(Тариф.Кальк!L56>=1,0,0.5)*$F11*(VLOOKUP(Тариф.Кальк!$G$40,Резервы!$B$1:$C$3,2,FALSE)-E11),$F11*(VLOOKUP(Тариф.Кальк!$G$40,Резервы!$B$1:$C$3,2,FALSE)-E11)+$H10*(1+VLOOKUP(Тариф.Кальк!$G$40,Резервы!$B$1:$C$3,2,FALSE))),0) -> -33680.53401 | O11: 6 | Q11: 11 | R11: 1 | S11: 0.1 | T11: 1647377 | U11: 0 | V11: 0.15
C12: 7 | D12: 6 | E12: 0.1 | F12: 684680.9889 | G12: 50000 | H12: =IF($C12<>"",IF($C12=1,IF(Тариф.Кальк!L57>=1,0,0.5)*$F12*(VLOOKUP(Тариф.Кальк!$G$40,Резервы!$B$1:$C$3,2,FALSE)-E12),$F12*(VLOOKUP(Тариф.Кальк!$G$40,Резервы!$B$1:$C$3,2,FALSE)-E12)+$H11*(1+VLOOKUP(Тариф.Кальк!$G$40,Резервы!$B$1:$C$3,2,FALSE))),0) -> -50068.59651 | O12: 6 | Q12: 11 | R12: 1 | S12: 0.1 | T12: 1647377 | U12: 0 | V12: 0.15
C13: 8 | D13: 7 | E13: 0.1 | F13: 842061.3263 | G13: 50000 | H13: =IF($C13<>"",IF($C13=1,IF(Тариф.Кальк!L58>=1,0,0.5)*$F13*(VLOOKUP(Тариф.Кальк!$G$40,Резервы!$B$1:$C$3,2,FALSE)-E13),$F13*(VLOOKUP(Тариф.Кальк!$G$40,Резервы!$B$1:$C$3,2,FALSE)-E13)+$H12*(1+VLOOKUP(Тариф.Кальк!$G$40,Резервы!$B$1:$C$3,2,FALSE))),0) -> -70915.31076 | O13: 6 | Q13: 11 | R13: 1 | S13: 0.1 | T13: 1647377 | U13: 0 | V13: 0.15
C14: 9 | D14: 8 | E14: 0.1 | F14: 1015304.086 | G14: 50000 | H14: =IF($C14<>"",IF($C14=1,IF(Тариф.Кальк!L59>=1,0,0.5)*$F14*(VLOOKUP(Тариф.Кальк!$G$40,Резервы!$B$1:$C$3,2,FALSE)-E14),$F14*(VLOOKUP(Тариф.Кальк!$G$40,Резервы!$B$1:$C$3,2,FALSE)-E14)+$H13*(1+VLOOKUP(Тариф.Кальк!$G$40,Резервы!$B$1:$C$3,2,FALSE))),0) -> -96894.61733 | O14: 6 | Q14: 11 | R14: 1 | S14: 0.1 | T14: 1647377 | U14: 0 | V14: 0.15
C15: 10 | D15: 9 | E15: 0.1 | F15: 1206003.518 | G15: 50000 | H15: =IF($C15<>"",IF($C15=1,IF(Тариф.Кальк!L60>=1,0,0.5)*$F15*(VLOOKUP(Тариф.Кальк!$G$40,Резервы!$B$1:$C$3,2,FALSE)-E15),$F15*(VLOOKUP(Тариф.Кальк!$G$40,Резервы!$B$1:$C$3,2,FALSE)-E15)+$H14*(1+VLOOKUP(Тариф.Кальк!$G$40,Резервы!$B$1:$C$3,2,FALSE))),0) -> -128766.2571 | O15: 6 | Q15: 11 | R15: 1 | S15: 0.1 | T15: 1647377 | U15: 0 | V15: 0.15
C16: 11 | D16: 10 | E16: 0.1 | F16: 1416048.44 | G16: 50000 | H16: =IF($C16<>"",IF($C16=1,IF(Тариф.Кальк!L61>=1,0,0.5)*$F16*(VLOOKUP(Тариф.Кальк!$G$40,Резервы!$B$1:$C$3,2,FALSE)-E16),$F16*(VLOOKUP(Тариф.Кальк!$G$40,Резервы!$B$1:$C$3,2,FALSE)-E16)+$H15*(1+VLOOKUP(Тариф.Кальк!$G$40,Резервы!$B$1:$C$3,2,FALSE))),0) -> -167388.5264 | O16: 6 | Q16: 11 | R16: 1 | S16: 0.1 | T16: 1647377 | U16: 0 | V16: 0.15
G17: 0 | H17: =IF($C17<>"",IF($C17=1,IF(Тариф.Кальк!L62>=1,0,0.5)*$F17*(VLOOKUP(Тариф.Кальк!$G$40,Резервы!$B$1:$C$3,2,FALSE)-E17),$F17*(VLOOKUP(Тариф.Кальк!$G$40,Резервы!$B$1:$C$3,2,FALSE)-E17)+$H16*(1+VLOOKUP(Тариф.Кальк!$G$40,Резервы!$B$1:$C$3,2,FALSE))),0) -> 0
G18: 0 | H18: =IF($C18<>"",IF($C18=1,IF(Тариф.Кальк!L63>=1,0,0.5)*$F18*(VLOOKUP(Тариф.Кальк!$G$40,Резервы!$B$1:$C$3,2,FALSE)-E18),$F18*(VLOOKUP(Тариф.Кальк!$G$40,Резервы!$B$1:$C$3,2,FALSE)-E18)+$H17*(1+VLOOKUP(Тариф.Кальк!$G$40,Резервы!$B$1:$C$3,2,FALSE))),0) -> 0
G19: 0 | H19: =IF($C19<>"",IF($C19=1,IF(Тариф.Кальк!#REF!>=1,0,0.5)*$F19*(VLOOKUP(Тариф.Кальк!$G$40,Резервы!$B$1:$C$3,2,FALSE)-E19),$F19*(VLOOKUP(Тариф.Кальк!$G$40,Резервы!$B$1:$C$3,2,FALSE)-E19)+$H18*(1+VLOOKUP(Тариф.Кальк!$G$40,Резервы!$B$1:$C$3,2,FALSE))),0) -> 0
G20: 0 | H20: =IF($C20<>"",IF($C20=1,IF(Тариф.Кальк!K64>=1,0,0.5)*$F20*(VLOOKUP(Тариф.Кальк!$G$40,Резервы!$B$1:$C$3,2,FALSE)-E20),$F20*(VLOOKUP(Тариф.Кальк!$G$40,Резервы!$B$1:$C$3,2,FALSE)-E20)+$H19*(1+VLOOKUP(Тариф.Кальк!$G$40,Резервы!$B$1:$C$3,2,FALSE))),0) -> 0
G21: 21000 | H21: =IF($C21<>"",IF($C21=1,IF(Тариф.Кальк!L65>=1,0,0.5)*$F21*(VLOOKUP(Тариф.Кальк!$G$40,Резервы!$B$1:$C$3,2,FALSE)-E21),$F21*(VLOOKUP(Тариф.Кальк!$G$40,Резервы!$B$1:$C$3,2,FALSE)-E21)+$H20*(1+VLOOKUP(Тариф.Кальк!$G$40,Резервы!$B$1:$C$3,2,FALSE))),0) -> 0
G22: 21000 | H22: =IF($C22<>"",IF($C22=1,IF(Тариф.Кальк!#REF!>=1,0,0.5)*$F22*(VLOOKUP(Тариф.Кальк!$G$40,Резервы!$B$1:$C$3,2,FALSE)-E22),$F22*(VLOOKUP(Тариф.Кальк!$G$40,Резервы!$B$1:$C$3,2,FALSE)-E22)+$H21*(1+VLOOKUP(Тариф.Кальк!$G$40,Резервы!$B$1:$C$3,2,FALSE))),0) -> 0
G23: 21000 | H23: =IF($C23<>"",IF($C23=1,IF(Тариф.Кальк!#REF!>=1,0,0.5)*$F23*(VLOOKUP(Тариф.Кальк!$G$40,Резервы!$B$1:$C$3,2,FALSE)-E23),$F23*(VLOOKUP(Тариф.Кальк!$G$40,Резервы!$B$1:$C$3,2,FALSE)-E23)+$H22*(1+VLOOKUP(Тариф.Кальк!$G$40,Резервы!$B$1:$C$3,2,FALSE))),0) -> 0
G24: 21000 | H24: =IF($C24<>"",IF($C24=1,IF(Тариф.Кальк!#REF!>=1,0,0.5)*$F24*(VLOOKUP(Тариф.Кальк!$G$40,Резервы!$B$1:$C$3,2,FALSE)-E24),$F24*(VLOOKUP(Тариф.Кальк!$G$40,Резервы!$B$1:$C$3,2,FALSE)-E24)+$H23*(1+VLOOKUP(Тариф.Кальк!$G$40,Резервы!$B$1:$C$3,2,FALSE))),0) -> 0
G25: 21000 | H25: =IF($C25<>"",IF($C25=1,IF(Тариф.Кальк!L70>=1,0,0.5)*$F25*(VLOOKUP(Тариф.Кальк!$G$40,Резервы!$B$1:$C$3,2,FALSE)-E25),$F25*(VLOOKUP(Тариф.Кальк!$G$40,Резервы!$B$1:$C$3,2,FALSE)-E25)+$H24*(1+VLOOKUP(Тариф.Кальк!$G$40,Резервы!$B$1:$C$3,2,FALSE))),0) -> 0
G26: 21000 | H26: =IF($C26<>"",IF($C26=1,IF(Тариф.Кальк!#REF!>=1,0,0.5)*$F26*(VLOOKUP(Тариф.Кальк!$G$40,Резервы!$B$1:$C$3,2,FALSE)-E26),$F26*(VLOOKUP(Тариф.Кальк!$G$40,Резервы!$B$1:$C$3,2,FALSE)-E26)+$H25*(1+VLOOKUP(Тариф.Кальк!$G$40,Резервы!$B$1:$C$3,2,FALSE))),0) -> 0
G27: 21000 | H27: =IF($C27<>"",IF($C27=1,IF(Тариф.Кальк!L68>=1,0,0.5)*$F27*(VLOOKUP(Тариф.Кальк!$G$40,Резервы!$B$1:$C$3,2,FALSE)-E27),$F27*(VLOOKUP(Тариф.Кальк!$G$40,Резервы!$B$1:$C$3,2,FALSE)-E27)+$H26*(1+VLOOKUP(Тариф.Кальк!$G$40,Резервы!$B$1:$C$3,2,FALSE))),0) -> 0
G28: 21000 | H28: =IF($C28<>"",IF($C28=1,IF(Тариф.Кальк!L69>=1,0,0.5)*$F28*(VLOOKUP(Тариф.Кальк!$G$40,Резервы!$B$1:$C$3,2,FALSE)-E28),$F28*(VLOOKUP(Тариф.Кальк!$G$40,Резервы!$B$1:$C$3,2,FALSE)-E28)+$H27*(1+VLOOKUP(Тариф.Кальк!$G$40,Резервы!$B$1:$C$3,2,FALSE))),0) -> 0
H29: =IF($C29<>"",IF($C29=1,IF(Тариф.Кальк!#REF!>=1,0,0.5)*$F29*(VLOOKUP(Тариф.Кальк!$G$40,Резервы!$B$1:$C$3,2,FALSE)-E29),$F29*(VLOOKUP(Тариф.Кальк!$G$40,Резервы!$B$1:$C$3,2,FALSE)-E29)+$H28*(1+VLOOKUP(Тариф.Кальк!$G$40,Резервы!$B$1:$C$3,2,FALSE))),0) -> 0
H30: =IF($C30<>"",IF($C30=1,IF(Тариф.Кальк!L72>=1,0,0.5)*$F30*(VLOOKUP(Тариф.Кальк!$G$40,Резервы!$B$1:$C$3,2,FALSE)-E30),$F30*(VLOOKUP(Тариф.Кальк!$G$40,Резервы!$B$1:$C$3,2,FALSE)-E30)+$H29*(1+VLOOKUP(Тариф.Кальк!$G$40,Резервы!$B$1:$C$3,2,FALSE))),0) -> 0
H31: =IF($C31<>"",IF($C31=1,IF(Тариф.Кальк!#REF!>=1,0,0.5)*$F31*(VLOOKUP(Тариф.Кальк!$G$40,Резервы!$B$1:$C$3,2,FALSE)-E31),$F31*(VLOOKUP(Тариф.Кальк!$G$40,Резервы!$B$1:$C$3,2,FALSE)-E31)+$H30*(1+VLOOKUP(Тариф.Кальк!$G$40,Резервы!$B$1:$C$3,2,FALSE))),0) -> 0
H32: =IF($C32<>"",IF($C32=1,IF(Тариф.Кальк!L73>=1,0,0.5)*$F32*(VLOOKUP(Тариф.Кальк!$G$40,Резервы!$B$1:$C$3,2,FALSE)-E32),$F32*(VLOOKUP(Тариф.Кальк!$G$40,Резервы!$B$1:$C$3,2,FALSE)-E32)+$H31*(1+VLOOKUP(Тариф.Кальк!$G$40,Резервы!$B$1:$C$3,2,FALSE))),0) -> 0
H33: =IF($C33<>"",IF($C33=1,IF(Тариф.Кальк!L74>=1,0,0.5)*$F33*(VLOOKUP(Тариф.Кальк!$G$40,Резервы!$B$1:$C$3,2,FALSE)-E33),$F33*(VLOOKUP(Тариф.Кальк!$G$40,Резервы!$B$1:$C$3,2,FALSE)-E33)+$H32*(1+VLOOKUP(Тариф.Кальк!$G$40,Резервы!$B$1:$C$3,2,FALSE))),0) -> 0
H34: =IF($C34<>"",IF($C34=1,IF(Тариф.Кальк!L75>=1,0,0.5)*$F34*(VLOOKUP(Тариф.Кальк!$G$40,Резервы!$B$1:$C$3,2,FALSE)-E34),$F34*(VLOOKUP(Тариф.Кальк!$G$40,Резервы!$B$1:$C$3,2,FALSE)-E34)+$H33*(1+VLOOKUP(Тариф.Кальк!$G$40,Резервы!$B$1:$C$3,2,FALSE))),0) -> 0
H35: =IF($C35<>"",IF($C35=1,IF(Тариф.Кальк!L76>=1,0,0.5)*$F35*(VLOOKUP(Тариф.Кальк!$G$40,Резервы!$B$1:$C$3,2,FALSE)-E35),$F35*(VLOOKUP(Тариф.Кальк!$G$40,Резервы!$B$1:$C$3,2,FALSE)-E35)+$H34*(1+VLOOKUP(Тариф.Кальк!$G$40,Резервы!$B$1:$C$3,2,FALSE))),0) -> 0
H36: =IF($C36<>"",IF($C36=1,IF(Тариф.Кальк!L77>=1,0,0.5)*$F36*(VLOOKUP(Тариф.Кальк!$G$40,Резервы!$B$1:$C$3,2,FALSE)-E36),$F36*(VLOOKUP(Тариф.Кальк!$G$40,Резервы!$B$1:$C$3,2,FALSE)-E36)+$H35*(1+VLOOKUP(Тариф.Кальк!$G$40,Резервы!$B$1:$C$3,2,FALSE))),0) -> 0
H37: =IF($C37<>"",IF($C37=1,IF(Тариф.Кальк!L78>=1,0,0.5)*$F37*(VLOOKUP(Тариф.Кальк!$G$40,Резервы!$B$1:$C$3,2,FALSE)-E37),$F37*(VLOOKUP(Тариф.Кальк!$G$40,Резервы!$B$1:$C$3,2,FALSE)-E37)+$H36*(1+VLOOKUP(Тариф.Кальк!$G$40,Резервы!$B$1:$C$3,2,FALSE))),0) -> 0
H38: =IF($C38<>"",IF($C38=1,IF(Тариф.Кальк!L79>=1,0,0.5)*$F38*(VLOOKUP(Тариф.Кальк!$G$40,Резервы!$B$1:$C$3,2,FALSE)-E38),$F38*(VLOOKUP(Тариф.Кальк!$G$40,Резервы!$B$1:$C$3,2,FALSE)-E38)+$H37*(1+VLOOKUP(Тариф.Кальк!$G$40,Резервы!$B$1:$C$3,2,FALSE))),0) -> 0
H39: =IF($C39<>"",IF($C39=1,IF(Тариф.Кальк!L80>=1,0,0.5)*$F39*(VLOOKUP(Тариф.Кальк!$G$40,Резервы!$B$1:$C$3,2,FALSE)-E39),$F39*(VLOOKUP(Тариф.Кальк!$G$40,Резервы!$B$1:$C$3,2,FALSE)-E39)+$H38*(1+VLOOKUP(Тариф.Кальк!$G$40,Резервы!$B$1:$C$3,2,FALSE))),0) -> 0
H40: =IF($C40<>"",IF($C40=1,IF(Тариф.Кальк!L81>=1,0,0.5)*$F40*(VLOOKUP(Тариф.Кальк!$G$40,Резервы!$B$1:$C$3,2,FALSE)-E40),$F40*(VLOOKUP(Тариф.Кальк!$G$40,Резервы!$B$1:$C$3,2,FALSE)-E40)+$H39*(1+VLOOKUP(Тариф.Кальк!$G$40,Резервы!$B$1:$C$3,2,FALSE))),0) -> 0
H41: =IF($C41<>"",IF($C41=1,IF(Тариф.Кальк!L82>=1,0,0.5)*$F41*(VLOOKUP(Тариф.Кальк!$G$40,Резервы!$B$1:$C$3,2,FALSE)-E41),$F41*(VLOOKUP(Тариф.Кальк!$G$40,Резервы!$B$1:$C$3,2,FALSE)-E41)+$H40*(1+VLOOKUP(Тариф.Кальк!$G$40,Резервы!$B$1:$C$3,2,FALSE))),0) -> 0
H42: =IF($C42<>"",IF($C42=1,IF(Тариф.Кальк!L83>=1,0,0.5)*$F42*(VLOOKUP(Тариф.Кальк!$G$40,Резервы!$B$1:$C$3,2,FALSE)-E42),$F42*(VLOOKUP(Тариф.Кальк!$G$40,Резервы!$B$1:$C$3,2,FALSE)-E42)+$H41*(1+VLOOKUP(Тариф.Кальк!$G$40,Резервы!$B$1:$C$3,2,FALSE))),0) -> 0
H43: =IF($C43<>"",IF($C43=1,IF(Тариф.Кальк!L84>=1,0,0.5)*$F43*(VLOOKUP(Тариф.Кальк!$G$40,Резервы!$B$1:$C$3,2,FALSE)-E43),$F43*(VLOOKUP(Тариф.Кальк!$G$40,Резервы!$B$1:$C$3,2,FALSE)-E43)+$H42*(1+VLOOKUP(Тариф.Кальк!$G$40,Резервы!$B$1:$C$3,2,FALSE))),0) -> 0
H44: =IF($C44<>"",IF($C44=1,IF(Тариф.Кальк!L85>=1,0,0.5)*$F44*(VLOOKUP(Тариф.Кальк!$G$40,Резервы!$B$1:$C$3,2,FALSE)-E44),$F44*(VLOOKUP(Тариф.Кальк!$G$40,Резервы!$B$1:$C$3,2,FALSE)-E44)+$H43*(1+VLOOKUP(Тариф.Кальк!$G$40,Резервы!$B$1:$C$3,2,FALSE))),0) -> 0
H45: =IF($C45<>"",IF($C45=1,IF(Тариф.Кальк!L86>=1,0,0.5)*$F45*(VLOOKUP(Тариф.Кальк!$G$40,Резервы!$B$1:$C$3,2,FALSE)-E45),$F45*(VLOOKUP(Тариф.Кальк!$G$40,Резервы!$B$1:$C$3,2,FALSE)-E45)+$H44*(1+VLOOKUP(Тариф.Кальк!$G$40,Резервы!$B$1:$C$3,2,FALSE))),0) -> 0
H46: =IF($C46<>"",IF($C46=1,IF(Тариф.Кальк!L87>=1,0,0.5)*$F46*(VLOOKUP(Тариф.Кальк!$G$40,Резервы!$B$1:$C$3,2,FALSE)-E46),$F46*(VLOOKUP(Тариф.Кальк!$G$40,Резервы!$B$1:$C$3,2,FALSE)-E46)+$H45*(1+VLOOKUP(Тариф.Кальк!$G$40,Резервы!$B$1:$C$3,2,FALSE))),0) -> 0
H47: =IF($C47<>"",IF($C47=1,IF(Тариф.Кальк!L88>=1,0,0.5)*$F47*(VLOOKUP(Тариф.Кальк!$G$40,Резервы!$B$1:$C$3,2,FALSE)-E47),$F47*(VLOOKUP(Тариф.Кальк!$G$40,Резервы!$B$1:$C$3,2,FALSE)-E47)+$H46*(1+VLOOKUP(Тариф.Кальк!$G$40,Резервы!$B$1:$C$3,2,FALSE))),0) -> 0
H48: =IF($C48<>"",IF($C48=1,IF(Тариф.Кальк!L89>=1,0,0.5)*$F48*(VLOOKUP(Тариф.Кальк!$G$40,Резервы!$B$1:$C$3,2,FALSE)-E48),$F48*(VLOOKUP(Тариф.Кальк!$G$40,Резервы!$B$1:$C$3,2,FALSE)-E48)+$H47*(1+VLOOKUP(Тариф.Кальк!$G$40,Резервы!$B$1:$C$3,2,FALSE))),0) -> 0
H49: =IF($C49<>"",IF($C49=1,IF(Тариф.Кальк!L90>=1,0,0.5)*$F49*(VLOOKUP(Тариф.Кальк!$G$40,Резервы!$B$1:$C$3,2,FALSE)-E49),$F49*(VLOOKUP(Тариф.Кальк!$G$40,Резервы!$B$1:$C$3,2,FALSE)-E49)+$H48*(1+VLOOKUP(Тариф.Кальк!$G$40,Резервы!$B$1:$C$3,2,FALSE))),0) -> 0
H50: =IF($C50<>"",IF($C50=1,IF(Тариф.Кальк!L91>=1,0,0.5)*$F50*(VLOOKUP(Тариф.Кальк!$G$40,Резервы!$B$1:$C$3,2,FALSE)-E50),$F50*(VLOOKUP(Тариф.Кальк!$G$40,Резервы!$B$1:$C$3,2,FALSE)-E50)+$H49*(1+VLOOKUP(Тариф.Кальк!$G$40,Резервы!$B$1:$C$3,2,FALSE))),0) -> 0
H51: =IF($C51<>"",IF($C51=1,IF(Тариф.Кальк!L92>=1,0,0.5)*$F51*(VLOOKUP(Тариф.Кальк!$G$40,Резервы!$B$1:$C$3,2,FALSE)-E51),$F51*(VLOOKUP(Тариф.Кальк!$G$40,Резервы!$B$1:$C$3,2,FALSE)-E51)+$H50*(1+VLOOKUP(Тариф.Кальк!$G$40,Резервы!$B$1:$C$3,2,FALSE))),0) -> 0
H52: =IF($C52<>"",IF($C52=1,IF(Тариф.Кальк!L93>=1,0,0.5)*$F52*(VLOOKUP(Тариф.Кальк!$G$40,Резервы!$B$1:$C$3,2,FALSE)-E52),$F52*(VLOOKUP(Тариф.Кальк!$G$40,Резервы!$B$1:$C$3,2,FALSE)-E52)+$H51*(1+VLOOKUP(Тариф.Кальк!$G$40,Резервы!$B$1:$C$3,2,FALSE))),0) -> 0
H53: =IF($C53<>"",IF($C53=1,IF(Тариф.Кальк!L94>=1,0,0.5)*$F53*(VLOOKUP(Тариф.Кальк!$G$40,Резервы!$B$1:$C$3,2,FALSE)-E53),$F53*(VLOOKUP(Тариф.Кальк!$G$40,Резервы!$B$1:$C$3,2,FALSE)-E53)+$H52*(1+VLOOKUP(Тариф.Кальк!$G$40,Резервы!$B$1:$C$3,2,FALSE))),0) -> 0
H54: =IF($C54<>"",IF($C54=1,IF(Тариф.Кальк!L95>=1,0,0.5)*$F54*(VLOOKUP(Тариф.Кальк!$G$40,Резервы!$B$1:$C$3,2,FALSE)-E54),$F54*(VLOOKUP(Тариф.Кальк!$G$40,Резервы!$B$1:$C$3,2,FALSE)-E54)+$H53*(1+VLOOKUP(Тариф.Кальк!$G$40,Резервы!$B$1:$C$3,2,FALSE))),0) -> 0
H55: =IF($C55<>"",IF($C55=1,IF(Тариф.Кальк!L96>=1,0,0.5)*$F55*(VLOOKUP(Тариф.Кальк!$G$40,Резервы!$B$1:$C$3,2,FALSE)-E55),$F55*(VLOOKUP(Тариф.Кальк!$G$40,Резервы!$B$1:$C$3,2,FALSE)-E55)+$H54*(1+VLOOKUP(Тариф.Кальк!$G$40,Резервы!$B$1:$C$3,2,FALSE))),0) -> 0
H56: =IF($C56<>"",IF($C56=1,IF(Тариф.Кальк!L97>=1,0,0.5)*$F56*(VLOOKUP(Тариф.Кальк!$G$40,Резервы!$B$1:$C$3,2,FALSE)-E56),$F56*(VLOOKUP(Тариф.Кальк!$G$40,Резервы!$B$1:$C$3,2,FALSE)-E56)+$H55*(1+VLOOKUP(Тариф.Кальк!$G$40,Резервы!$B$1:$C$3,2,FALSE))),0) -> 0
H57: =IF($C57<>"",IF($C57=1,IF(Тариф.Кальк!L98>=1,0,0.5)*$F57*(VLOOKUP(Тариф.Кальк!$G$40,Резервы!$B$1:$C$3,2,FALSE)-E57),$F57*(VLOOKUP(Тариф.Кальк!$G$40,Резервы!$B$1:$C$3,2,FALSE)-E57)+$H56*(1+VLOOKUP(Тариф.Кальк!$G$40,Резервы!$B$1:$C$3,2,FALSE))),0) -> 0
H58: =IF($C58<>"",IF($C58=1,IF(Тариф.Кальк!L99>=1,0,0.5)*$F58*(VLOOKUP(Тариф.Кальк!$G$40,Резервы!$B$1:$C$3,2,FALSE)-E58),$F58*(VLOOKUP(Тариф.Кальк!$G$40,Резервы!$B$1:$C$3,2,FALSE)-E58)+$H57*(1+VLOOKUP(Тариф.Кальк!$G$40,Резервы!$B$1:$C$3,2,FALSE))),0) -> 0
H59: =IF($C59<>"",IF($C59=1,IF(Тариф.Кальк!L100>=1,0,0.5)*$F59*(VLOOKUP(Тариф.Кальк!$G$40,Резервы!$B$1:$C$3,2,FALSE)-E59),$F59*(VLOOKUP(Тариф.Кальк!$G$40,Резервы!$B$1:$C$3,2,FALSE)-E59)+$H58*(1+VLOOKUP(Тариф.Кальк!$G$40,Резервы!$B$1:$C$3,2,FALSE))),0) -> 0
H60: =IF($C60<>"",IF($C60=1,IF(Тариф.Кальк!L101>=1,0,0.5)*$F60*(VLOOKUP(Тариф.Кальк!$G$40,Резервы!$B$1:$C$3,2,FALSE)-E60),$F60*(VLOOKUP(Тариф.Кальк!$G$40,Резервы!$B$1:$C$3,2,FALSE)-E60)+$H59*(1+VLOOKUP(Тариф.Кальк!$G$40,Резервы!$B$1:$C$3,2,FALSE))),0) -> 0
H61: =IF($C61<>"",IF($C61=1,IF(Тариф.Кальк!L102>=1,0,0.5)*$F61*(VLOOKUP(Тариф.Кальк!$G$40,Резервы!$B$1:$C$3,2,FALSE)-E61),$F61*(VLOOKUP(Тариф.Кальк!$G$40,Резервы!$B$1:$C$3,2,FALSE)-E61)+$H60*(1+VLOOKUP(Тариф.Кальк!$G$40,Резервы!$B$1:$C$3,2,FALSE))),0) -> 0
H62: =IF($C62<>"",IF($C62=1,IF(Тариф.Кальк!L103>=1,0,0.5)*$F62*(VLOOKUP(Тариф.Кальк!$G$40,Резервы!$B$1:$C$3,2,FALSE)-E62),$F62*(VLOOKUP(Тариф.Кальк!$G$40,Резервы!$B$1:$C$3,2,FALSE)-E62)+$H61*(1+VLOOKUP(Тариф.Кальк!$G$40,Резервы!$B$1:$C$3,2,FALSE))),0) -> 0
H63: =IF($C63<>"",IF($C63=1,IF(Тариф.Кальк!L104>=1,0,0.5)*$F63*(VLOOKUP(Тариф.Кальк!$G$40,Резервы!$B$1:$C$3,2,FALSE)-E63),$F63*(VLOOKUP(Тариф.Кальк!$G$40,Резервы!$B$1:$C$3,2,FALSE)-E63)+$H62*(1+VLOOKUP(Тариф.Кальк!$G$40,Резервы!$B$1:$C$3,2,FALSE))),0) -> 0
H64: =IF($C64<>"",IF($C64=1,IF(Тариф.Кальк!L105>=1,0,0.5)*$F64*(VLOOKUP(Тариф.Кальк!$G$40,Резервы!$B$1:$C$3,2,FALSE)-E64),$F64*(VLOOKUP(Тариф.Кальк!$G$40,Резервы!$B$1:$C$3,2,FALSE)-E64)+$H63*(1+VLOOKUP(Тариф.Кальк!$G$40,Резервы!$B$1:$C$3,2,FALSE))),0) -> 0
H65: =IF($C65<>"",IF($C65=1,IF(Тариф.Кальк!L106>=1,0,0.5)*$F65*(VLOOKUP(Тариф.Кальк!$G$40,Резервы!$B$1:$C$3,2,FALSE)-E65),$F65*(VLOOKUP(Тариф.Кальк!$G$40,Резервы!$B$1:$C$3,2,FALSE)-E65)+$H64*(1+VLOOKUP(Тариф.Кальк!$G$40,Резервы!$B$1:$C$3,2,FALSE))),0) -> 0
H66: =IF($C66<>"",IF($C66=1,IF(Тариф.Кальк!L107>=1,0,0.5)*$F66*(VLOOKUP(Тариф.Кальк!$G$40,Резервы!$B$1:$C$3,2,FALSE)-E66),$F66*(VLOOKUP(Тариф.Кальк!$G$40,Резервы!$B$1:$C$3,2,FALSE)-E66)+$H65*(1+VLOOKUP(Тариф.Кальк!$G$40,Резервы!$B$1:$C$3,2,FALSE))),0) -> 0
H67: =IF($C67<>"",IF($C67=1,IF(Тариф.Кальк!L108>=1,0,0.5)*$F67*(VLOOKUP(Тариф.Кальк!$G$40,Резервы!$B$1:$C$3,2,FALSE)-E67),$F67*(VLOOKUP(Тариф.Кальк!$G$40,Резервы!$B$1:$C$3,2,FALSE)-E67)+$H66*(1+VLOOKUP(Тариф.Кальк!$G$40,Резервы!$B$1:$C$3,2,FALSE))),0) -> 0
H68: =IF($C68<>"",IF($C68=1,IF(Тариф.Кальк!L109>=1,0,0.5)*$F68*(VLOOKUP(Тариф.Кальк!$G$40,Резервы!$B$1:$C$3,2,FALSE)-E68),$F68*(VLOOKUP(Тариф.Кальк!$G$40,Резервы!$B$1:$C$3,2,FALSE)-E68)+$H67*(1+VLOOKUP(Тариф.Кальк!$G$40,Резервы!$B$1:$C$3,2,FALSE))),0) -> 0
H69: =IF($C69<>"",IF($C69=1,IF(Тариф.Кальк!L110>=1,0,0.5)*$F69*(VLOOKUP(Тариф.Кальк!$G$40,Резервы!$B$1:$C$3,2,FALSE)-E69),$F69*(VLOOKUP(Тариф.Кальк!$G$40,Резервы!$B$1:$C$3,2,FALSE)-E69)+$H68*(1+VLOOKUP(Тариф.Кальк!$G$40,Резервы!$B$1:$C$3,2,FALSE))),0) -> 0
H70: =IF($C70<>"",IF($C70=1,IF(Тариф.Кальк!L111>=1,0,0.5)*$F70*(VLOOKUP(Тариф.Кальк!$G$40,Резервы!$B$1:$C$3,2,FALSE)-E70),$F70*(VLOOKUP(Тариф.Кальк!$G$40,Резервы!$B$1:$C$3,2,FALSE)-E70)+$H69*(1+VLOOKUP(Тариф.Кальк!$G$40,Резервы!$B$1:$C$3,2,FALSE))),0) -> 0
H71: =IF($C71<>"",IF($C71=1,IF(Тариф.Кальк!L112>=1,0,0.5)*$F71*(VLOOKUP(Тариф.Кальк!$G$40,Резервы!$B$1:$C$3,2,FALSE)-E71),$F71*(VLOOKUP(Тариф.Кальк!$G$40,Резервы!$B$1:$C$3,2,FALSE)-E71)+$H70*(1+VLOOKUP(Тариф.Кальк!$G$40,Резервы!$B$1:$C$3,2,FALSE))),0) -> 0
H72: =IF($C72<>"",IF($C72=1,IF(Тариф.Кальк!L113>=1,0,0.5)*$F72*(VLOOKUP(Тариф.Кальк!$G$40,Резервы!$B$1:$C$3,2,FALSE)-E72),$F72*(VLOOKUP(Тариф.Кальк!$G$40,Резервы!$B$1:$C$3,2,FALSE)-E72)+$H71*(1+VLOOKUP(Тариф.Кальк!$G$40,Резервы!$B$1:$C$3,2,FALSE))),0) -> 0
H73: =IF($C73<>"",IF($C73=1,IF(Тариф.Кальк!L114>=1,0,0.5)*$F73*(VLOOKUP(Тариф.Кальк!$G$40,Резервы!$B$1:$C$3,2,FALSE)-E73),$F73*(VLOOKUP(Тариф.Кальк!$G$40,Резервы!$B$1:$C$3,2,FALSE)-E73)+$H72*(1+VLOOKUP(Тариф.Кальк!$G$40,Резервы!$B$1:$C$3,2,FALSE))),0) -> 0
H74: =IF($C74<>"",IF($C74=1,IF(Тариф.Кальк!L115>=1,0,0.5)*$F74*(VLOOKUP(Тариф.Кальк!$G$40,Резервы!$B$1:$C$3,2,FALSE)-E74),$F74*(VLOOKUP(Тариф.Кальк!$G$40,Резервы!$B$1:$C$3,2,FALSE)-E74)+$H73*(1+VLOOKUP(Тариф.Кальк!$G$40,Резервы!$B$1:$C$3,2,FALSE))),0) -> 0
H75: =IF($C75<>"",IF($C75=1,IF(Тариф.Кальк!L116>=1,0,0.5)*$F75*(VLOOKUP(Тариф.Кальк!$G$40,Резервы!$B$1:$C$3,2,FALSE)-E75),$F75*(VLOOKUP(Тариф.Кальк!$G$40,Резервы!$B$1:$C$3,2,FALSE)-E75)+$H74*(1+VLOOKUP(Тариф.Кальк!$G$40,Резервы!$B$1:$C$3,2,FALSE))),0) -> 0
H76: =IF($C76<>"",IF($C76=1,IF(Тариф.Кальк!L117>=1,0,0.5)*$F76*(VLOOKUP(Тариф.Кальк!$G$40,Резервы!$B$1:$C$3,2,FALSE)-E76),$F76*(VLOOKUP(Тариф.Кальк!$G$40,Резервы!$B$1:$C$3,2,FALSE)-E76)+$H75*(1+VLOOKUP(Тариф.Кальк!$G$40,Резервы!$B$1:$C$3,2,FALSE))),0) -> 0
H77: =IF($C77<>"",IF($C77=1,IF(Тариф.Кальк!L118>=1,0,0.5)*$F77*(VLOOKUP(Тариф.Кальк!$G$40,Резервы!$B$1:$C$3,2,FALSE)-E77),$F77*(VLOOKUP(Тариф.Кальк!$G$40,Резервы!$B$1:$C$3,2,FALSE)-E77)+$H76*(1+VLOOKUP(Тариф.Кальк!$G$40,Резервы!$B$1:$C$3,2,FALSE))),0) -> 0
H78: =IF($C78<>"",IF($C78=1,IF(Тариф.Кальк!L119>=1,0,0.5)*$F78*(VLOOKUP(Тариф.Кальк!$G$40,Резервы!$B$1:$C$3,2,FALSE)-E78),$F78*(VLOOKUP(Тариф.Кальк!$G$40,Резервы!$B$1:$C$3,2,FALSE)-E78)+$H77*(1+VLOOKUP(Тариф.Кальк!$G$40,Резервы!$B$1:$C$3,2,FALSE))),0) -> 0
H79: =IF($C79<>"",IF($C79=1,IF(Тариф.Кальк!L120>=1,0,0.5)*$F79*(VLOOKUP(Тариф.Кальк!$G$40,Резервы!$B$1:$C$3,2,FALSE)-E79),$F79*(VLOOKUP(Тариф.Кальк!$G$40,Резервы!$B$1:$C$3,2,FALSE)-E79)+$H78*(1+VLOOKUP(Тариф.Кальк!$G$40,Резервы!$B$1:$C$3,2,FALSE))),0) -> 0
H80: =IF($C80<>"",IF($C80=1,IF(Тариф.Кальк!L121>=1,0,0.5)*$F80*(VLOOKUP(Тариф.Кальк!$G$40,Резервы!$B$1:$C$3,2,FALSE)-E80),$F80*(VLOOKUP(Тариф.Кальк!$G$40,Резервы!$B$1:$C$3,2,FALSE)-E80)+$H79*(1+VLOOKUP(Тариф.Кальк!$G$40,Резервы!$B$1:$C$3,2,FALSE))),0) -> 0
H81: =IF($C81<>"",IF($C81=1,IF(Тариф.Кальк!L122>=1,0,0.5)*$F81*(VLOOKUP(Тариф.Кальк!$G$40,Резервы!$B$1:$C$3,2,FALSE)-E81),$F81*(VLOOKUP(Тариф.Кальк!$G$40,Резервы!$B$1:$C$3,2,FALSE)-E81)+$H80*(1+VLOOKUP(Тариф.Кальк!$G$40,Резервы!$B$1:$C$3,2,FALSE))),0) -> 0
H82: =IF($C82<>"",IF($C82=1,IF(Тариф.Кальк!L123>=1,0,0.5)*$F82*(VLOOKUP(Тариф.Кальк!$G$40,Резервы!$B$1:$C$3,2,FALSE)-E82),$F82*(VLOOKUP(Тариф.Кальк!$G$40,Резервы!$B$1:$C$3,2,FALSE)-E82)+$H81*(1+VLOOKUP(Тариф.Кальк!$G$40,Резервы!$B$1:$C$3,2,FALSE))),0) -> 0
H83: =IF($C83<>"",IF($C83=1,IF(Тариф.Кальк!L124>=1,0,0.5)*$F83*(VLOOKUP(Тариф.Кальк!$G$40,Резервы!$B$1:$C$3,2,FALSE)-E83),$F83*(VLOOKUP(Тариф.Кальк!$G$40,Резервы!$B$1:$C$3,2,FALSE)-E83)+$H82*(1+VLOOKUP(Тариф.Кальк!$G$40,Резервы!$B$1:$C$3,2,FALSE))),0) -> 0
H84: =IF($C84<>"",IF($C84=1,IF(Тариф.Кальк!L125>=1,0,0.5)*$F84*(VLOOKUP(Тариф.Кальк!$G$40,Резервы!$B$1:$C$3,2,FALSE)-E84),$F84*(VLOOKUP(Тариф.Кальк!$G$40,Резервы!$B$1:$C$3,2,FALSE)-E84)+$H83*(1+VLOOKUP(Тариф.Кальк!$G$40,Резервы!$B$1:$C$3,2,FALSE))),0) -> 0
H85: =IF($C85<>"",IF($C85=1,IF(Тариф.Кальк!L126>=1,0,0.5)*$F85*(VLOOKUP(Тариф.Кальк!$G$40,Резервы!$B$1:$C$3,2,FALSE)-E85),$F85*(VLOOKUP(Тариф.Кальк!$G$40,Резервы!$B$1:$C$3,2,FALSE)-E85)+$H84*(1+VLOOKUP(Тариф.Кальк!$G$40,Резервы!$B$1:$C$3,2,FALSE))),0) -> 0
H86: =IF($C86<>"",IF($C86=1,IF(Тариф.Кальк!L127>=1,0,0.5)*$F86*(VLOOKUP(Тариф.Кальк!$G$40,Резервы!$B$1:$C$3,2,FALSE)-E86),$F86*(VLOOKUP(Тариф.Кальк!$G$40,Резервы!$B$1:$C$3,2,FALSE)-E86)+$H85*(1+VLOOKUP(Тариф.Кальк!$G$40,Резервы!$B$1:$C$3,2,FALSE))),0) -> 0
H87: =IF($C87<>"",IF($C87=1,IF(Тариф.Кальк!L128>=1,0,0.5)*$F87*(VLOOKUP(Тариф.Кальк!$G$40,Резервы!$B$1:$C$3,2,FALSE)-E87),$F87*(VLOOKUP(Тариф.Кальк!$G$40,Резервы!$B$1:$C$3,2,FALSE)-E87)+$H86*(1+VLOOKUP(Тариф.Кальк!$G$40,Резервы!$B$1:$C$3,2,FALSE))),0) -> 0
H88: =IF($C88<>"",IF($C88=1,IF(Тариф.Кальк!L129>=1,0,0.5)*$F88*(VLOOKUP(Тариф.Кальк!$G$40,Резервы!$B$1:$C$3,2,FALSE)-E88),$F88*(VLOOKUP(Тариф.Кальк!$G$40,Резервы!$B$1:$C$3,2,FALSE)-E88)+$H87*(1+VLOOKUP(Тариф.Кальк!$G$40,Резервы!$B$1:$C$3,2,FALSE))),0) -> 0
H89: =IF($C89<>"",IF($C89=1,IF(Тариф.Кальк!L130>=1,0,0.5)*$F89*(VLOOKUP(Тариф.Кальк!$G$40,Резервы!$B$1:$C$3,2,FALSE)-E89),$F89*(VLOOKUP(Тариф.Кальк!$G$40,Резервы!$B$1:$C$3,2,FALSE)-E89)+$H88*(1+VLOOKUP(Тариф.Кальк!$G$40,Резервы!$B$1:$C$3,2,FALSE))),0) -> 0
H90: =IF($C90<>"",IF($C90=1,IF(Тариф.Кальк!L131>=1,0,0.5)*$F90*(VLOOKUP(Тариф.Кальк!$G$40,Резервы!$B$1:$C$3,2,FALSE)-E90),$F90*(VLOOKUP(Тариф.Кальк!$G$40,Резервы!$B$1:$C$3,2,FALSE)-E90)+$H89*(1+VLOOKUP(Тариф.Кальк!$G$40,Резервы!$B$1:$C$3,2,FALSE))),0) -> 0
H91: =IF($C91<>"",IF($C91=1,IF(Тариф.Кальк!L132>=1,0,0.5)*$F91*(VLOOKUP(Тариф.Кальк!$G$40,Резервы!$B$1:$C$3,2,FALSE)-E91),$F91*(VLOOKUP(Тариф.Кальк!$G$40,Резервы!$B$1:$C$3,2,FALSE)-E91)+$H90*(1+VLOOKUP(Тариф.Кальк!$G$40,Резервы!$B$1:$C$3,2,FALSE))),0) -> 0
H92: =IF($C92<>"",IF($C92=1,IF(Тариф.Кальк!L133>=1,0,0.5)*$F92*(VLOOKUP(Тариф.Кальк!$G$40,Резервы!$B$1:$C$3,2,FALSE)-E92),$F92*(VLOOKUP(Тариф.Кальк!$G$40,Резервы!$B$1:$C$3,2,FALSE)-E92)+$H91*(1+VLOOKUP(Тариф.Кальк!$G$40,Резервы!$B$1:$C$3,2,FALSE))),0) -> 0
H93: =IF($C93<>"",IF($C93=1,IF(Тариф.Кальк!L134>=1,0,0.5)*$F93*(VLOOKUP(Тариф.Кальк!$G$40,Резервы!$B$1:$C$3,2,FALSE)-E93),$F93*(VLOOKUP(Тариф.Кальк!$G$40,Резервы!$B$1:$C$3,2,FALSE)-E93)+$H92*(1+VLOOKUP(Тариф.Кальк!$G$40,Резервы!$B$1:$C$3,2,FALSE))),0) -> 0
H94: =IF($C94<>"",IF($C94=1,IF(Тариф.Кальк!L135>=1,0,0.5)*$F94*(VLOOKUP(Тариф.Кальк!$G$40,Резервы!$B$1:$C$3,2,FALSE)-E94),$F94*(VLOOKUP(Тариф.Кальк!$G$40,Резервы!$B$1:$C$3,2,FALSE)-E94)+$H93*(1+VLOOKUP(Тариф.Кальк!$G$40,Резервы!$B$1:$C$3,2,FALSE))),0) -> 0
H95: =IF($C95<>"",IF($C95=1,IF(Тариф.Кальк!L136>=1,0,0.5)*$F95*(VLOOKUP(Тариф.Кальк!$G$40,Резервы!$B$1:$C$3,2,FALSE)-E95),$F95*(VLOOKUP(Тариф.Кальк!$G$40,Резервы!$B$1:$C$3,2,FALSE)-E95)+$H94*(1+VLOOKUP(Тариф.Кальк!$G$40,Резервы!$B$1:$C$3,2,FALSE))),0) -> 0

Sheet риск (hidden)
D3: Смерть Застрахованного лица в результате несчастного случая | E3: 1000 | F3: 1 | G3: 0.000321 | H3: 0.0321 | I3: 0.068 | J3: 0.1001 | K3: 2.13
D4: Инвалидность Застрахованного лица в результате несчастного случая | E4: 1000 | F4: 1 | G4: 0.000584 | H4: 0.0584 | I4: 0.0917 | J4: 0.1501 | K4: 0.23
D6: Госпитализация Застрахованного в результате несчастного случая | E6: 1000 | F6: 0.05 | G6: 0.02752 | H6: 0.1376 | I6: 0.031 | J6: 0.1686 | K6: 0.26
D7: Госпитализация Страхователя в результате несчастного случая | E7: 1000 | F7: 0.045 | G7: 0.02377 | H7: 0.107 | I7: 0.026 | J7: 0.133 | K7: 0.2
D8: Смерть Страхователя в результате несчастного случая | E8: 1000 | F8: 1 | G8: 0.000765 | H8: 0.0765 | I8: 0.1049 | J8: 0.1814 | K8: 0.28
L9: свежее
D10: Смерть в результате НС или болезни | E10: 5000 | F10: 8.7 | G10: 0.001438 | H10: 1.2511 | I10: 0.5595 | J10: 1.8106 | K10: 2.13 | L10: Риск | M10: n | N10: μ/S | O10: q | P10: tо | Q10: tp | R10: t | S10: оув
D11: Установленная Страхователю инвалидность I-II группы | E11: 5000 | F11: 8.7 | G11: 0.000824 | H11: 0.7168 | I11: 0.4236 | J11: 1.1404 | K11: 1.34 | L11: Смерть в результате несчастного случая или болезни | M11: 5000 | N11: 8.7 | O11: 0.001438 | P11: 1.2511 | Q11: 0.5595 | R11: 1.8106 | S11: 2.13
K12: =SUM(K10:K11) -> 3.47 | L12: Установленная Страхователю инвалидность I-II группы | M12: 5000 | N12: 8.7 | O12: 0.000824 | P12: 0.7168 | Q12: 0.4236 | R12: 1.1404 | S12: 1.34
S13: =SUM(S11:S12) -> 3.47
D16: Периодичность оплаты страхового взноса | E16: Значение коэффициента
D17: Ежегодно | E17: 1
D18: Раз в полгода | E18: 0.51
D19: Единовременно | E19: =1*Тариф.Кальк!E40 -> 0
D20: Ежеквартально | E20: 0.27
D21: Ежемесячно | E21: 0.093
D24: Возраст на дату окончания | E24: Коэффициент | G24: =Тариф.Кальк!E35+Тариф.Кальк!E40 ->  | H24: =IF(G24<=D26,E26,IF(G24<=D27,E27,E28)) -> 
D25: периода оплаты взносов
D26: 44 | E26: 0.7
D27: 54 | E27: 1
D28: более 55 | E28: 1.6

Sheet Лист1 (hidden)
A2: Календарный месяц | B2: Дата начала | C2: Срок действия договора
C3: 1 | D3: 2 | E3: 3 | F3: 4 | G3: 5 | H3: 6 | I3: 7 | J3: 8 | K3: 9 | L3: 10 | M3: 11
A4: 1 | B4: 2024-01-02 | C4: =B4+365 -> 2025-01-01 | D4: =C4+365 -> 2026-01-01 | E4: =D4+365 -> 2027-01-01 | F4: =E4+365 -> 2028-01-01 | G4: =F4+366 -> 2029-01-01 | H4: =G4+365 -> 2030-01-01 | I4: 2031-01-01 | J4: 2032-01-01 | K4: =J4+366 -> 2033-01-01 | L4: =K4+365 -> 2034-01-01 | M4: 2035-01-01
A5: 2 | B5: 2024-02-02 | C5: =B5+365 -> 2025-02-01 | D5: 2026-02-01 | E5: 2027-02-01 | F5: 2028-02-01 | G5: =F5+366 -> 2029-02-01 | H5: 2030-02-01 | I5: 2031-02-01 | J5: 2032-02-01 | K5: =J5+366 -> 2033-02-01 | L5: 2034-02-01 | M5: 2035-02-01
A6: 3 | B6: 2024-03-02 | C6: =B6+364 -> 2025-03-01 | D6: 2026-03-01 | E6: 2027-03-01 | F6: 2028-02-29 | G6: =F6+366 -> 2029-03-01 | H6: 2030-03-01 | I6: 2031-03-01 | J6: 2032-02-29 | K6: =J6+366 -> 2033-03-01 | L6: 2034-03-01 | M6: 2035-03-01
A7: 4 | B7: 2024-04-02 | C7: 2025-04-01 | D7: 2026-04-01 | E7: 2027-04-01 | F7: =E7+366 -> 2028-04-01 | G7: =F7+365 -> 2029-04-01 | H7: =G7+365 -> 2030-04-01 | I7: =H7+365 -> 2031-04-01 | J7: =I7+366 -> 2032-04-01 | K7: =J7+365 -> 2033-04-01 | L7: 2034-04-01 | M7: 2035-04-01
A8: 5 | B8: 2024-05-02 | C8: 2025-05-01 | D8: 2026-05-01 | E8: 2027-05-01 | F8: =E8+366 -> 2028-05-01 | G8: =F8+365 -> 2029-05-01 | H8: 2030-05-01 | I8: 2031-05-01 | J8: =I8+366 -> 2032-05-01 | K8: =J8+365 -> 2033-05-01 | L8: 2034-05-01 | M8: 2035-05-01
A9: 6 | B9: 2024-06-02 | C9: 2025-06-01 | D9: 2026-06-01 | E9: 2027-06-01 | F9: 2028-06-01 | G9: 2029-06-01 | H9: 2030-06-01 | I9: 2031-06-01 | J9: 2032-06-01 | K9: 2033-06-01 | L9: 2034-06-01 | M9: 2035-06-01
A10: 7 | B10: 2024-07-02 | C10: 2025-07-01 | D10: 2026-07-01 | E10: 2027-07-01 | F10: 2028-07-01 | G10: 2029-07-01 | H10: 2030-07-01 | I10: 2031-07-01 | J10: 2032-07-01 | K10: 2033-07-01 | L10: 2034-07-01 | M10: 2035-07-01
A11: 8 | B11: 2024-08-02 | C11: 2025-08-01 | D11: 2026-08-01 | E11: 2027-08-01 | F11: 2028-08-01 | G11: 2029-08-01 | H11: 2030-08-01 | I11: 2031-08-01 | J11: 2032-08-01 | K11: 2033-08-01 | L11: 2034-08-01 | M11: 2035-08-01
A12: 9 | B12: 2024-09-02 | C12: =B12+364 -> 2025-09-01 | D12: 2026-09-01 | E12: =D12+365 -> 2027-09-01 | F12: 2028-09-01 | G12: =F12+365 -> 2029-09-01 | H12: 2030-09-01 | I12: =H12+365 -> 2031-09-01 | J12: 2032-09-01 | K12: =J12+365 -> 2033-09-01 | L12: 2034-09-01 | M12: 2035-09-01
A13: 10 | B13: 2024-10-02 | C13: 2025-10-01 | D13: 2026-10-01 | E13: 2027-10-01 | F13: 2028-10-01 | G13: 2029-10-01 | H13: 2030-10-01 | I13: 2031-10-01 | J13: 2032-10-01 | K13: 2033-10-01 | L13: 2034-10-01 | M13: 2035-10-01
A14: 11 | B14: 2024-11-02 | C14: 2025-11-01 | D14: 2026-11-01 | E14: 2027-11-01 | F14: =E14+366 -> 2028-11-01 | G14: 2029-11-01 | H14: 2030-11-01 | I14: 2031-11-01 | J14: 2032-11-01 | K14: 2033-11-01 | L14: 2034-11-01 | M14: 2035-11-01
A15: 12 | B15: 2024-12-02 | C15: 2025-12-01 | D15: 2026-12-01 | E15: 2027-12-01 | F15: 2028-12-01 | G15: 2029-12-01 | H15: 2030-12-01 | I15: 2031-12-01 | J15: 2032-12-01 | K15: 2033-12-01 | L15: 2034-12-01 | M15: 2035-12-01
A18: ПРИМЕРЫ:
A19: класс | C19: 1 | D19: 2 | E19: 3 | F19: 4 | G19: 5 | H19: 6
A20: Окончание школы | C20: 2034-07-01 | D20: 2033-07-01 | E20: 2032-07-01 | F20: 1931-07-01 | G20: 1930-07-01 | H20: 2029-07-01
A21: срок | C21: 10 | D21: 9 | E21: 8 | F21: 7 | G21: 6 | H21: 5
B22: нач | C22: оконч | D22: оконч | E22: оконч | F22: оконч | G22: оконч | H22: оконч
A23: Даты | B23: =B4 -> 2024-01-02 | C23: =L4 -> 2034-01-01 | D23: =K4 -> 2033-01-01 | E23: =J4 -> 2032-01-01 | F23: =I4 -> 2031-01-01 | G23: =H4 -> 2030-01-01 | H23: =G4 -> 2029-01-01
B24: 2024-02-02 | C24: 2034-02-01 | D24: 2033-02-01 | E24: 2032-02-01 | F24: 2031-02-01 | G24: 2030-02-01 | H24: 2029-02-01
B25: 2024-03-02 | C25: 2034-03-01 | D25: 2033-03-01 | E25: 2032-02-29 | F25: 2031-03-01 | G25: 2030-03-01 | H25: 2029-03-01
B26: 2024-04-02 | C26: 2034-04-01 | D26: 2033-04-01 | E26: 2032-04-01 | F26: 2031-04-01 | G26: 2030-04-01 | H26: 2029-04-01
B27: 2024-05-02 | C27: 2034-05-01 | D27: 2033-05-01 | E27: 2032-05-01 | F27: 2031-05-01 | G27: 2030-05-01 | H27: 2029-05-01
B28: 2024-06-02 | C28: 2034-06-01 | D28: 2033-06-01 | E28: 2032-06-01 | F28: 2031-06-01 | G28: 2030-06-01 | H28: 2029-06-01
A29: Окончание школы | C29: 2035-07-01 | D29: 2034-07-01 | E29: 2033-07-01 | F29: 1932-07-01 | G29: 1931-07-01 | H29: 2030-07-01
A30: срок | C30: 11 | D30: 10 | E30: 9 | F30: 8 | G30: 7 | H30: 6
B31: =B10 -> 2024-07-02 | C31: =M10 -> 2035-07-01 | D31: =L10 -> 2034-07-01 | E31: =K10 -> 2033-07-01 | F31: =J10 -> 2032-07-01 | G31: =I10 -> 2031-07-01 | H31: =H10 -> 2030-07-01
B32: 2024-08-02 | C32: 2035-08-01 | D32: 2034-08-01 | E32: 2033-08-01 | F32: 2032-08-01 | G32: 2031-08-01 | H32: 2030-08-01
B33: 2024-09-02 | C33: 2035-09-01 | D33: 2034-09-01 | E33: 2033-09-01 | F33: 2032-09-01 | G33: 2031-09-01 | H33: 2030-09-01
B34: 2024-10-02 | C34: 2035-10-01 | D34: 2034-10-01 | E34: 2033-10-01 | F34: 2032-10-01 | G34: 2031-10-01 | H34: 2030-10-01
B35: 2024-11-02 | C35: 2035-11-01 | D35: 2034-11-01 | E35: 2033-11-01 | F35: 2032-11-01 | G35: 2031-11-01 | H35: 2030-11-01
B36: 2024-12-02 | C36: 2035-12-01 | D36: 2034-12-01 | E36: 2033-12-01 | F36: 2032-12-01 | G36: 2031-12-01 | H36: 2030-12-01

Sheet Базис (hidden)
A1: ПОЛ | C1: Срок страхования | E1: Периодичность | H1: Возраст Страхователя на дату окончания периода оплаты взносов | K1: Риски «Дожитие Застрахованного лица» и «Смерть Застрахованного лица»
A2: муж | C2: 5 | E2: Единовременно (0) | F2: 1 | H2: от 18 до 44 лет | I2: 0.7 | AF2: руб | AH2: единовременно | AI2: 0 | AJ2: 1 | AL2: подготовительный | AM2: 0 | AN2: 12 | AO2: 29/11/2023 отменили | AQ2: мать | AR2: конец января, отменили родство
A3: жен | C3: 6 | E3: Ежегодно (1) | F3: 1 | H3: 45 – 54 | I3: 1 | AF3: USD | AH3: ежегодно | AI3: 1 | AJ3: 1 | AL3: 1 | AM3: 1 | AN3: 11 | AQ3: отец
C4: 7 | E4: Раз в полгода (2) | F4: 0.51 | H4: от 55 до 74 лет | I4: 1.6 | K4: ЕДИНОВРЕМЕННЫЙ ВЗНОС. Таблица тарифов для лиц МУЖСКОГО пола. | AF4: euro | AH4: раз в полгода | AI4: 2 | AJ4: 0.51 | AL4: 2 | AM4: 2 | AN4: 10 | AQ4: усыновитель
C5: 8 | E5: Ежеквартально (4) | F5: 0.27 | AH5: ежеквартально | AI5: 4 | AL5: 3 | AM5: 3 | AN5: 9 | AQ5: дедушка
C6: 9 | K6: Возраст на начало страхования | L6: Срок страхования (лет) | AH6: ежемесячно | AI6: 12 | AL6: 4 | AM6: 4 | AN6: 8 | AQ6: бабушка
C7: 10 | L7: 5 | M7: 6 | N7: 7 | O7: 8 | P7: 9 | Q7: 10 | R7: 11 | S7: 12 | T7: 13 | U7: 14 | V7: 15 | W7: 16 | X7: 17 | Y7: 18 | Z7: 19 | AA7: 20 | AB7: 21 | AC7: 22 | AD7: 23 | AL7: 5 | AM7: 5 | AN7: 7 | AQ7: брат
C8: 11 | K8: 1 | L8: 0.956863 | M8: 0.924489 | N8: 0.893204 | O8: 0.862972 | P8: 0.852127 | Q8: 0.825265 | R8: 0.799247 | S8: 0.774036 | T8: 0.749602 | U8: 0.725922 | V8: 0.729046 | W8: 0.707677 | X8: 0.686888 | Y8: 0.666629 | Z8: 0.646931 | AA8: 0.627752 | AB8: 0.609068 | AC8: 0.590919 | AD8: 0.573266 | AL8: 6 | AM8: 6 | AN8: 6 | AQ8: сестра
C9: 12 | K9: 2 | L9: 0.956839 | M9: 0.924465 | N9: 0.893181 | O9: 0.862949 | P9: 0.852099 | Q9: 0.825239 | R9: 0.799214 | S9: 0.773992 | T9: 0.749549 | U9: 0.725846 | V9: 0.728956 | W9: 0.707552 | X9: 0.686699 | Y9: 0.666425 | Z9: 0.646685 | AA9: 0.627457 | AB9: 0.608778 | AC9: 0.590609 | AL9: 7 | AM9: 7 | AN9: 5
C10: 13 | K10: 3 | L10: 0.956828 | M10: 0.924455 | N10: 0.893172 | O10: 0.862937 | P10: 0.852085 | Q10: 0.825221 | R10: 0.799185 | S10: 0.773955 | T10: 0.749489 | U10: 0.725768 | V10: 0.728848 | W10: 0.707384 | X10: 0.686517 | Y10: 0.666201 | Z10: 0.646413 | AA10: 0.62719 | AB10: 0.608491 | AL10: 18/01/2024 отмена 7 класса
C11: 14 | K11: 4 | L11: 0.956821 | M11: 0.924449 | N11: 0.893162 | O11: 0.862928 | P11: 0.852071 | Q11: 0.825196 | R11: 0.799154 | S11: 0.773902 | T11: 0.749419 | U11: 0.725665 | V11: 0.728694 | W11: 0.707215 | X11: 0.686306 | Y11: 0.665943 | Z11: 0.64616 | AA11: 0.626917 | AL11: 21.06.2024 вернули 7 класс обратно
C12: 15 | K12: 5 | L12: 0.956819 | M12: 0.924445 | N12: 0.893158 | O12: 0.862919 | P12: 0.852055 | Q12: 0.825173 | R12: 0.79911 | S12: 0.773842 | T12: 0.749329 | U12: 0.725516 | V12: 0.72854 | W12: 0.707021 | X12: 0.686067 | Y12: 0.665708 | Z12: 0.645906
C13: 16 | K13: 6 | L13: 0.956815 | M13: 0.924439 | N13: 0.89315 | O13: 0.862903 | P13: 0.852034 | Q13: 0.825134 | R13: 0.799057 | S13: 0.773761 | T13: 0.749191 | U13: 0.725364 | V13: 0.728361 | W13: 0.706799 | X13: 0.685848 | Y13: 0.665469
C14: 17 | K14: 7 | L14: 0.956814 | M14: 0.924439 | N14: 0.893141 | O14: 0.862889 | P14: 0.852005 | Q14: 0.825093 | R14: 0.798988 | S14: 0.773639 | T14: 0.749057 | U14: 0.725191 | V14: 0.72816 | W14: 0.7066 | X14: 0.685631
C15: 18 | K15: 8 | L15: 0.956815 | M15: 0.924432 | N15: 0.893131 | O15: 0.862862 | P15: 0.851971 | Q15: 0.825034 | R15: 0.798883 | S15: 0.773522 | T15: 0.748902 | U15: 0.724994 | V15: 0.72798 | W15: 0.706403
C16: 19 | K16: 9 | L16: 0.956813 | M16: 0.924427 | N16: 0.893113 | O16: 0.862835 | P16: 0.851926 | Q16: 0.824946 | R16: 0.798782 | S16: 0.773387 | T16: 0.748727 | U16: 0.724822 | V16: 0.727805
C17: 20 | K17: 10 | L17: 0.956814 | M17: 0.924419 | N17: 0.893097 | O17: 0.862796 | P17: 0.851858 | Q17: 0.824867 | R17: 0.79867 | S17: 0.773236 | T17: 0.748579 | U17: 0.724656
C18: 21 | K18: 11 | L18: 0.956813 | M18: 0.92441 | N18: 0.893071 | O18: 0.862736 | P18: 0.851796 | Q18: 0.824776 | R18: 0.798544 | S18: 0.773111 | T18: 0.748436
C19: 22 | K19: 12 | L19: 0.956816 | M19: 0.924402 | N19: 0.893033 | O19: 0.862689 | P19: 0.851733 | Q19: 0.82468 | R19: 0.798449 | S19: 0.772999
C20: 23 | K20: 13 | L20: 0.95682 | M20: 0.924385 | N20: 0.893008 | O20: 0.862639 | P20: 0.851665 | Q20: 0.824612 | R20: 0.798365
K21: 14 | L21: 0.956821 | M21: 0.924379 | N21: 0.892983 | O21: 0.862585 | P21: 0.851624 | Q21: 0.824555
K22: 15 | L22: 0.956836 | M22: 0.924379 | N22: 0.892959 | O22: 0.862562 | P22: 0.851596
K23: 16 | L23: 0.956853 | M23: 0.924378 | N23: 0.892957 | O23: 0.862547
K24: 17 | L24: 0.956879 | M24: 0.924402 | N24: 0.89297
K26: ЕДИНОВРЕМЕННЫЙ ВЗНОС. Таблица тарифов для лиц ЖЕНСКОГО пола.
K28: Возраст на начало страхования | L28: Срок страхования (лет)
L29: 5 | M29: 6 | N29: 7 | O29: 8 | P29: 9 | Q29: 10 | R29: 11 | S29: 12 | T29: 13 | U29: 14 | V29: 15 | W29: 16 | X29: 17 | Y29: 18 | Z29: 19 | AA29: 20 | AB29: 21 | AC29: 22 | AD29: 23
K30: 1 | L30: 0.956847 | M30: 0.924479 | N30: 0.8932 | O30: 0.862973 | P30: 0.852133 | Q30: 0.825285 | R30: 0.79928 | S30: 0.774081 | T30: 0.749672 | U30: 0.726009 | V30: 0.729156 | W30: 0.707846 | X30: 0.687146 | Y30: 0.66703 | Z30: 0.647492 | AA30: 0.628518 | AB30: 0.610105 | AC30: 0.592218 | AD30: 0.574834
K31: 2 | L31: 0.956825 | M31: 0.924455 | N31: 0.893178 | O31: 0.862954 | P31: 0.852111 | Q31: 0.825264 | R31: 0.79925 | S31: 0.774052 | T31: 0.749625 | U31: 0.725955 | V31: 0.729107 | W31: 0.707793 | X31: 0.687078 | Y31: 0.66696 | Z31: 0.64742 | AA31: 0.628461 | AB31: 0.61004 | AC31: 0.592138
K32: 3 | L32: 0.956818 | M32: 0.924451 | N32: 0.893173 | O32: 0.86295 | P32: 0.852104 | Q32: 0.825251 | R32: 0.799236 | S32: 0.774022 | T32: 0.749586 | U32: 0.725922 | V32: 0.729071 | W32: 0.707741 | X32: 0.687025 | Y32: 0.666904 | Z32: 0.647379 | AA32: 0.628409 | AB32: 0.609974
K33: 4 | L33: 0.956814 | M33: 0.924447 | N33: 0.89317 | O33: 0.862945 | P33: 0.852094 | Q33: 0.825239 | R33: 0.79921 | S33: 0.773987 | T33: 0.749559 | U33: 0.725887 | V33: 0.729025 | W33: 0.707693 | X33: 0.686974 | Y33: 0.666866 | Z33: 0.647332 | AA33: 0.628348
E34: ФОРМУЛА С ТАРИФ.КАЛЬК для m | K34: 5 | L34: 0.956811 | M34: 0.924443 | N34: 0.893166 | O34: 0.862935 | P34: 0.852084 | Q34: 0.825214 | R34: 0.799179 | S34: 0.773961 | T34: 0.749527 | U34: 0.725843 | V34: 0.728981 | W34: 0.707647 | X34: 0.68694 | Y34: 0.666824 | Z34: 0.647274
E35: ВПР(K46;Базис!$AH$2:$AI$6;2;ЛОЖЬ) | K35: 6 | L35: 0.956809 | M35: 0.924441 | N35: 0.893159 | O35: 0.862928 | P35: 0.852064 | Q35: 0.825189 | R35: 0.799159 | S35: 0.773937 | T35: 0.749488 | U35: 0.725802 | V35: 0.728941 | W35: 0.707617 | X35: 0.686902 | Y35: 0.666772
K36: 7 | L36: 0.95681 | M36: 0.924439 | N36: 0.893155 | O36: 0.862912 | P36: 0.852046 | Q36: 0.825175 | R36: 0.799139 | S36: 0.773905 | T36: 0.749454 | U36: 0.725765 | V36: 0.728919 | W36: 0.707588 | X36: 0.686858
K37: 8 | L37: 0.956808 | M37: 0.924435 | N37: 0.893142 | O37: 0.862895 | P37: 0.852033 | Q37: 0.825158 | R37: 0.799111 | S37: 0.773874 | T37: 0.749422 | U37: 0.725744 | V37: 0.728892 | W37: 0.707547
K38: 9 | L38: 0.956804 | M38: 0.924426 | N38: 0.893129 | O38: 0.862885 | P38: 0.852022 | Q38: 0.825136 | R38: 0.799088 | S38: 0.773848 | T38: 0.749405 | U38: 0.72572 | V38: 0.728858
K39: 10 | L39: 0.956803 | M39: 0.92442 | N39: 0.893127 | O39: 0.862879 | P39: 0.852008 | Q39: 0.82512 | R39: 0.79907 | S39: 0.773838 | T39: 0.749389 | U39: 0.72569
K40: 11 | L40: 0.956805 | M40: 0.924424 | N40: 0.893127 | O40: 0.86287 | P40: 0.852001 | Q40: 0.82511 | R40: 0.799067 | S40: 0.773829 | T40: 0.749367
K41: 12 | L41: 0.956812 | M41: 0.924429 | N41: 0.893124 | O41: 0.862865 | P41: 0.851996 | Q41: 0.825113 | R41: 0.799062 | S41: 0.773814
K42: 13 | L42: 0.956818 | M42: 0.92443 | N42: 0.893124 | O42: 0.862863 | P42: 0.852002 | Q42: 0.825113 | R42: 0.799053
K43: 14 | L43: 0.956827 | M43: 0.924437 | N43: 0.893128 | O43: 0.862873 | P43: 0.852008 | Q43: 0.825109
K44: 15 | L44: 0.956828 | M44: 0.924438 | N44: 0.893133 | O44: 0.862873 | P44: 0.852001
K45: 16 | L45: 0.956828 | M45: 0.924443 | N45: 0.893134 | O45: 0.862866
K46: 17 | L46: 0.956839 | M46: 0.924448 | N46: 0.893135
K48: ВЗНОСЫ В РАССРОЧКУ. Таблица тарифов (годовой тариф) для лиц МУЖСКОГО пола.
K50: Возраст на начало страхования | L50: Срок страхования (лет)
L51: 5 | M51: 6 | N51: 7 | O51: 8 | P51: 9 | Q51: 10 | R51: 11 | S51: 12 | T51: 13 | U51: 14 | V51: 15 | W51: 16 | X51: 17 | Y51: 18 | Z51: 19 | AA51: 20 | AB51: 21 | AC51: 22 | AD51: 23
K52: 1 | L52: 0.21199 | M52: 0.173551 | N52: 0.146126 | O52: 0.125586 | P52: 0.11103 | Q52: 0.098261 | R52: 0.087832 | S52: 0.079156 | T52: 0.07183 | U52: 0.065564 | V52: 0.06141 | W52: 0.05666 | X52: 0.052478 | Y52: 0.048766 | Z52: 0.045454 | AA52: 0.04248 | AB52: 0.039794 | AC52: 0.037359 | AD52: 0.035143
K53: 2 | L53: 0.211986 | M53: 0.173549 | N53: 0.146124 | O53: 0.125585 | P53: 0.111028 | Q53: 0.09826 | R53: 0.08783 | S53: 0.079155 | T53: 0.071828 | U53: 0.065562 | V53: 0.061408 | W53: 0.056658 | X53: 0.052474 | Y53: 0.048762 | Z53: 0.045449 | AA53: 0.042473 | AB53: 0.039789 | AC53: 0.037354
K54: 3 | L54: 0.211985 | M54: 0.173548 | N54: 0.146124 | O54: 0.125584 | P54: 0.111029 | Q54: 0.09826 | R54: 0.08783 | S54: 0.079155 | T54: 0.071827 | U54: 0.065561 | V54: 0.061406 | W54: 0.056654 | X54: 0.05247 | Y54: 0.048758 | Z54: 0.045444 | AA54: 0.042469 | AB54: 0.039784
K55: 4 | L55: 0.211984 | M55: 0.173547 | N55: 0.146123 | O55: 0.125585 | P55: 0.111028 | Q55: 0.098259 | R55: 0.087829 | S55: 0.079153 | T55: 0.071827 | U55: 0.065558 | V55: 0.061404 | W55: 0.056652 | X55: 0.052466 | Y55: 0.048753 | Z55: 0.045439 | AA55: 0.042464
K56: 5 | L56: 0.211984 | M56: 0.173547 | N56: 0.146124 | O56: 0.125585 | P56: 0.111029 | Q56: 0.09826 | R56: 0.087829 | S56: 0.079153 | T56: 0.071824 | U56: 0.065555 | V56: 0.061401 | W56: 0.056648 | X56: 0.052462 | Y56: 0.048749 | Z56: 0.045435
K57: 6 | L57: 0.211984 | M57: 0.173547 | N57: 0.146124 | O57: 0.125584 | P57: 0.111028 | Q57: 0.098259 | R57: 0.087829 | S57: 0.079151 | T57: 0.071823 | U57: 0.065552 | V57: 0.061398 | W57: 0.056644 | X57: 0.052459 | Y57: 0.048747
K58: 7 | L58: 0.211985 | M58: 0.173548 | N58: 0.146125 | O58: 0.125585 | P58: 0.111029 | Q58: 0.09826 | R58: 0.087829 | S58: 0.079151 | T58: 0.071821 | U58: 0.06555 | V58: 0.061396 | W58: 0.056643 | X58: 0.052457
K59: 8 | L59: 0.211985 | M59: 0.173549 | N59: 0.146126 | O59: 0.125586 | P59: 0.11103 | Q59: 0.098261 | R59: 0.087829 | S59: 0.079149 | T59: 0.071819 | U59: 0.065547 | V59: 0.061394 | W59: 0.056641
K60: 9 | L60: 0.211987 | M60: 0.17355 | N60: 0.146127 | O60: 0.125588 | P60: 0.111032 | Q60: 0.098261 | R60: 0.087828 | S60: 0.079149 | T60: 0.071817 | U60: 0.065546 | V60: 0.061394
K61: 10 | L61: 0.21199 | M61: 0.173553 | N61: 0.14613 | O61: 0.125589 | P61: 0.111033 | Q61: 0.098262 | R61: 0.087829 | S61: 0.079148 | T61: 0.071817 | U61: 0.065545
K62: 11 | L62: 0.211993 | M62: 0.173557 | N62: 0.146133 | O62: 0.125591 | P62: 0.111036 | Q62: 0.098264 | R62: 0.08783 | S62: 0.079149 | T62: 0.071816
K63: 12 | L63: 0.211998 | M63: 0.17356 | N63: 0.146137 | O63: 0.125595 | P63: 0.11104 | Q63: 0.098266 | R63: 0.087831 | S63: 0.07915
K64: 13 | L64: 0.212004 | M64: 0.173567 | N64: 0.146142 | O64: 0.125599 | P64: 0.111044 | Q64: 0.09827 | R64: 0.087833
K65: 14 | L65: 0.212014 | M65: 0.173574 | N65: 0.146148 | O65: 0.125603 | P65: 0.111048 | Q65: 0.098273
K66: 15 | L66: 0.212023 | M66: 0.173582 | N66: 0.146155 | O66: 0.125609 | P66: 0.111053
K67: 16 | L67: 0.212033 | M67: 0.173591 | N67: 0.146161 | O67: 0.125613
K68: 17 | L68: 0.212045 | M68: 0.1736 | N68: 0.146167
K70: ВЗНОСЫ В РАССРОЧКУ. Таблица тарифов (годовой тариф) для лиц ЖЕНСКОГО пола.
K72: Возраст на начало страхования | L72: Срок страхования (лет)
L73: 5 | M73: 6 | N73: 7 | O73: 8 | P73: 9 | Q73: 10 | R73: 11 | S73: 12 | T73: 13 | U73: 14 | V73: 15 | W73: 16 | X73: 17 | Y73: 18 | Z73: 19 | AA73: 20 | AB73: 21 | AC73: 22 | AD73: 23
K74: 1 | L74: 0.211985 | M74: 0.173547 | N74: 0.146124 | O74: 0.125584 | P74: 0.111028 | Q74: 0.09826 | R74: 0.087831 | S74: 0.079156 | T74: 0.07183 | U74: 0.065564 | V74: 0.061411 | W74: 0.056662 | X74: 0.052482 | Y74: 0.048775 | Z74: 0.045466 | AA74: 0.042496 | AB74: 0.039818 | AC74: 0.037389 | AD74: 0.035178
K75: 2 | L75: 0.211982 | M75: 0.173546 | N75: 0.146122 | O75: 0.125583 | P75: 0.111027 | Q75: 0.098259 | R75: 0.08783 | S75: 0.079155 | T75: 0.071828 | U75: 0.065563 | V75: 0.061411 | W75: 0.056662 | X75: 0.052481 | Y75: 0.048773 | Z75: 0.045465 | AA75: 0.042495 | AB75: 0.039816 | AC75: 0.037388
K76: 3 | L76: 0.211981 | M76: 0.173545 | N76: 0.146122 | O76: 0.125583 | P76: 0.111027 | Q76: 0.098259 | R76: 0.08783 | S76: 0.079154 | T76: 0.071829 | U76: 0.065562 | V76: 0.061409 | W76: 0.056661 | X76: 0.052481 | Y76: 0.048772 | Z76: 0.045464 | AA76: 0.042494 | AB76: 0.039816
K77: 4 | L77: 0.211981 | M77: 0.173544 | N77: 0.146121 | O77: 0.125583 | P77: 0.111026 | Q77: 0.098259 | R77: 0.087829 | S77: 0.079154 | T77: 0.071828 | U77: 0.065561 | V77: 0.061409 | W77: 0.05666 | X77: 0.05248 | Y77: 0.048773 | Z77: 0.045464 | AA77: 0.042494
K78: 5 | L78: 0.211981 | M78: 0.173544 | N78: 0.146121 | O78: 0.125582 | P78: 0.111027 | Q78: 0.098259 | R78: 0.087828 | S78: 0.079153 | T78: 0.071827 | U78: 0.065561 | V78: 0.061408 | W78: 0.056659 | X78: 0.052479 | Y78: 0.048772 | Z78: 0.045463
K79: 6 | L79: 0.21198 | M79: 0.173543 | N79: 0.146121 | O79: 0.125583 | P79: 0.111027 | Q79: 0.098259 | R79: 0.087829 | S79: 0.079153 | T79: 0.071827 | U79: 0.065561 | V79: 0.061408 | W79: 0.05666 | X79: 0.052479 | Y79: 0.048772
K80: 7 | L80: 0.21198 | M80: 0.173544 | N80: 0.146121 | O80: 0.125583 | P80: 0.111028 | Q80: 0.098258 | R80: 0.087829 | S80: 0.079153 | T80: 0.071827 | U80: 0.065561 | V80: 0.061408 | W80: 0.056659 | X80: 0.052479
K81: 8 | L81: 0.21198 | M81: 0.173544 | N81: 0.146122 | O81: 0.125584 | P81: 0.111028 | Q81: 0.09826 | R81: 0.087829 | S81: 0.079153 | T81: 0.071827 | U81: 0.065561 | V81: 0.061408 | W81: 0.056659
K82: 9 | L82: 0.211982 | M82: 0.173546 | N82: 0.146124 | O82: 0.125584 | P82: 0.111028 | Q82: 0.09826 | R82: 0.08783 | S82: 0.079153 | T82: 0.071828 | U82: 0.065561 | V82: 0.061408
K83: 10 | L83: 0.211985 | M83: 0.173547 | N83: 0.146125 | O83: 0.125584 | P83: 0.111029 | Q83: 0.09826 | R83: 0.08783 | S83: 0.079154 | T83: 0.071827 | U83: 0.065561
K84: 11 | L84: 0.211987 | M84: 0.173549 | N84: 0.146125 | O84: 0.125586 | P84: 0.111031 | Q84: 0.098262 | R84: 0.087831 | S84: 0.079154 | T84: 0.071828
K85: 12 | L85: 0.211989 | M85: 0.173551 | N85: 0.146127 | O85: 0.125588 | P85: 0.111031 | Q85: 0.098262 | R85: 0.087831 | S85: 0.079155
K86: 13 | L86: 0.211991 | M86: 0.173553 | N86: 0.146128 | O86: 0.125588 | P86: 0.111032 | Q86: 0.098262 | R86: 0.087832
K87: 14 | L87: 0.211993 | M87: 0.173555 | N87: 0.14613 | O87: 0.125589 | P87: 0.111033 | Q87: 0.098263
K88: 15 | L88: 0.211995 | M88: 0.173556 | N88: 0.146131 | O88: 0.125589 | P88: 0.111034
K89: 16 | L89: 0.211996 | M89: 0.173556 | N89: 0.146131 | O89: 0.125591
K90: 17 | L90: 0.211996 | M90: 0.173558 | N90: 0.146133

Sheet Лист2 (hidden)
E1: тариф | G1: премия
E2: нетто | F2: брутто | G2: нетто | H2: брутто
D3: Дожитие | E3: 0.04892466063 | F3: 0.05755842427 | G3: 80597.36066 | H3: 94820.4243
D4: Медаль 1 | E4: 0.00155224015 | F4: 0.001826164882 | G4: 2557.124722 | H4: 3008.382026
D5: Медаль 2 | E5: 0 | F5: 0 | G5: 0 | H5: 0
D6: Смерть | E6: 0.0001085567239 | F6: 0.0001277137928 | G6: 178.8338501 | H6: 210.3927649
G7: =SUM(G3:G6) -> 83333.31923 | H7: 933761 | J7: 50000
D13: Риск | E13: n | F13: μ/S | G13: q | H13: tо | I13: tp | J13: t | K13: оув
D14: Смерть в результате несчастного случая или болезни | E14: 5000 | F14: 8.7 | G14: 0.001438 | H14: 1.2511 | I14: 0.5595 | J14: 1.8106 | K14: 2.13
D15: Установленная Страхователю инвалидность I-II группы | E15: 5000 | F15: 8.7 | G15: 0.000824 | H15: 0.7168 | I15: 0.4236 | J15: 1.1404 | K15: 1.34
K16: =SUM(K14:K15) -> 3.47
G18: возраст | H18: поправочный коэф | J18: взнос оув
D19: Возраст на дату окончания | E19: Коэффициент | G19: =Тариф.Кальк!E16+Тариф.Кальк!E35 ->  | H19: =IF(G19<=D21,E21,IF(G19<=D22,E22,E23)) ->  | I19: =KofVoz/100 ->  | J19: =ROUND(Тариф.Кальк!E55*Тариф.Кальк!K70*KofVoz*Sumrisk/100,0) -> 
D20: периода оплаты взносов
D21: 44 | E21: 0.7
D22: 54 | E22: 1
D23: более 55 | E23: 1.6
